Dept. Family,Entity,Date,Expense Type,Expense Area,Supplier,Transaction Number, Amount,Invoice Description 
DFID,DFID,01/07/2013,Contract & Agency Staff ,Research and Evidence Division ,E-Payment System  ,202348-101 ,502.50,
DFID,DFID,01/07/2013,Contract & Agency Staff ,Group Operations ,E-Payment System  ,100161-101 ,502.60,
DFID,DFID,01/07/2013,Hotels - Accommodation only ,Western Asia and Stabilisation Division ,E-Payment System  ,203938-101 ,507.84,
DFID,DFID,01/07/2013,Contract & Agency Staff ,Research and Evidence Division ,E-Payment System  ,202348-101 ,512.10,
DFID,DFID,01/07/2013,Facilities Management payments ,West and Southern Africa ,Conote Services Ltd ,101622-105 ,512.30,
DFID,DFID,01/07/2013,Contract & Agency Staff ,Group Operations ,E-Payment System  ,100161-101 ,530.28,
DFID,DFID,01/07/2013,Contract & Agency Staff ,Group Operations ,E-Payment System  ,100161-101 ,532.80,
DFID,DFID,01/07/2013,Contract & Agency Staff ,Group Operations ,E-Payment System  ,100161-101 ,532.80,
DFID,DFID,01/07/2013,Contract & Agency Staff ,Group Operations ,E-Payment System  ,100161-101 ,532.80,
DFID,DFID,01/07/2013,Contract & Agency Staff ,Group Operations ,E-Payment System  ,100161-101 ,532.80,
DFID,DFID,01/07/2013,Contract & Agency Staff ,Group Operations ,E-Payment System  ,100161-101 ,532.80,
DFID,DFID,01/07/2013,Contract & Agency Staff ,Group Operations ,E-Payment System  ,100161-101 ,536.50,
DFID,DFID,01/07/2013,Facilities Management payments ,West and Southern Africa ,Fracham Company ,101622-103 ,574.10,
DFID,DFID,01/07/2013,Contract & Agency Staff ,Research and Evidence Division ,E-Payment System  ,202348-101 ,575.25,
DFID,DFID,01/07/2013,Contract & Agency Staff ,Research and Evidence Division ,E-Payment System  ,202348-101 ,575.25,
DFID,DFID,01/07/2013,Hotels - Accommodation only ,Western Asia and Stabilisation Division ,PEARL CONTINENTAL HOTEL LAHORE ,101624-101 ,582.63,
DFID,DFID,01/07/2013,Contract & Agency Staff ,Human Resources Security & Facilities Division ,Anderson Knight Ltd ,100270-104 ,589.41,
DFID,DFID,01/07/2013,Contract & Agency Staff ,Research and Evidence Division ,E-Payment System  ,202348-101 ,603.00,
DFID,DFID,01/07/2013,Contract & Agency Staff ,Conflict Humanitarian and Security Division ,E-Payment System  ,100049-101 ,603.40,
DFID,DFID,01/07/2013,Contract & Agency Staff ,Conflict Humanitarian and Security Division ,E-Payment System  ,100049-101 ,603.40,
DFID,DFID,01/07/2013,Contract & Agency Staff ,Conflict Humanitarian and Security Division ,E-Payment System  ,100049-101 ,603.40,
DFID,DFID,01/07/2013,Contract & Agency Staff ,Conflict Humanitarian and Security Division ,E-Payment System  ,100049-101 ,603.40,
DFID,DFID,01/07/2013,Contract & Agency Staff ,Research and Evidence Division ,E-Payment System  ,202348-101 ,620.64,
DFID,DFID,01/07/2013,Contract & Agency Staff ,Research and Evidence Division ,E-Payment System  ,202348-101 ,620.64,
DFID,DFID,01/07/2013,Contract & Agency Staff ,Middle East & North Africa Division (MENAD) ,E-Payment System  ,100146-101 ,660.71,
DFID,DFID,01/07/2013,Computer Consumables ,Business Solutions Division Level ,E-Payment System  ,200002-153 ,666.00,
DFID,DFID,01/07/2013,Contract & Agency Staff ,Middle East & North Africa Division (MENAD) ,E-Payment System  ,100146-101 ,680.57,
DFID,DFID,01/07/2013,Contract & Agency Staff ,Middle East & North Africa Division (MENAD) ,E-Payment System  ,100146-101 ,680.57,
DFID,DFID,01/07/2013,Contract & Agency Staff ,Conflict Humanitarian and Security Division ,E-Payment System  ,100049-101 ,711.88,
DFID,DFID,01/07/2013,Contract & Agency Staff ,International Finance Division ,E-Payment System  ,100120-101 ,716.49,
DFID,DFID,01/07/2013,Contract & Agency Staff ,International Finance Division ,E-Payment System  ,100120-101 ,721.50,
DFID,DFID,01/07/2013,Contract & Agency Staff ,International Finance Division ,E-Payment System  ,100120-101 ,725.79,
DFID,DFID,01/07/2013,Contract & Agency Staff ,International Finance Division ,E-Payment System  ,100120-101 ,728.63,
DFID,DFID,01/07/2013,Contract & Agency Staff ,International Finance Division ,E-Payment System  ,100120-101 ,728.63,
DFID,DFID,01/07/2013,Contract & Agency Staff ,International Finance Division ,E-Payment System  ,100120-101 ,735.10,
DFID,DFID,01/07/2013,Contract & Agency Staff ,International Finance Division ,E-Payment System  ,100120-101 ,738.34,
DFID,DFID,01/07/2013,Training Providers/Facilitation Services ,Middle East & North Africa Division (MENAD) ,Pilgrims Group ,101619-101 ,752.10,
DFID,DFID,01/07/2013,Hostile Environment Training ,Finance and Corporate Performance Division ,Pilgrims Group ,100008-104 ,752.10,
DFID,DFID,01/07/2013,Contract & Agency Staff ,International Finance Division ,E-Payment System  ,100120-101 ,767.49,
DFID,DFID,01/07/2013,Office Supplies ,Group Operations ,E-Payment System  ,203717-101 ,793.98,
DFID,DFID,01/07/2013,Office Supplies ,West and Southern Africa ,E-Payment System  ,100068-101 ,849.77,
DFID,DFID,01/07/2013,Vehicle Hire Charges ,East and Central Africa ,ETHIODER Pvt. Ltd.Co. Tour Operators ,100082-101 ,876.79,
DFID,DFID,01/07/2013,Printer Consumables ,East and Central Africa ,E-Payment System  ,202594-101 ,961.67,
DFID,DFID,01/07/2013,Generators & spares ,West and Southern Africa ,Prime Power Ltd ,101622-105 ,"1,014.64",
DFID,DFID,01/07/2013,Reproduction & Printing Materials ,Group Operations ,E-Payment System  ,100106-101 ,"1,053.12",
DFID,DFID,01/07/2013,Project delivery costs - supplier services ,Western Asia and Stabilisation Division ,Supplier Name withheld ,201000-103 ,"1,172.52",
DFID,DFID,01/07/2013,Conferences  Seminars & Meeting/Event Resource ,International Finance Division ,E-Payment System  ,202259-101 ,"1,201.63",
DFID,DFID,01/07/2013,Vehicle Hire Charges ,East and Central Africa ,Adika Tour and Travel PLC ,202913-104 ,"1,351.96",
DFID,DFID,01/07/2013,Hotels - Accommodation only ,Research and Evidence Division ,Recipient name withheld ,202392-106 ,"1,459.15",
DFID,DFID,01/07/2013,Repairs  Maint  Alter - Property & Constrct. Services ,East and Central Africa ,NOLOT Consultancy and Professional Business ,100082-101 ,"1,507.27",
DFID,DFID,01/07/2013,Repairs  Maint  Alter - Property & Constrct. Services ,East and Central Africa ,Campbell Project Management Services ,100082-101 ,"1,513.20",
DFID,DFID,01/07/2013,Project delivery costs - supplier services ,Western Asia and Stabilisation Division ,Supplier Name withheld ,201023-104 ,"1,811.43",
DFID,DFID,01/07/2013,Project delivery costs - supplier services ,East and Central Africa ,Susanna Gable ,202913-101 ,"1,830.65",
DFID,DFID,01/07/2013,Aid Programme - Core contributions ,International Relations Division ,Cambodian Rehabilitation and Development Board of the Council for the Development of Cambodia (CRDB/CDC) ,204025-101 ,"2,003.11",
DFID,DFID,01/07/2013,Furniture & Fittings ,East and Central Africa ,IPA-International Procurement Agency (BV) ,202717-101 ,"2,224.20",
DFID,DFID,01/07/2013,Project delivery costs - supplier services ,East and Central Africa ,Abbi Mamo  Kedir  ,202913-101 ,"2,537.12",
DFID,DFID,01/07/2013,Training - Travel & Subsistence ,Western Asia and Stabilisation Division ,THE INSTITUTE OF DEVELOPMENT STUDIE ,101624-101 ,"2,950.00",
DFID,DFID,01/07/2013,Gas ,Group Operations ,CORONA ENERGY ,100187-101 ,"5,069.66",
DFID,DFID,01/07/2013,Facilities Management payments ,East and Central Africa ,Kato Contractors Ltd ,101635-101 ,"5,533.06",
DFID,DFID,01/07/2013,Secure Staff Accommodation ,East and Central Africa ,Supplier Name withheld ,101612-101 ,"9,632.40",
DFID,DFID,01/07/2013,Aid Programme - Accountable Grant Payments ,Asia  Caribbean and Overseas Territories ,Dolma Development Fund ,203426-101 ,"11,034.06",
DFID,DFID,01/07/2013,Project delivery costs - supplier services ,East and Central Africa ,Tesfaye Teferi ,201587-103 ,"16,041.66",
DFID,DFID,01/07/2013,Project delivery costs - supplier services ,Western Asia and Stabilisation Division ,PRICEWATERHOUSECOOPERS ,202378-104 ,"36,030.00",
DFID,DFID,01/07/2013,Aid Programme - Accountable Grant Payments ,Asia  Caribbean and Overseas Territories ,IntraHealth International  Inc. ,114506-105 ,"84,103.47",
DFID,DFID,01/07/2013,Project delivery costs - supplier services ,East and Central Africa ,BMB  MOTT  MACDONALD ,202511-102 ,"144,050.02",
DFID,DFID,01/07/2013,Project delivery costs - supplier services ,Western Asia and Stabilisation Division ,Supplier Name withheld ,200970-101 ,"170,969.46",
DFID,DFID,01/07/2013,Aid Programme - Accountable Grant Payments ,East and Central Africa ,Southern Africa Trust ,202501-104 ,"272,579.69",
DFID,DFID,01/07/2013,Aid Programme - Accountable Grant Payments ,East and Central Africa , INTERPEACE ,203406-101 ,"316,181.93",
DFID,DFID,01/07/2013,Aid Programme - Accountable Grant Payments ,West and Southern Africa ,Banja La Mtsogolo ,201095-101 ,"498,006.47",
DFID,DFID,01/07/2013,Project delivery costs - supplier services ,West and Southern Africa ,MALARIA CONSORTIUM ,104223-101 ,"602,585.00",
DFID,DFID,02/07/2013,Hotels - Accommodation only ,Policy Division ,Recipient name withheld ,100276-101 ,514.47,
DFID,DFID,02/07/2013,Hotels - Accommodation only ,Policy Division ,Recipient name withheld ,202419-104 ,519.12,
DFID,DFID,02/07/2013,Training - Course Fees ,Human Resources Security & Facilities Division ,CAPITA LEARNING &DEVELOPMENT ,100269-157 ,562.00,
DFID,DFID,02/07/2013,Air fares ,East and Central Africa ,Stellar Travels  Agency Ltd ,202527-112 ,636.24,
DFID,DFID,02/07/2013,Hotels - Accommodation only ,West and Southern Africa ,The Golden Tulip Hotel ,101613-101 ,723.49,
DFID,DFID,02/07/2013,Training - Travel & Subsistence ,Western Asia and Stabilisation Division ,OMAR TRAVELS ,101624-101 ,727.17,
DFID,DFID,02/07/2013,Hostile Environment Training ,Finance and Corporate Performance Division ,Pilgrims Group ,100008-101 ,752.10,
DFID,DFID,02/07/2013,Hostile Environment Training ,Communications Division ,Pilgrims Group ,100197-101 ,760.97,
DFID,DFID,02/07/2013,Training - Travel & Subsistence ,Western Asia and Stabilisation Division ,OMAR TRAVELS ,101624-101 ,784.87,
DFID,DFID,02/07/2013,Hotels - Accommodation only ,International Relations Division ,Recipient name withheld ,100240-101 ,814.74,
DFID,DFID,02/07/2013,Hotels - Accommodation only ,West and Southern Africa ,Wood lands Guest Lodge ,101638-105 ,906.70,
DFID,DFID,02/07/2013,Aid Programme - Humanitarian Material Relief Assistance and Services ,Middle East & North Africa Division (MENAD) ,Supplier Name withheld ,203216-135 ,"1,036.53",
DFID,DFID,02/07/2013,Hotels - Accommodation only ,Western Asia and Stabilisation Division ,Supplier Name withheld ,101601-110 ,"1,172.52",
DFID,DFID,02/07/2013,Electricity ,West and Southern Africa ,ZESA ,101638-103 ,"1,224.55",
DFID,DFID,02/07/2013,Medical/Health Services ,West and Southern Africa ,FLIMAS ,100256-101 ,"1,505.87",
DFID,DFID,02/07/2013,Training - Course Fees ,East and Central Africa ,Pilgrims Group ,101633-101 ,"1,521.94",
DFID,DFID,02/07/2013,Medical/Health Services ,West and Southern Africa ,FLIMAS ,101638-101 ,"2,079.54",
DFID,DFID,02/07/2013,Facilities Management payments ,East and Central Africa ,BRITSOURCE INTERNATIONAL ,101628-101 ,"2,336.90",
DFID,DFID,02/07/2013,Data Network - land lines ,Business Solutions Division Level ,CABLE & WIRELESS COMMUN ,203329-103 ,"2,816.72",
DFID,DFID,02/07/2013,Repairs  Maintenance and Alterations - Other Building Costs ,West and Southern Africa ,TCG Aluminium Technology and General Dealers ,101618-101 ,"3,131.94",
DFID,DFID,02/07/2013,Repairs  Maint  Alter - Property & Constrct. Services ,West and Southern Africa ,Contrast Roofing Company ,100257-101 ,"3,156.37",
DFID,DFID,02/07/2013,Secure Staff Accommodation ,West and Southern Africa ,Supplier Name withheld ,101638-103 ,"3,942.18",
DFID,DFID,02/07/2013,Repairs  Maint  Alter - Property & Constrct. Services ,West and Southern Africa ,Contrast Roofing Company ,100257-101 ,"4,824.41",
DFID,DFID,02/07/2013,Secure Staff Accommodation ,West and Southern Africa ,Supplier Name withheld ,101638-103 ,"4,927.73",
DFID,DFID,02/07/2013,Other Building Products ,Asia  Caribbean and Overseas Territories ,UBM Overseas Ltd ,100114-104 ,"5,658.70",
DFID,DFID,02/07/2013,Telephone Usage & services ,Business Solutions Division Level ,CABLE & WIRELESS COMMUN ,200002-185 ,"10,280.00",
DFID,DFID,02/07/2013,Project delivery costs - supplier services ,Western Asia and Stabilisation Division ,Supplier Name withheld ,202190-105 ,"10,852.00",
DFID,DFID,02/07/2013,Hostile Environment Training ,Western Asia and Stabilisation Division ,GroundTruth Consulting ,203940-102 ,"11,655.89",
DFID,DFID,02/07/2013,Project delivery costs - supplier services ,Asia  Caribbean and Overseas Territories ,CAMBRIDGE EDUCATION LTD ,114487-103 ,"12,500.00",
DFID,DFID,02/07/2013,Hostile Environment Training ,Western Asia and Stabilisation Division ,GroundTruth Consulting ,203940-102 ,"12,726.00",
DFID,DFID,02/07/2013,Data Network - land lines ,Business Solutions Division Level ,CABLE & WIRELESS COMMUN ,203329-103 ,"13,186.56",
DFID,DFID,02/07/2013,Data Network - land lines ,Business Solutions Division Level ,CABLE & WIRELESS COMMUN ,200002-185 ,"14,087.86",
DFID,DFID,02/07/2013,Aid Programme - Accountable Grant Payments ,International Finance Division ,SCHOOL OF ORIENTAL & AFRICAN STUDIES ,200973-101 ,"21,638.62",
DFID,DFID,02/07/2013,Project delivery costs - supplier services ,Policy Division ,Triple Line Crown Agents JV. ,100045-101 ,"23,740.88",
DFID,DFID,02/07/2013,Other Building Products ,Asia  Caribbean and Overseas Territories ,PRIMEPOWER INTERNATIONAL LTD ,100114-104 ,"24,961.00",
DFID,DFID,02/07/2013,Hostile Environment Training ,Western Asia and Stabilisation Division ,GroundTruth Consulting ,203940-102 ,"41,670.00",
DFID,DFID,02/07/2013,Project delivery costs - supplier services ,Western Asia and Stabilisation Division ,Supplier Name withheld ,202190-105 ,"44,256.00",
DFID,DFID,02/07/2013,Hostile Environment Training ,Western Asia and Stabilisation Division ,GroundTruth Consulting ,203940-102 ,"44,338.50",
DFID,DFID,02/07/2013,Project delivery costs - supplier services ,Policy Division ,PRICEWATERHOUSECOOPERS ,202648-101 ,"46,840.86",
DFID,DFID,02/07/2013,Project delivery costs - supplier services ,Western Asia and Stabilisation Division ,Supplier Name withheld ,202190-105 ,"57,131.00",
DFID,DFID,02/07/2013,Project delivery costs - supplier services ,Policy Division ,Triple Line Crown Agents JV. ,201242-101 ,"58,124.27",
DFID,DFID,02/07/2013,Project delivery costs - supplier services ,Western Asia and Stabilisation Division ,OXFORD POLICY MANAGEMENT ,202413-102 ,"100,603.40",
DFID,DFID,02/07/2013,Project delivery costs - supplier services ,Asia  Caribbean and Overseas Territories ,GHK CONSULTING LTD ,114168-101 ,"104,670.00",
DFID,DFID,02/07/2013,Aid Programme - Accountable Grant Payments ,East and Central Africa ,SAFERWORLD ,202527-113 ,"107,722.00",
DFID,DFID,02/07/2013,Aid Programme - Partnership Programme Arrangements ,Policy Division ,COLLABORATIVE LEARNING PROJECTS ,202829-101 ,"114,038.25",
DFID,DFID,02/07/2013,Data Network - land lines ,Business Solutions Division Level ,CABLE & WIRELESS COMMUN ,200002-185 ,"138,951.00",Monthly (ECHO) Data Link Overseas land line costs
DFID,DFID,02/07/2013,Project delivery costs - supplier services ,Western Asia and Stabilisation Division ,OXFORD POLICY MANAGEMENT ,202413-102 ,"150,905.10",
DFID,DFID,02/07/2013,Aid Programme - Joint programme contribution ,East and Central Africa ,UNDP CONTRIBUTIONS GBP ,203382-109 ,"184,687.00",
DFID,DFID,02/07/2013,Project delivery costs - supplier services ,West and Southern Africa ,GRM INTERNATIONAL LTD ,202098-101 ,"191,181.83",
DFID,DFID,02/07/2013,Aid Programme - Accountable Grant Payments ,East and Central Africa ,International Institute for Environment and Development (IIED) ,203574-110 ,"195,277.00",
DFID,DFID,02/07/2013,Aid Programme - Core contributions ,Policy Division ,IBRD HSBC T ,202870-101 ,"200,000.00",
DFID,DFID,02/07/2013,Aid Programme - Voluntary contributions ,Middle East & North Africa Division (MENAD) ,Supplier Name withheld ,203216-115 ,"252,714.00",
DFID,DFID,02/07/2013,Aid Programme - Accountable Grant Payments ,Research and Evidence Division ,Population Council ,202344-105 ,"425,921.00",
DFID,DFID,02/07/2013,Project delivery costs - supplier services ,East and Central Africa ,ADAM SMITH INTERNATIONAL  LTD ,202851-101 ,"454,122.93",
DFID,DFID,02/07/2013,Aid Programme - Accountable Grant Payments ,West and Southern Africa ,Population Council ,202344-102 ,"480,294.00",
DFID,DFID,02/07/2013,Aid Programme - Accountable Grant Payments ,Asia  Caribbean and Overseas Territories ,THE OPEN UNIVERSITY ,203480-101 ,"492,386.44",
DFID,DFID,02/07/2013,Aid Programme - Partnership Programme Arrangements ,Policy Division ,HELPAGE INTERNATIONAL ,202566-101 ,"667,567.25",
DFID,DFID,02/07/2013,Aid Programme - Accountable Grant Payments ,West and Southern Africa ,INTERNATIONAL RESCUE COMMITTEE UK ,105862-103 ,"677,368.00",
DFID,DFID,02/07/2013,Aid Programme - Pooled/Basket funding ,East and Central Africa ,FOREIGN INVESTMENT ADVISORY SERVICE ,203348-102 ,"975,000.00",
DFID,DFID,02/07/2013,Project delivery costs - supplier services ,Asia  Caribbean and Overseas Territories ,ADAM SMITH INTERNATIONAL  LTD ,114234-102 ,"1,533,928.00",
DFID,DFID,02/07/2013,Aid Programme - Accountable Grant Payments ,West and Southern Africa ,INTERNATIONAL RESCUE COMMITTEE UK ,105862-103 ,"9,134,038.00",
DFID,DFID,03/07/2013,Air fares ,West and Southern Africa ,Harvey World Travel Centurion ,101631-101 ,563.74,
DFID,DFID,03/07/2013,Property rates ,West and Southern Africa ,City of Harare ,101638-103 ,566.75,
DFID,DFID,03/07/2013,Medical/Health Services ,Western Asia and Stabilisation Division ,INTERHEALTH ,203940-103 ,576.00,
DFID,DFID,03/07/2013,Vehicle Petrol & Oil ,West and Southern Africa ,British High Commission ,100144-101 ,581.53,
DFID,DFID,03/07/2013,Hotels - Accommodation only ,Asia  Caribbean and Overseas Territories ,Recipient name withheld ,101621-108 ,620.14,
DFID,DFID,03/07/2013,Training - Course Fees ,West and Southern Africa ,THE INSTITUTE FOR FISCAL STUDIES ,201763-101 ,641.67,
DFID,DFID,03/07/2013,Training - Course Fees ,Research and Evidence Division ,INSIGHTS LEARNING & DEVELOPMENT LTD ,100039-101 ,745.20,
DFID,DFID,03/07/2013,Training - Course Fees ,East and Central Africa ,INSIGHTS LEARNING & DEVELOPMENT LTD ,101634-101 ,828.00,
DFID,DFID,03/07/2013,Project delivery costs - supplier services ,Asia  Caribbean and Overseas Territories ,Web Werks India Pvt. Ltd. ,114506-101 ,848.01,
DFID,DFID,03/07/2013,Contract & Agency Staff ,Finance and Corporate Performance Division ,Hays Specialist Recruitment Ltd ,100201-101 ,854.69,
DFID,DFID,03/07/2013,Project delivery costs - supplier services ,Business Solutions Division Level ,Parity Resources ,200003-154 ,870.48,
DFID,DFID,03/07/2013,Contract & Agency Staff ,Finance and Corporate Performance Division ,Hays Specialist Recruitment Ltd ,100201-101 ,"1,068.36",
DFID,DFID,03/07/2013,Other passenger transport ,East and Central Africa ,Safeway Travel and Tour ,202913-104 ,"1,073.46",
DFID,DFID,03/07/2013,Project delivery costs - supplier services ,East and Central Africa ,CHARLES KENDALL & PARTNERS LIMITED (PROCUREMENT) ,202513-106 ,"1,284.75",
DFID,DFID,03/07/2013,Vehicle Hire Charges ,East and Central Africa ,Adika Tour and Travel PLC ,202913-104 ,"1,310.14",
DFID,DFID,03/07/2013,Vehicle Petrol & Oil ,West and Southern Africa ,British High Commission ,101618-101 ,"1,423.75",
DFID,DFID,03/07/2013,Hotels - Accommodation only ,Internal Audit ,Recipient name withheld ,100121-101 ,"1,475.13",
DFID,DFID,03/07/2013,Repairs  Maint  Alter - Property & Constrct. Services ,East and Central Africa ,Campbell Project Management Services ,100082-101 ,"1,523.52",
DFID,DFID,03/07/2013,Training - Course Fees ,Western Asia and Stabilisation Division ,Nohman Ishtiaq ,101624-101 ,"2,114.68",
DFID,DFID,03/07/2013,Project delivery costs - supplier services ,Asia  Caribbean and Overseas Territories ,EnviClim Net ,114058-101 ,"2,186.98",
DFID,DFID,03/07/2013,Project delivery costs - supplier services ,Asia  Caribbean and Overseas Territories ,SPC MANAGEMENT SERVICES PRIVATE LIMI ,114177-101 ,"2,247.55",
DFID,DFID,03/07/2013,Project delivery costs - supplier services ,Asia  Caribbean and Overseas Territories ,Crisil Risk and Infrastructure Solutions Limited ,202736-101 ,"3,166.08",
DFID,DFID,03/07/2013,Auditors Remuneration & Expenses - Cash ,Asia  Caribbean and Overseas Territories ,A Wahab and Co. ,113976-103 ,"3,580.29",
DFID,DFID,03/07/2013,Project delivery costs - supplier services ,Western Asia and Stabilisation Division ,Jawairia Jilani ,114433-103 ,"3,681.23",
DFID,DFID,03/07/2013,Project delivery costs - supplier services ,West and Southern Africa ,Sustainability Consulting ,202536-103 ,"4,442.38",
DFID,DFID,03/07/2013,Secure Staff Accommodation ,West and Southern Africa ,Supplier Name withheld ,101638-103 ,"4,533.51",
DFID,DFID,03/07/2013,Project delivery costs - supplier services ,West and Southern Africa ,Kimberly van Niekerk ,202536-103 ,"5,716.08",
DFID,DFID,03/07/2013,Project delivery costs - supplier services ,West and Southern Africa ,Olufunke Asaolu ,202536-103 ,"6,677.05",
DFID,DFID,03/07/2013,Project delivery costs - supplier services ,Asia  Caribbean and Overseas Territories ,PRICEWATERHOUSECOOPERS DEVELOPMENT ,107949-101 ,"7,958.00",
DFID,DFID,03/07/2013,Project delivery costs - supplier services ,Asia  Caribbean and Overseas Territories ,PRICEWATERHOUSECOOPERS DEVELOPMENT ,107949-101 ,"7,958.00",
DFID,DFID,03/07/2013,Project delivery costs - supplier services ,Asia  Caribbean and Overseas Territories ,PRICEWATERHOUSECOOPERS DEVELOPMENT ,107949-101 ,"7,958.00",
DFID,DFID,03/07/2013,Project delivery costs - supplier services ,Asia  Caribbean and Overseas Territories ,PRICEWATERHOUSECOOPERS DEVELOPMENT ,107949-101 ,"7,958.00",
DFID,DFID,03/07/2013,Project delivery costs - supplier services ,Asia  Caribbean and Overseas Territories ,PRICEWATERHOUSECOOPERS DEVELOPMENT ,107949-101 ,"7,958.00",
DFID,DFID,03/07/2013,Project delivery costs - supplier services ,Asia  Caribbean and Overseas Territories ,South Asian Network on Economic Modeling ,202123-105 ,"8,995.50",
DFID,DFID,03/07/2013,Project delivery costs - supplier services ,Asia  Caribbean and Overseas Territories ,PRICEWATERHOUSECOOPERS DEVELOPMENT ,107949-101 ,"13,054.00",
DFID,DFID,03/07/2013,Project delivery costs - supplier services ,Asia  Caribbean and Overseas Territories ,PRICEWATERHOUSECOOPERS DEVELOPMENT ,107949-101 ,"13,054.00",
DFID,DFID,03/07/2013,Project delivery costs - supplier services ,Asia  Caribbean and Overseas Territories ,PRICEWATERHOUSECOOPERS DEVELOPMENT ,107949-101 ,"13,054.00",
DFID,DFID,03/07/2013,Project delivery costs - supplier services ,Asia  Caribbean and Overseas Territories ,PRICEWATERHOUSECOOPERS DEVELOPMENT ,107949-101 ,"13,054.00",
DFID,DFID,03/07/2013,Project delivery costs - supplier services ,East and Central Africa ,OXFORD POLICY MANAGEMENT ,203109-105 ,"20,276.00",
DFID,DFID,03/07/2013,Project delivery costs - supplier services ,Asia  Caribbean and Overseas Territories ,GHK CONSULTING LTD ,203484-101 ,"20,645.00",
DFID,DFID,03/07/2013,Project delivery costs - supplier services ,West and Southern Africa ,FOREIGN AND COMMONWEALTH OFFICE (FCO) ,101629-101 ,"21,000.00",
DFID,DFID,03/07/2013,Project delivery costs - supplier services ,Asia  Caribbean and Overseas Territories ,GHK CONSULTING LTD ,203484-101 ,"24,489.00",
DFID,DFID,03/07/2013,Project delivery costs - supplier services ,West and Southern Africa ,CHARLES KENDALL & PARTNERS LIMITED (PROCUREMENT) ,113961-106 ,"30,512.45",
DFID,DFID,03/07/2013,Repairs  Maint  Alter - Property & Constrct. Services ,Asia  Caribbean and Overseas Territories ,FCO SERVICES ,201652-105 ,"33,357.28",
DFID,DFID,03/07/2013,DFID Purchased Relief Supplies ,West and Southern Africa ,CHARLES KENDALL & PARTNERS LIMITED (PROCUREMENT) ,202214-106 ,"36,505.74",
DFID,DFID,03/07/2013,Project delivery costs - supplier services ,Asia  Caribbean and Overseas Territories ,PRICEWATERHOUSECOOPERS DEVELOPMENT ,107949-101 ,"38,628.00",
DFID,DFID,03/07/2013,Project delivery costs - supplier services ,Asia  Caribbean and Overseas Territories ,PRICEWATERHOUSECOOPERS DEVELOPMENT ,107949-101 ,"38,628.00",
DFID,DFID,03/07/2013,Project delivery costs - supplier services ,Asia  Caribbean and Overseas Territories ,PRICEWATERHOUSECOOPERS DEVELOPMENT ,107949-101 ,"38,628.00",
DFID,DFID,03/07/2013,Project delivery costs - supplier services ,Asia  Caribbean and Overseas Territories ,GHK CONSULTING LTD ,203484-101 ,"41,132.00",
DFID,DFID,03/07/2013,Project delivery costs - supplier services ,Policy Division ,BRITISH COUNCIL ,111543-101 ,"50,670.70",
DFID,DFID,03/07/2013,Aid Programme - Challenge Fund payments ,Policy Division ,Triple Line Crown Agents JV. ,201242-101 ,"66,852.63",
DFID,DFID,03/07/2013,Property rates ,Group Operations ,CITY OF WESTMINSTER ,203717-101 ,"209,289.00",Property rates for DFID HQ (London) 2013/14 July Instalment
DFID,DFID,03/07/2013,Aid Programme - Accountable Grant Payments ,East and Central Africa ,Act! (Act.Change.Transform) ,203574-111 ,"283,946.00",
DFID,DFID,03/07/2013,Aid Programme - Voluntary contributions ,Policy Division ,UNDP CONTRIBUTIONS ACCOUNT ,203608-108 ,"300,000.00",
DFID,DFID,03/07/2013,Project delivery costs - supplier services ,Western Asia and Stabilisation Division ,DAI Europe ,114433-102 ,"329,489.62",
DFID,DFID,03/07/2013,Aid Programme - Voluntary contributions ,East and Central Africa ,World Food  Programme ,202995-104 ,"1,400,000.00",
DFID,DFID,04/07/2013,Cleaning Costs ,Asia  Caribbean and Overseas Territories ,Property Care Services Bangladesh Pvt Ltd ,100025-101 ,519.66,
DFID,DFID,04/07/2013,Vehicle Petrol & Oil ,Asia  Caribbean and Overseas Territories ,Sikder Filling and Serivce Station ,100025-101 ,541.61,
DFID,DFID,04/07/2013,Hostile Environment Training ,West and Southern Africa ,Pilgrims Group ,101622-106 ,580.97,
DFID,DFID,04/07/2013,Hotels - Accommodation only ,West and Southern Africa ,Supplier Name withheld ,101622-103 ,595.38,
DFID,DFID,04/07/2013,Hotels - Accommodation only ,International Relations Division ,Recipient name withheld ,100240-101 ,595.92,
DFID,DFID,04/07/2013,Taxi costs ,Business Solutions Division Level ,d&m taxis ,200001-101 ,600.00,
DFID,DFID,04/07/2013,Hotels - Accommodation only ,West and Southern Africa ,Supplier Name withheld ,100152-106 ,793.44,
DFID,DFID,04/07/2013,Telephone Usage & services ,West and Southern Africa ,Scancom Limited ,101613-101 ,815.74,
DFID,DFID,04/07/2013,Hotels - Accommodation only ,Policy Division ,Recipient name withheld ,100276-101 ,885.00,
DFID,DFID,04/07/2013,Hotels - Accommodation only ,West and Southern Africa ,Alisa Hotel North Ridge ,100189-101 ,910.63,
DFID,DFID,04/07/2013,Repairs  Maintenance and Alterations - Other Building Costs ,Asia  Caribbean and Overseas Territories ,Anex Engineering & Electric Company ,201652-104 ,"1,009.48",
DFID,DFID,04/07/2013,Air fares ,West and Southern Africa ,Harvey World Travel Centurion ,101631-101 ,"1,009.87",
DFID,DFID,04/07/2013,Interview expenses ,Research and Evidence Division ,Recipient name withheld ,202348-104 ,"1,126.32",
DFID,DFID,04/07/2013,Hotels - Accommodation only ,West and Southern Africa ,Supplier Name withheld ,101622-105 ,"1,460.69",
DFID,DFID,04/07/2013,Hotels - Accommodation only ,West and Southern Africa ,Supplier Name withheld ,101622-105 ,"1,804.49",
DFID,DFID,04/07/2013,Repairs  Maint  Alter - Property & Constrct. Services ,West and Southern Africa ,Prime Power Ltd ,101622-105 ,"2,389.08",
DFID,DFID,04/07/2013,Storage & Distribution costs ,West and Southern Africa ,PICKFORDS LTD ,100214-101 ,"2,994.30",
DFID,DFID,04/07/2013,Training Providers/Facilitation Services ,Western Asia and Stabilisation Division ,SixtyOne Whitehall ,203939-103 ,"3,024.00",
DFID,DFID,04/07/2013,Storage & Distribution costs ,Asia  Caribbean and Overseas Territories ,PICKFORDS LTD ,101604-101 ,"3,467.98",
DFID,DFID,04/07/2013,Storage & Distribution costs ,Western Asia and Stabilisation Division ,PICKFORDS LTD ,101624-101 ,"4,133.01",
DFID,DFID,04/07/2013,Project delivery costs - supplier services ,Asia  Caribbean and Overseas Territories ,PETER BROOKE ,114186-101 ,"9,875.76",
DFID,DFID,04/07/2013,Repairs  Maint  Alter - Property & Constrct. Services ,West and Southern Africa ,Prime Power Ltd ,100153-101 ,"10,346.90",
DFID,DFID,04/07/2013,Project delivery costs - supplier services ,East and Central Africa ,COFFEY INTERNATIONAL DEVELOPMENT LTD ,200779-107 ,"16,759.78",
DFID,DFID,04/07/2013,Project delivery costs - supplier services ,Group Operations ,TURNER & TOWNSEND ,203717-101 ,"18,380.40",
DFID,DFID,04/07/2013,DFID Purchased Relief Supplies ,West and Southern Africa ,CHARLES KENDALL & PARTNERS LIMITED (PROCUREMENT) ,202214-106 ,"26,996.38",
DFID,DFID,04/07/2013,Project delivery costs - supplier services ,East and Central Africa ,CHARLES KENDALL & PARTNERS LIMITED (PROCUREMENT) ,202513-101 ,"51,807.00",
DFID,DFID,04/07/2013,Aid Programme - Challenge Fund payments ,Policy Division ,Triple Line Crown Agents JV. ,201242-101 ,"100,033.40",
DFID,DFID,04/07/2013,Project delivery costs - supplier services ,East and Central Africa ,THE MEDIAE COMPANY ,202657-101 ,"130,560.00",
DFID,DFID,04/07/2013,Project delivery costs - supplier services ,Policy Division ,IMPERIAL COLLEGE LONDON ,200706-101 ,"318,875.24",
DFID,DFID,04/07/2013,Aid Programme - Accountable Grant Payments ,East and Central Africa ,VOLUNTARY SERVICE OVERSEAS ,200250-117 ,"456,110.00",
DFID,DFID,04/07/2013,Project delivery costs - supplier services ,West and Southern Africa ,Futures Group Europe ,202295-102 ,"469,858.67",
DFID,DFID,04/07/2013,DFID Purchased Relief Supplies ,East and Central Africa ,CHARLES KENDALL & PARTNERS LIMITED (PROCUREMENT) ,202513-101 ,"844,313.53",
DFID,DFID,04/07/2013,Aid Programme - Core contributions ,East and Central Africa ,FINANCIAL SECTOR DEEPENING ,201722-102 ,"2,500,000.00",
DFID,DFID,04/07/2013,Encashment of Promissory Notes ,International Finance Division ,International Development Association ,200269-105 ,"24,540,000.00",
DFID,DFID,04/07/2013,Encashment of Promissory Notes ,International Finance Division ,International Development Association ,200269-104 ,"36,280,000.00",
DFID,DFID,05/07/2013,Hotels - Accommodation only ,Research and Evidence Division ,Recipient name withheld ,202392-102 ,512.38,
DFID,DFID,05/07/2013,Facilities Management payments ,West and Southern Africa ,Hema Trading ,101629-101 ,517.40,
DFID,DFID,05/07/2013,Cleaning Costs ,West and Southern Africa ,Laurmann &Company Ltd ,101622-105 ,529.26,
DFID,DFID,05/07/2013,Project delivery costs - supplier services ,International Relations Division ,Foreign & Commonwealth Office ,201711-104 ,559.87,
DFID,DFID,05/07/2013,Generators & spares ,Asia  Caribbean and Overseas Territories ,NORTHERN ELECTRIC CABLES (P) LTD ,201689-105 ,570.64,
DFID,DFID,05/07/2013,Air fares ,Asia  Caribbean and Overseas Territories ,Foreign & Commonwealth Office ,101604-101 ,586.88,
DFID,DFID,05/07/2013,Air fares ,Asia  Caribbean and Overseas Territories ,Foreign & Commonwealth Office ,101604-101 ,587.45,
DFID,DFID,05/07/2013,Air fares ,Asia  Caribbean and Overseas Territories ,Foreign & Commonwealth Office ,101604-101 ,587.51,
DFID,DFID,05/07/2013,Cleaning Costs ,West and Southern Africa ,Yeane Enterprises ,101629-101 ,589.60,
DFID,DFID,05/07/2013,Air fares ,Asia  Caribbean and Overseas Territories ,Foreign & Commonwealth Office ,101604-101 ,643.83,
DFID,DFID,05/07/2013,Facilities Management payments ,West and Southern Africa ,Clemto Investments Ltd ,101622-105 ,651.40,
DFID,DFID,05/07/2013,Generators & spares ,West and Southern Africa ,Abrahim A H Daklalah ($) ,101629-101 ,658.33,
DFID,DFID,05/07/2013,Air fares ,Asia  Caribbean and Overseas Territories ,Foreign & Commonwealth Office ,101604-101 ,661.31,
DFID,DFID,05/07/2013,Data Network - land lines ,International Relations Division ,Foreign & Commonwealth Office ,201711-101 ,715.20,
DFID,DFID,05/07/2013,Generators & spares ,West and Southern Africa ,Recipient name withheld ,101629-101 ,724.16,
DFID,DFID,05/07/2013,Vehicle Petrol & Oil ,Asia  Caribbean and Overseas Territories ,QUTAB SERVICE STATION ,201689-105 ,726.76,
DFID,DFID,05/07/2013,Air fares ,Asia  Caribbean and Overseas Territories ,Foreign & Commonwealth Office ,101604-101 ,758.89,
DFID,DFID,05/07/2013,Hotels - Accommodation only ,Asia  Caribbean and Overseas Territories ,Foreign & Commonwealth Office ,101604-101 ,770.01,
DFID,DFID,05/07/2013,Data Network - land lines ,Business Solutions Division Level ,IPNX Nigeria Ltd ,200002-121 ,806.11,
DFID,DFID,05/07/2013,Postage Costs ,Group Operations ,Royal Mail Courier Services Ltd ,201157-101 ,810.00,
DFID,DFID,05/07/2013,Facilities Management payments ,East and Central Africa ,The Environmental Consultancy Limited (trading as RPS Consultants) ,101628-101 ,876.50,
DFID,DFID,05/07/2013,Training - Course Fees ,Policy Division ,INSIGHTS LEARNING & DEVELOPMENT LTD ,100274-103 ,910.80,
DFID,DFID,05/07/2013,Training - Course Fees ,Human Resources Security & Facilities Division ,INSIGHTS LEARNING & DEVELOPMENT LTD ,100269-158 ,910.80,
DFID,DFID,05/07/2013,Training - Course Fees ,East and Central Africa ,THE UNIVERSITY OF YORK ,101633-101 ,914.00,
DFID,DFID,05/07/2013,Hotels - Accommodation only ,International Finance Division ,Recipient name withheld ,201723-102 ,972.33,
DFID,DFID,05/07/2013,Facilities Management payments ,West and Southern Africa ,Fracham Company ,101622-103 ,"1,042.24",
DFID,DFID,05/07/2013,Computer software maintenance ,Business Solutions Division Level ,MTI Technology Ltd ,200001-101 ,"1,049.26",
DFID,DFID,05/07/2013,Secure Staff Accommodation ,Asia  Caribbean and Overseas Territories ,Supplier Name withheld ,101621-103 ,"1,069.80",
DFID,DFID,05/07/2013,Training - Course Fees ,Finance and Corporate Performance Division ,INSIGHTS LEARNING & DEVELOPMENT LTD ,202836-102 ,"1,076.40",
DFID,DFID,05/07/2013,Facilities Management payments ,Asia  Caribbean and Overseas Territories ,Firesec India Systems (P) Ltd. ,201689-105 ,"1,339.93",
DFID,DFID,05/07/2013,Secure Staff Accommodation ,Asia  Caribbean and Overseas Territories ,Supplier Name withheld ,101621-103 ,"1,395.39",
DFID,DFID,05/07/2013,Secure Staff Accommodation ,Asia  Caribbean and Overseas Territories ,Supplier Name withheld ,101621-103 ,"1,516.72",
DFID,DFID,05/07/2013,Project delivery costs - supplier services ,Asia  Caribbean and Overseas Territories ,Foreign & Commonwealth Office ,203478-105 ,"1,540.70",
DFID,DFID,05/07/2013,Secure Staff Accommodation ,Asia  Caribbean and Overseas Territories ,Supplier Name withheld ,101621-103 ,"1,557.17",
DFID,DFID,05/07/2013,Secure Staff Accommodation ,Asia  Caribbean and Overseas Territories ,Supplier Name withheld ,101621-103 ,"1,617.84",
DFID,DFID,05/07/2013,Secure Staff Accommodation ,Asia  Caribbean and Overseas Territories ,Supplier Name withheld ,100150-103 ,"1,678.51",
DFID,DFID,05/07/2013,Secure Staff Accommodation ,Asia  Caribbean and Overseas Territories ,Supplier Name withheld ,200773-104 ,"1,830.34",
DFID,DFID,05/07/2013,Facilities Management payments ,West and Southern Africa ,Mr Eze Samson ,101622-105 ,"1,922.45",
DFID,DFID,05/07/2013,Secure Staff Accommodation ,Asia  Caribbean and Overseas Territories ,Supplier Name withheld ,101621-103 ,"2,022.30",
DFID,DFID,05/07/2013,Training Providers/Facilitation Services ,East and Central Africa ,INSTITUT FRANCAIS ,101625-104 ,"2,280.30",
DFID,DFID,05/07/2013,Secure Staff Accommodation ,Asia  Caribbean and Overseas Territories ,Supplier Name withheld ,101621-103 ,"2,325.64",
DFID,DFID,05/07/2013,Secure Staff Accommodation ,Asia  Caribbean and Overseas Territories ,Supplier Name withheld ,101621-103 ,"2,325.64",
DFID,DFID,05/07/2013,Secure Staff Accommodation ,Asia  Caribbean and Overseas Territories ,Supplier Name withheld ,101621-103 ,"2,426.76",
DFID,DFID,05/07/2013,Secure Staff Accommodation ,Asia  Caribbean and Overseas Territories ,Supplier Name withheld ,101621-103 ,"2,426.76",
DFID,DFID,05/07/2013,Secure Staff Accommodation ,Asia  Caribbean and Overseas Territories ,Supplier Name withheld ,101621-103 ,"2,426.76",
DFID,DFID,05/07/2013,Secure Staff Accommodation ,Asia  Caribbean and Overseas Territories ,Supplier Name withheld ,101621-103 ,"2,527.87",
DFID,DFID,05/07/2013,Secure Staff Accommodation ,Asia  Caribbean and Overseas Territories ,Supplier Name withheld ,200609-103 ,"2,527.87",
DFID,DFID,05/07/2013,Secure Staff Accommodation ,Asia  Caribbean and Overseas Territories ,Supplier Name withheld ,101621-103 ,"2,628.99",
DFID,DFID,05/07/2013,Secure Staff Accommodation ,Asia  Caribbean and Overseas Territories ,Supplier Name withheld ,101621-103 ,"2,730.10",
DFID,DFID,05/07/2013,Secure Staff Accommodation ,Asia  Caribbean and Overseas Territories ,Supplier Name withheld ,101621-103 ,"2,730.10",
DFID,DFID,05/07/2013,Consultancy Services ,Finance and Corporate Performance Division ,Unit 4 ,200173-102 ,"2,891.19",
DFID,DFID,05/07/2013,Recruitment costs ,East and Central Africa ,Leighann Skibinsky ,202913-104 ,"2,992.29",
DFID,DFID,05/07/2013,Training Providers/Facilitation Services ,East and Central Africa ,CAPITA LEARNING &DEVELOPMENT ,101625-103 ,"3,215.00",
DFID,DFID,05/07/2013,Secure Staff Accommodation ,Asia  Caribbean and Overseas Territories ,Foreign & Commonwealth Office ,101604-101 ,"3,901.93",
DFID,DFID,05/07/2013,Legal costs ,Asia  Caribbean and Overseas Territories ,Amarchand & Mangaldas & Suresh A Shroff & Co. ,107955-101 ,"4,383.33",
DFID,DFID,05/07/2013,Secure Staff Accommodation ,Asia  Caribbean and Overseas Territories ,Foreign & Commonwealth Office ,101604-101 ,"5,202.58",
DFID,DFID,05/07/2013,FCO shared service charges ,International Relations Division ,Foreign & Commonwealth Office ,201711-101 ,"6,407.58",
DFID,DFID,05/07/2013,Electricity ,Asia  Caribbean and Overseas Territories ,BSES RAJDHANI POWER LIMITED ,201689-105 ,"8,397.64",
DFID,DFID,05/07/2013,Project delivery costs - supplier services ,East and Central Africa ,Professor Bob Snow ,202481-105 ,"10,000.00",
DFID,DFID,05/07/2013,Storage & Distribution costs ,Asia  Caribbean and Overseas Territories ,PICKFORDS LTD ,101621-101 ,"10,812.66",
DFID,DFID,05/07/2013,Project delivery costs - supplier services ,East and Central Africa ,JHughesDevelopment  Inc ,203109-101 ,"12,166.78",
DFID,DFID,05/07/2013,Project delivery costs - supplier services ,East and Central Africa ,LTS International Ltd. ,201866-106 ,"12,189.42",
DFID,DFID,05/07/2013,Secure Staff Accommodation ,International Finance Division ,Foreign & Commonwealth Office ,201723-102 ,"12,451.19",
DFID,DFID,05/07/2013,Project delivery costs - supplier services ,Research and Evidence Division ,HTSPE LTD ,202242-108 ,"12,571.08",
DFID,DFID,05/07/2013,Project delivery costs - supplier services ,West and Southern Africa ,ELIZABETH GRESTY ,203861-102 ,"16,340.53",
DFID,DFID,05/07/2013,Oil - Other Utilities ,East and Central Africa ,TAAM Petroleum Ltd(US$) ,202586-101 ,"17,338.54",
DFID,DFID,05/07/2013,Project delivery costs - supplier services ,West and Southern Africa ,COFFEY INTERNATIONAL DEVELOPMENT LTD ,104190-109 ,"20,241.94",
DFID,DFID,05/07/2013,Project delivery costs - supplier services ,West and Southern Africa ,EUROSIS  Consultoria e Formação em Gestão  Lda ,103993-102 ,"22,194.90",
DFID,DFID,05/07/2013,Project delivery costs - supplier services ,West and Southern Africa ,EUROSIS  Consultoria e Formação em Gestão  Lda ,103993-102 ,"22,194.90",
DFID,DFID,05/07/2013,Project delivery costs - supplier services ,Western Asia and Stabilisation Division ,Supplier Name withheld ,200898-103 ,"22,663.00",
DFID,DFID,05/07/2013,Secure Staff Accommodation ,West and Southern Africa ,Supplier Name withheld ,101629-101 ,"23,000.00",
DFID,DFID,05/07/2013,Secure Staff Accommodation ,West and Southern Africa ,Supplier Name withheld ,101629-101 ,"23,000.00",
DFID,DFID,05/07/2013,Aid Programme - Accountable Grant Payments ,Conflict Humanitarian and Security Division ,UK-Med ,202878-102 ,"25,391.31",
DFID,DFID,05/07/2013,Oil - Other Utilities ,East and Central Africa ,TAAM Petroleum Ltd(US$) ,202594-101 ,"26,007.82",Cost of supply of fuel for generators in DFID office & secure staff accommodation in South Sudan
DFID,DFID,05/07/2013,Project delivery costs - supplier services ,Policy Division ,PATH ,202674-101 ,"29,697.75",
DFID,DFID,05/07/2013,Project delivery costs - supplier services ,West and Southern Africa ,ATOS CONSULTING LIMITED ,203230-101 ,"38,137.20",
DFID,DFID,05/07/2013,Aid Programme - Accountable Grant Payments ,Asia  Caribbean and Overseas Territories ,GVEP INTERNATIONAL LTD ,201986-101 ,"73,502.00",
DFID,DFID,05/07/2013,Furniture & Fittings ,East and Central Africa ,IPA-International Procurement Agency (BV) ,202717-101 ,"75,396.63",
DFID,DFID,05/07/2013,Project delivery costs - supplier services ,Asia  Caribbean and Overseas Territories ,INFRASTRUCTURE PROFESSIONALS ENTERPRISE ,203217-101 ,"84,427.30",
DFID,DFID,05/07/2013,Project delivery costs - supplier services ,West and Southern Africa ,COFFEY INTERNATIONAL DEVELOPMENT LTD ,104190-109 ,"87,238.51",
DFID,DFID,05/07/2013,Project delivery costs - supplier services ,West and Southern Africa ,COFFEY INTERNATIONAL DEVELOPMENT LTD ,104190-103 ,"104,710.91",
DFID,DFID,05/07/2013,Aid Programme - Trust Funds contributions ,Asia  Caribbean and Overseas Territories ,UNDP CONTRIBUTIONS ACCOUNT ,201376-101 ,"108,333.00",
DFID,DFID,05/07/2013,Project delivery costs - supplier services ,Asia  Caribbean and Overseas Territories ,INFRASTRUCTURE PROFESSIONALS ENTERPRISE ,203217-101 ,"122,809.48",
DFID,DFID,05/07/2013,Project delivery costs - supplier services ,Asia  Caribbean and Overseas Territories ,INFRASTRUCTURE PROFESSIONALS ENTERPRISE ,203217-101 ,"122,809.48",
DFID,DFID,05/07/2013,Project delivery costs - supplier services ,Asia  Caribbean and Overseas Territories ,INFRASTRUCTURE PROFESSIONALS ENTERPRISE ,203217-101 ,"122,809.48",
DFID,DFID,05/07/2013,Project delivery costs - supplier services ,Asia  Caribbean and Overseas Territories ,ADAM SMITH INTERNATIONAL  LTD ,201367-103 ,"170,582.23",
DFID,DFID,05/07/2013,Aid Programme - Accountable Grant Payments ,West and Southern Africa ,Development Aid from People to People ,202623-103 ,"234,457.00",
DFID,DFID,05/07/2013,Project delivery costs - supplier services ,West and Southern Africa ,DAI Europe ,201958-102 ,"348,690.36",
DFID,DFID,05/07/2013,Project delivery costs - supplier services ,Western Asia and Stabilisation Division ,Supplier Name withheld ,114488-101 ,"569,073.00",
DFID,DFID,05/07/2013,Aid Programme - Partnership Programme Arrangements ,Policy Division ,Fairtrade Labelling Organizations International e.V. ,201718-101 ,"750,000.00",
DFID,DFID,05/07/2013,Aid Programme - Partnership Programme Arrangements ,Policy Division ,The Global Alliance for Improved Nutrition ,202780-101 ,"787,449.25",
DFID,DFID,05/07/2013,Aid Programme - Accountable Grant Payments ,West and Southern Africa ,THE SAVE THE CHILDREN FUND ,201874-102 ,"969,677.00",
DFID,DFID,05/07/2013,Aid Programme - Trust Funds contributions ,Asia  Caribbean and Overseas Territories ,IBRD HSBC T ,202775-103 ,"1,000,000.00",
DFID,DFID,05/07/2013,Aid Programme - Partnership Programme Arrangements ,Policy Division ,International Planned Parent ,114146-101 ,"2,150,000.00",
DFID,DFID,06/07/2013,Hotels - Accommodation only ,Conflict Humanitarian and Security Division ,Recipient name withheld ,202410-101 ,981.29,
DFID,DFID,08/07/2013,Repairs  Maintenance and Alterations - Other Building Costs ,Western Asia and Stabilisation Division ,Foreign & Commonwealth Office ,100185-101 ,557.44,
DFID,DFID,08/07/2013,Medical/Health Services ,East and Central Africa ,Foreign & Commonwealth Office ,101633-101 ,620.40,
DFID,DFID,08/07/2013,Conferences  Seminars & Meeting/Event Resource ,East and Central Africa ,Foreign & Commonwealth Office ,100227-101 ,630.26,
DFID,DFID,08/07/2013,Training - Course Fees ,International Finance Division ,EML Learning Ltd. ,100111-101 ,648.00,
DFID,DFID,08/07/2013,Training - Course Fees ,Middle East & North Africa Division (MENAD) ,Foreign & Commonwealth Office ,201705-101 ,696.96,
DFID,DFID,08/07/2013,Other travel costs ,Middle East & North Africa Division (MENAD) ,Foreign & Commonwealth Office ,201705-101 ,698.36,
DFID,DFID,08/07/2013,Project delivery costs - supplier services ,West and Southern Africa ,African Foundation for Development Sierra Leone  ,203670-101 ,754.51,
DFID,DFID,08/07/2013,Project delivery costs - supplier services ,West and Southern Africa ,African Foundation for Development Sierra Leone  ,203670-101 ,754.74,
DFID,DFID,08/07/2013,Aid Programme - Humanitarian Material Relief Assistance and Services ,Middle East & North Africa Division (MENAD) ,Supplier Name withheld ,204007-104 ,773.18,
DFID,DFID,08/07/2013,Water charges ,East and Central Africa ,Mekere Sultan ,202586-101 ,791.49,
DFID,DFID,08/07/2013,Contract & Agency Staff ,Finance and Corporate Performance Division ,MICHAEL PAGE INTERNATIONAL RECRUITMENT LIMITED ,100201-101 ,919.82,
DFID,DFID,08/07/2013,Secure Staff Accommodation ,Asia  Caribbean and Overseas Territories ,Supplier Name withheld ,101615-101 ,"1,012.22",
DFID,DFID,08/07/2013,Project delivery costs - supplier services ,International Relations Division ,ART OF LIVING ,202319-101 ,"1,045.00",
DFID,DFID,08/07/2013,Hotels - Accommodation only ,West and Southern Africa ,Supplier Name withheld ,100152-109 ,"1,086.77",
DFID,DFID,08/07/2013,Contract & Agency Staff ,Finance and Corporate Performance Division ,Hays Specialist Recruitment Ltd ,100201-101 ,"1,130.16",
DFID,DFID,08/07/2013,Contract & Agency Staff ,Finance and Corporate Performance Division ,Hays Specialist Recruitment Ltd ,100201-101 ,"1,165.50",
DFID,DFID,08/07/2013,Water charges ,East and Central Africa ,Mekere Sultan ,202594-101 ,"1,187.23",
DFID,DFID,08/07/2013,Secure Staff Accommodation ,International Relations Division ,Foreign & Commonwealth Office ,100086-101 ,"1,201.10",
DFID,DFID,08/07/2013,Project delivery costs - supplier services ,East and Central Africa ,UNHCR (Kenya) ,202995-105 ,"1,208.05",
DFID,DFID,08/07/2013,Travel - Subsistence ,Western Asia and Stabilisation Division ,Foreign & Commonwealth Office ,201699-101 ,"1,314.41",
DFID,DFID,08/07/2013,Repairs  Maint  Alter - Property & Constrct. Services ,Western Asia and Stabilisation Division ,Foreign & Commonwealth Office ,100305-101 ,"1,337.39",
DFID,DFID,08/07/2013,Secure Staff Accommodation ,East and Central Africa ,Foreign & Commonwealth Office ,101616-101 ,"1,417.49",
DFID,DFID,08/07/2013,Hotels - Accommodation only ,Asia  Caribbean and Overseas Territories ,Foreign & Commonwealth Office ,100244-101 ,"1,478.21",
DFID,DFID,08/07/2013,Medical Equipment ,West and Southern Africa ,Foreign & Commonwealth Office ,104227-106 ,"1,538.34",
DFID,DFID,08/07/2013,Secure Staff Accommodation ,International Relations Division ,Foreign & Commonwealth Office ,100086-101 ,"1,584.48",
DFID,DFID,08/07/2013,Storage & Distribution costs ,West and Southern Africa ,PICKFORDS LTD ,101638-101 ,"1,821.40",
DFID,DFID,08/07/2013,Project delivery costs - supplier services ,Middle East & North Africa Division (MENAD) ,Foreign & Commonwealth Office ,203917-109 ,"1,861.86",
DFID,DFID,08/07/2013,Conferences  Seminars & Meeting/Event Resource ,West and Southern Africa ,Supplier Name Withheld ,101622-106 ,"2,103.78",
DFID,DFID,08/07/2013,Training - Course Fees ,Human Resources Security & Facilities Division ,CAPITA LEARNING &DEVELOPMENT ,100269-153 ,"2,163.65",
DFID,DFID,08/07/2013,Hotels - Accommodation only ,West and Southern Africa ,Premier Hotels & Resorts ,202531-104 ,"2,165.04",
DFID,DFID,08/07/2013,Project delivery costs - supplier services ,Policy Division ,PATH ,202674-101 ,"2,316.57",
DFID,DFID,08/07/2013,Secure Staff Accommodation ,International Relations Division ,Foreign & Commonwealth Office ,100238-101 ,"2,402.20",
DFID,DFID,08/07/2013,Project delivery costs - supplier services ,West and Southern Africa ,Nkemdilim Nonyem Ene ,104227-106 ,"2,439.10",
DFID,DFID,08/07/2013,Printer Consumables ,Asia  Caribbean and Overseas Territories ,Foreign & Commonwealth Office ,100033-101 ,"2,480.28",
DFID,DFID,08/07/2013,Secure Staff Accommodation ,East and Central Africa ,Foreign & Commonwealth Office ,101616-101 ,"2,497.37",
DFID,DFID,08/07/2013,Project delivery costs - supplier services ,Research and Evidence Division ,critical faculty ,202242-103 ,"2,500.00",
DFID,DFID,08/07/2013,Vehicle Repairs & Maintenance ,Middle East & North Africa Division (MENAD) ,Foreign & Commonwealth Office ,100303-101 ,"2,564.11",
DFID,DFID,08/07/2013,Training - Course Fees ,Human Resources Security & Facilities Division ,CAPITA LEARNING &DEVELOPMENT ,100269-153 ,"2,765.59",
DFID,DFID,08/07/2013,Secure Staff Accommodation ,East and Central Africa ,Foreign & Commonwealth Office ,101630-101 ,"2,825.97",
DFID,DFID,08/07/2013,Secure Staff Accommodation ,East and Central Africa ,Foreign & Commonwealth Office ,200352-101 ,"2,825.97",
DFID,DFID,08/07/2013,Secure Staff Accommodation ,East and Central Africa ,Foreign & Commonwealth Office ,101616-101 ,"2,825.97",
DFID,DFID,08/07/2013,Secure Staff Accommodation ,East and Central Africa ,Foreign & Commonwealth Office ,101616-101 ,"2,825.97",
DFID,DFID,08/07/2013,Hardware - printers ,East and Central Africa ,Foreign & Commonwealth Office ,101616-101 ,"2,825.97",
DFID,DFID,08/07/2013,Air fares ,Asia  Caribbean and Overseas Territories ,Foreign & Commonwealth Office ,101615-101 ,"2,895.31",
DFID,DFID,08/07/2013,Secure Staff Accommodation ,Asia  Caribbean and Overseas Territories ,Foreign & Commonwealth Office ,101605-101 ,"2,924.55",
DFID,DFID,08/07/2013,Secure Staff Accommodation ,International Relations Division ,Foreign & Commonwealth Office ,100086-101 ,"3,873.54",
DFID,DFID,08/07/2013,Medical Equipment ,West and Southern Africa ,Foreign & Commonwealth Office ,104227-106 ,"4,038.42",
DFID,DFID,08/07/2013,Training - Course Fees ,Human Resources Security & Facilities Division ,CAPITA LEARNING &DEVELOPMENT ,100269-153 ,"4,546.27",
DFID,DFID,08/07/2013,Medical Equipment ,West and Southern Africa ,Foreign & Commonwealth Office ,104227-106 ,"4,704.91",
DFID,DFID,08/07/2013,Hotels - Accommodation only ,Conflict Humanitarian and Security Division ,MET OFFICE ,100049-101 ,"4,740.90",
DFID,DFID,08/07/2013,Training - Course Fees ,Human Resources Security & Facilities Division ,CAPITA LEARNING &DEVELOPMENT ,100269-153 ,"4,827.77",
DFID,DFID,08/07/2013,Training Providers/Facilitation Services ,West and Southern Africa ,Bay Intergrated Services Ltd ,100152-114 ,"5,162.77",
DFID,DFID,08/07/2013,Training Providers/Facilitation Services ,Research and Evidence Division ,CAPITA LEARNING &DEVELOPMENT ,202348-102 ,"6,092.40",
DFID,DFID,08/07/2013,Training Providers/Facilitation Services ,West and Southern Africa ,Bay Intergrated Services Ltd ,100152-114 ,"6,097.76",
DFID,DFID,08/07/2013,Project delivery costs - supplier services ,West and Southern Africa ,ELIZABETH GRESTY ,203861-102 ,"6,382.36",
DFID,DFID,08/07/2013,Secure Staff Accommodation ,Asia  Caribbean and Overseas Territories ,Foreign & Commonwealth Office ,101605-101 ,"6,900.63",
DFID,DFID,08/07/2013,Medical Equipment ,West and Southern Africa ,Foreign & Commonwealth Office ,100153-101 ,"6,914.85",
DFID,DFID,08/07/2013,Project delivery costs - supplier services ,Asia  Caribbean and Overseas Territories ,HTSPE LTD ,203035-102 ,"7,022.76",
DFID,DFID,08/07/2013,Medical Equipment ,West and Southern Africa ,Foreign & Commonwealth Office ,104227-106 ,"7,397.84",
DFID,DFID,08/07/2013,Government Car Scheme UK ,Top Management Group ,FCO SERVICES ,100232-108 ,"7,570.77",
DFID,DFID,08/07/2013,Medical Equipment ,West and Southern Africa ,Foreign & Commonwealth Office ,104227-106 ,"8,298.03",
DFID,DFID,08/07/2013,Medical Equipment ,West and Southern Africa ,Foreign & Commonwealth Office ,104227-106 ,"8,298.03",
DFID,DFID,08/07/2013,Medical Equipment ,West and Southern Africa ,Foreign & Commonwealth Office ,104227-106 ,"8,781.65",
DFID,DFID,08/07/2013,Project delivery costs - supplier services ,Policy Division ,PATH ,202674-101 ,"9,000.00",
DFID,DFID,08/07/2013,Conferences  Seminars & Meeting/Event Resource ,Asia  Caribbean and Overseas Territories ,Foreign & Commonwealth Office ,200581-115 ,"9,102.86",
DFID,DFID,08/07/2013,Project delivery costs - supplier services ,Policy Division ,PATH ,202674-101 ,"9,524.15",
DFID,DFID,08/07/2013,Training Providers/Facilitation Services ,West and Southern Africa ,Bay Intergrated Services Ltd ,100152-114 ,"10,244.24",
DFID,DFID,08/07/2013,Project delivery costs - supplier services ,West and Southern Africa ,CHANNEL RESEARCH ,202416-104 ,"13,362.39",
DFID,DFID,08/07/2013,Project delivery costs - supplier services ,West and Southern Africa ,Ken Wright & Associates ,203861-101 ,"13,971.80",
DFID,DFID,08/07/2013,Generators & spares ,Western Asia and Stabilisation Division ,Foreign & Commonwealth Office ,100305-101 ,"16,589.05",
DFID,DFID,08/07/2013,Project delivery costs - supplier services ,Policy Division ,PATH ,202674-101 ,"17,194.75",
DFID,DFID,08/07/2013,Project delivery costs - supplier services ,Asia  Caribbean and Overseas Territories ,DELOITTE TOUCHE TOHMATSU INDIA PRIVA ,108070-101 ,"18,156.04",
DFID,DFID,08/07/2013,Project delivery costs - supplier services ,Research and Evidence Division ,IOD PARC ,203197-101 ,"20,548.92",
DFID,DFID,08/07/2013,Project delivery costs - supplier services ,Middle East & North Africa Division (MENAD) ,Foreign & Commonwealth Office ,203917-109 ,"22,344.90",
DFID,DFID,08/07/2013,Project delivery costs - supplier services ,Asia  Caribbean and Overseas Territories ,Ernst & Young Pvt Ltd ,203757-101 ,"25,286.68",
DFID,DFID,08/07/2013,Project delivery costs - supplier services ,Policy Division ,PATH ,202674-101 ,"26,442.03",
DFID,DFID,08/07/2013,Secure Staff Accommodation ,Middle East & North Africa Division (MENAD) ,Foreign & Commonwealth Office ,201705-101 ,"32,334.38",Secure Staff Accommodation Costs � DFID Jerusalem and Palestinian Programme
DFID,DFID,08/07/2013,Project delivery costs - supplier services ,Asia  Caribbean and Overseas Territories ,DELOITTE TOUCHE TOHMATSU INDIA PRIVA ,108070-101 ,"34,512.57",
DFID,DFID,08/07/2013,Project delivery costs - supplier services ,Asia  Caribbean and Overseas Territories ,IMC Worldwide Ltd ,113537-102 ,"37,157.21",
DFID,DFID,08/07/2013,Project delivery costs - supplier services ,West and Southern Africa ,OXFORD POLICY MANAGEMENT ,202643-103 ,"40,118.21",
DFID,DFID,08/07/2013,Project delivery costs - supplier services ,West and Southern Africa ,OXFORD POLICY MANAGEMENT ,202643-103 ,"45,841.08",
DFID,DFID,08/07/2013,Project delivery costs - supplier services ,Asia  Caribbean and Overseas Territories ,OPTIONS CONSULTANCY SERVICES LIMITED ,201375-103 ,"57,867.00",
DFID,DFID,08/07/2013,Project delivery costs - supplier services ,Asia  Caribbean and Overseas Territories ,OPTIONS CONSULTANCY SERVICES LIMITED ,201375-103 ,"57,867.00",
DFID,DFID,08/07/2013,Project delivery costs - supplier services ,Research and Evidence Division ,HTSPE LTD ,203193-101 ,"58,950.00",
DFID,DFID,08/07/2013,Project delivery costs - supplier services ,Asia  Caribbean and Overseas Territories ,IMC Worldwide Ltd ,113537-101 ,"66,060.12",
DFID,DFID,08/07/2013,Project delivery costs - supplier services ,Policy Division ,PATH ,202674-101 ,"68,512.30",
DFID,DFID,08/07/2013,Project delivery costs - supplier services ,Policy Division ,COFFEY INTERNATIONAL DEVELOPMENT LTD ,202372-104 ,"74,604.02",
DFID,DFID,08/07/2013,Project delivery costs - supplier services ,Policy Division ,TROPICAL HEALTH AND EDUCATION TRUST ,202208-101 ,"81,205.13",
DFID,DFID,08/07/2013,Aid Programme - Accountable Grant Payments ,Asia  Caribbean and Overseas Territories ,CARE INTERNATIONAL UK ,202660-106 ,"118,374.47",
DFID,DFID,08/07/2013,Project delivery costs - supplier services ,Western Asia and Stabilisation Division ,Supplier Name withheld ,200898-103 ,"124,994.74",
DFID,DFID,08/07/2013,Aid Programme - Accountable Grant Payments ,Policy Division ,Triple Line Crown Agents JV ,202035-101 ,"136,901.34",
DFID,DFID,08/07/2013,Aid Programme - Accountable Grant Payments ,Asia  Caribbean and Overseas Territories ,THE ASIA FOUNDATION ,202798-102 ,"153,493.35",
DFID,DFID,08/07/2013,Aid Programme - Accountable Grant Payments ,Policy Division ,Triple Line Crown Agents JV ,202035-101 ,"189,249.20",
DFID,DFID,08/07/2013,Project delivery costs - supplier services ,Policy Division ,TROPICAL HEALTH AND EDUCATION TRUST ,202208-101 ,"323,219.33",
DFID,DFID,08/07/2013,Aid Programme - Accountable Grant Payments ,Policy Division ,Triple Line Crown Agents JV ,202035-101 ,"374,186.89",
DFID,DFID,08/07/2013,Project delivery costs - supplier services ,Asia  Caribbean and Overseas Territories ,IMC Worldwide Ltd ,113537-103 ,"388,634.37",
DFID,DFID,08/07/2013,Project delivery costs - supplier services ,Policy Division ,PRICEWATERHOUSECOOPERS ,202372-102 ,"458,192.04",
DFID,DFID,08/07/2013,Aid Programme - Trust Funds contributions ,East and Central Africa ,IBRD (HSBC)  C/O THE WORLD BANK ,201294-102 ,"725,000.00",
DFID,DFID,08/07/2013,Aid Programme - Accountable Grant Payments ,Policy Division ,NIKE FOUNDATION ,201086-104 ,"877,121.88",
DFID,DFID,08/07/2013,Aid Programme - Trust Funds contributions ,Research and Evidence Division ,   THE WORLD BANK ,203933-101 ,"2,850,000.00",
DFID,DFID,09/07/2013,Air fares ,West and Southern Africa ,Jeffery Travels ,100068-101 ,518.12,
DFID,DFID,09/07/2013,Hotels - Accommodation only ,West and Southern Africa ,InterContinental Hotel ,114050-101 ,519.78,
DFID,DFID,09/07/2013,Air fares ,West and Southern Africa ,British Airways Ltd ,101637-101 ,525.85,
DFID,DFID,09/07/2013,Books & Publications ,West and Southern Africa ,MW Enterprises ,101637-101 ,532.35,
DFID,DFID,09/07/2013,Repairs  Maintenance and Alterations - Other Building Costs ,Group Operations ,MITIE Technical Facilities Management Ltd ,100106-101 ,537.90,
DFID,DFID,09/07/2013,Air fares ,Research and Evidence Division ,KUONI BUSINESS TRAVEL INDIA PVT LTD ,202392-109 ,548.18,
DFID,DFID,09/07/2013,Air fares ,Asia  Caribbean and Overseas Territories ,Jaya Travels & Tours Pvt Ltd. (US$) ,203035-102 ,559.73,
DFID,DFID,09/07/2013,Hotels - Accommodation only ,West and Southern Africa ,Supplier Name withheld ,104190-101 ,568.02,
DFID,DFID,09/07/2013,Hotels - Accommodation only ,International Relations Division ,Recipient name withheld ,100262-101 ,570.30,
DFID,DFID,09/07/2013,Vehicle Repairs & Maintenance ,West and Southern Africa ,AUTO SERVICE GROUPE NDONGALA ,100068-101 ,604.03,
DFID,DFID,09/07/2013,Hotels - Accommodation only ,International Finance Division ,Recipient name withheld ,100098-101 ,630.79,
DFID,DFID,09/07/2013,Printer Consumables ,Asia  Caribbean and Overseas Territories ,CAS Techno Sales Pvt Ltd ,100150-103 ,632.54,
DFID,DFID,09/07/2013,Computer hardware maintenance ,West and Southern Africa ,Panabiz International Limited ,100152-115 ,646.56,
DFID,DFID,09/07/2013,Hotels - Accommodation only ,West and Southern Africa ,InterContinental Hotel ,114050-101 ,649.72,
DFID,DFID,09/07/2013,Hotels - Accommodation only ,West and Southern Africa ,Supplier Name withheld ,101622-103 ,652.06,
DFID,DFID,09/07/2013,Air fares ,Asia  Caribbean and Overseas Territories ,KUONI BUSINESS TRAVEL INDIA PVT LTD ,201689-104 ,673.11,
DFID,DFID,09/07/2013,Hotels - Accommodation only ,International Finance Division ,Recipient name withheld ,100098-101 ,679.03,
DFID,DFID,09/07/2013,Facilities Management payments ,East and Central Africa ,Edmund D.Tarimo ,101634-101 ,709.14,
DFID,DFID,09/07/2013,Hotels - Accommodation only ,International Relations Division ,Recipient name withheld ,100262-101 ,729.96,
DFID,DFID,09/07/2013,Hotels - Accommodation only ,Western Asia and Stabilisation Division ,PEARL CONTINENTAL HOTEL LAHORE ,101624-101 ,759.64,
DFID,DFID,09/07/2013,Hotels - Accommodation only ,Policy Division ,Recipient name withheld ,100191-101 ,773.37,
DFID,DFID,09/07/2013,Hotels - Accommodation only ,West and Southern Africa ,Southern Sun Ridgeway ,101637-101 ,802.94,
DFID,DFID,09/07/2013,Postage Costs ,Group Operations ,Royal Mail Courier Services Ltd ,201157-101 ,855.00,
DFID,DFID,09/07/2013,Computer hardware maintenance ,West and Southern Africa ,Panabiz International Limited ,101622-107 ,857.06,
DFID,DFID,09/07/2013,Air fares ,Asia  Caribbean and Overseas Territories ,Jaya Travels & Tours Ltd ,101621-108 ,858.91,
DFID,DFID,09/07/2013,Air fares ,West and Southern Africa ,Mukwa Travel and Tours ,101637-101 ,927.51,
DFID,DFID,09/07/2013,Hotels - Accommodation only ,West and Southern Africa ,Supplier Name withheld ,202643-102 ,940.23,
DFID,DFID,09/07/2013,FCO shared service charges ,Group Operations ,FCO SERVICES ,203717-101 ,965.30,
DFID,DFID,09/07/2013,Facilities Management payments ,East and Central Africa ,British High Commission(Tsh) ,101634-101 ,"1,116.66",
DFID,DFID,09/07/2013,Data Network - land lines ,Business Solutions Division Level ,COLT TELECOMMUNICATIONS ,200002-124 ,"1,125.00",
DFID,DFID,09/07/2013,Data Network - land lines ,Business Solutions Division Level ,COLT TELECOMMUNICATIONS ,200002-124 ,"1,125.00",
DFID,DFID,09/07/2013,Vehicle Repairs & Maintenance ,West and Southern Africa ,S MacNeillie & Son Limited ,100152-110 ,"1,129.00",
DFID,DFID,09/07/2013,Printer Consumables ,Asia  Caribbean and Overseas Territories ,CAS Techno Sales Pvt Ltd ,101621-103 ,"1,174.72",
DFID,DFID,09/07/2013,Facilities Management payments ,West and Southern Africa ,Fracham Company ,101622-105 ,"1,307.03",
DFID,DFID,09/07/2013,Contract Catering Services ,Asia  Caribbean and Overseas Territories ,THE GOURMET FACTORY ,201689-105 ,"1,313.20",
DFID,DFID,09/07/2013,Hotels - Accommodation only ,Asia  Caribbean and Overseas Territories ,Summit Hotel Pvt Ltd ,101621-101 ,"1,386.42",
DFID,DFID,09/07/2013,Vehicle Repairs & Maintenance ,West and Southern Africa ,S MacNeillie & Son Limited ,101622-105 ,"1,497.37",
DFID,DFID,09/07/2013,Contract & Agency Staff ,Finance and Corporate Performance Division ,MICHAEL PAGE INTERNATIONAL RECRUITMENT LIMITED ,100201-101 ,"1,650.00",
DFID,DFID,09/07/2013,Electricity ,East and Central Africa ,UMEME Ltd ,101635-101 ,"1,714.50",
DFID,DFID,09/07/2013,Training Providers/Facilitation Services ,Western Asia and Stabilisation Division ,WILDWORKS CONSULTING LIMITED ,100020-101 ,"1,800.00",
DFID,DFID,09/07/2013,Hotels - Accommodation only ,West and Southern Africa ,Supplier Name withheld ,100152-105 ,"1,956.19",
DFID,DFID,09/07/2013,Air fares ,Asia  Caribbean and Overseas Territories ,KUONI BUSINESS TRAVEL INDIA PVT LTD ,201689-102 ,"1,957.52",
DFID,DFID,09/07/2013,Facilities Management payments ,East and Central Africa ,Ikondera Company Ltd ,101628-101 ,"2,433.73",
DFID,DFID,09/07/2013,Air fares ,West and Southern Africa ,UNHAS - WFP (DRC) ,101610-101 ,"2,489.26",
DFID,DFID,09/07/2013,Air fares ,Asia  Caribbean and Overseas Territories ,KUONI BUSINESS TRAVEL INDIA PVT LTD ,201689-103 ,"2,710.16",
DFID,DFID,09/07/2013,Facilities Management payments ,East and Central Africa ,British High Commission(Tsh) ,101634-101 ,"2,754.70",
DFID,DFID,09/07/2013,Project delivery costs - supplier services ,East and Central Africa ,Paulina Mrosso ,202593-102 ,"2,892.83",
DFID,DFID,09/07/2013,Training - Course Fees ,Human Resources Security & Facilities Division ,CAPITA LEARNING &DEVELOPMENT ,100269-153 ,"3,279.92",
DFID,DFID,09/07/2013,Project delivery costs - supplier services ,Asia  Caribbean and Overseas Territories ,Dr. Meen Bahadur Poudyal Chhetri ,200696-103 ,"3,390.85",
DFID,DFID,09/07/2013,Facilities Management payments ,West and Southern Africa ,S R Nicolaou ,101637-101 ,"3,416.43",
DFID,DFID,09/07/2013,Storage & Distribution costs ,Western Asia and Stabilisation Division ,Supplier Name withheld ,101601-110 ,"3,740.07",
DFID,DFID,09/07/2013,Air fares ,Asia  Caribbean and Overseas Territories ,KUONI BUSINESS TRAVEL INDIA PVT LTD ,201689-103 ,"3,830.85",
DFID,DFID,09/07/2013,Training - Course Fees ,East and Central Africa ,SARAH MAGUIRE ,101630-101 ,"4,044.75",
DFID,DFID,09/07/2013,Project delivery costs - supplier services ,Asia  Caribbean and Overseas Territories ,Avignam Enterprises Private Limited ,202762-102 ,"4,962.14",
DFID,DFID,09/07/2013,Project delivery costs - supplier services ,Asia  Caribbean and Overseas Territories ,Meghraj Capital Advisors Private Limited ,202736-101 ,"5,310.38",
DFID,DFID,09/07/2013,Training - Course Fees ,Human Resources Security & Facilities Division ,CAPITA LEARNING &DEVELOPMENT ,100269-153 ,"6,314.25",
DFID,DFID,09/07/2013,Project delivery costs - supplier services ,East and Central Africa ,Isobel Birch ,202619-106 ,"6,368.00",
DFID,DFID,09/07/2013,Air fares ,East and Central Africa ,Coastal Travels Ltd(USD) ,101634-101 ,"6,748.10",
DFID,DFID,09/07/2013,Project delivery costs - supplier services ,Western Asia and Stabilisation Division ,Supplier Name withheld ,202297-101 ,"7,000.00",
DFID,DFID,09/07/2013,Electricity ,Group Operations ,EDF ENERGY ,203717-101 ,"7,146.58",
DFID,DFID,09/07/2013,Project delivery costs - supplier services ,Asia  Caribbean and Overseas Territories ,JOHN HUDSON ,200773-102 ,"7,741.84",
DFID,DFID,09/07/2013,Conferences  Seminars & Meeting/Event Resource ,Research and Evidence Division ,Institute of Development Studies. ,203778-101 ,"8,026.87",
DFID,DFID,09/07/2013,Aid Programme - Accountable Grant Payments ,Policy Division ,Global Canopy Programme ,201724-114 ,"10,710.54",
DFID,DFID,09/07/2013,Electricity ,Group Operations ,EDF ENERGY ,203717-101 ,"10,971.13",
DFID,DFID,09/07/2013,Training - Course Fees ,Human Resources Security & Facilities Division ,CAPITA LEARNING &DEVELOPMENT ,100269-153 ,"12,056.00",
DFID,DFID,09/07/2013,Secure Staff Accommodation ,East and Central Africa ,Supplier Name withheld ,101634-101 ,"12,080.54",
DFID,DFID,09/07/2013,Project delivery costs - supplier services ,Western Asia and Stabilisation Division ,Supplier Name withheld ,201023-108 ,"12,804.00",
DFID,DFID,09/07/2013,Aid Programme - Accountable Grant Payments ,Research and Evidence Division ,Open Society Foundation ,203209-101 ,"15,440.87",
DFID,DFID,09/07/2013,Project delivery costs - supplier services ,Human Resources Security & Facilities Division ,Healix International Limited (Fees) ,202423-101 ,"17,152.80",
DFID,DFID,09/07/2013,Project delivery costs - supplier services ,East and Central Africa ,Sahan Research Ltd ,203382-101 ,"18,358.20",
DFID,DFID,09/07/2013,Project delivery costs - supplier services ,East and Central Africa ,International Law and Policy Institute ,203466-101 ,"20,313.20",
DFID,DFID,09/07/2013,Aid Programme - Accountable Grant Payments ,Conflict Humanitarian and Security Division ,CARE INTERNATIONAL ,201898-103 ,"24,628.73",
DFID,DFID,09/07/2013,Project delivery costs - supplier services ,East and Central Africa ,HTSPE LTD ,103548-101 ,"28,428.61",
DFID,DFID,09/07/2013,Aid Programme - Accountable Grant Payments ,Western Asia and Stabilisation Division ,Supplier Name withheld ,202277-101 ,"34,158.00",
DFID,DFID,09/07/2013,Research & Development costs ,Research and Evidence Division ,Adaptive Thinking Ltd ,203812-101 ,"42,145.23",
DFID,DFID,09/07/2013,Project delivery costs - supplier services ,Western Asia and Stabilisation Division ,Ipsos MORI ,202491-104 ,"43,200.00",
DFID,DFID,09/07/2013,Aid Programme - Accountable Grant Payments ,Joint Trade Policy Division ,THE UNIVERSITY OF MANCHESTER ,200784-101 ,"61,669.25",
DFID,DFID,09/07/2013,Project delivery costs - supplier services ,West and Southern Africa ,CAMBRIDGE EDUCATION CONSUL ,202678-101 ,"62,141.29",
DFID,DFID,09/07/2013,Aid Programme - Trust Funds contributions ,East and Central Africa ,   THE WORLD BANK ,203459-107 ,"80,000.00",
DFID,DFID,09/07/2013,Project delivery costs - supplier services ,Asia  Caribbean and Overseas Territories ,OXFORD POLICY MANAGEMENT ,203123-101 ,"88,517.98",
DFID,DFID,09/07/2013,Aid Programme - Partnership Programme Arrangements ,Policy Division ,ETHICAL TRADING INITIATIVE ,202620-101 ,"100,250.00",
DFID,DFID,09/07/2013,Project delivery costs - supplier services ,Policy Division ,LONDON SCHOOL OF ECONOMICS AND POLITICAL SCIENCE ,114188-101 ,"100,367.90",
DFID,DFID,09/07/2013,Project delivery costs - supplier services ,Policy Division ,LONDON SCHOOL OF ECONOMICS AND POLITICAL SCIENCE ,114188-101 ,"114,346.91",
DFID,DFID,09/07/2013,Research & Development costs ,Research and Evidence Division ,Crown Agents Bank ,114010-102 ,"128,341.34",
DFID,DFID,09/07/2013,Aid Programme - Trust Funds contributions ,East and Central Africa ,IBRD HSBC T ,200239-112 ,"250,000.00",
DFID,DFID,09/07/2013,Aid Programme - Voluntary contributions ,East and Central Africa ,World Health Organisation (WHO-USD) ,202401-103 ,"259,195.14",
DFID,DFID,09/07/2013,Aid Programme - Accountable Grant Payments ,West and Southern Africa ,THE SAVE THE CHILDREN FUND ,203771-105 ,"281,874.00",
DFID,DFID,09/07/2013,Project delivery costs - supplier services ,West and Southern Africa ,ADAM SMITH INTERNATIONAL  LTD ,104190-102 ,"401,296.69",
DFID,DFID,09/07/2013,Aid Programme - Accountable Grant Payments ,East and Central Africa ,The Prince's Youth Business International ,200250-128 ,"431,094.00",
DFID,DFID,09/07/2013,Project delivery costs - supplier services ,West and Southern Africa ,ADAM SMITH INTERNATIONAL  LTD ,104190-102 ,"451,584.88",
DFID,DFID,09/07/2013,Aid Programme - Accountable Grant Payments ,Policy Division ,KPMG DEVELOPMENT SERVICE ,114143-101 ,"490,935.86",
DFID,DFID,09/07/2013,Aid Programme - Partnership Programme Arrangements ,Policy Division ,PROGRESSIO ,202503-101 ,"506,253.75",
DFID,DFID,09/07/2013,Aid Programme - Partnership Programme Arrangements ,Policy Division ,MALARIA CONSORTIUM ,202700-101 ,"667,567.25",
DFID,DFID,09/07/2013,Project delivery costs - supplier services ,Western Asia and Stabilisation Division ,Supplier Name withheld ,202311-102 ,"688,157.49",
DFID,DFID,09/07/2013,Aid Programme - Accountable Grant Payments ,Policy Division ,KPMG DEVELOPMENT SERVICE ,114143-101 ,"783,811.68",
DFID,DFID,09/07/2013,Aid Programme - Accountable Grant Payments ,Policy Division ,KPMG DEVELOPMENT SERVICE ,114143-101 ,"799,910.34",
DFID,DFID,09/07/2013,Aid Programme - Partnership Programme Arrangements ,Policy Division ,WORLD VISION UNITED KINGDOM ,202642-101 ,"984,441.25",
DFID,DFID,09/07/2013,Aid Programme - Refugee Relief Payments ,East and Central Africa , UNHCR ,203722-101 ,"1,000,000.00",
DFID,DFID,09/07/2013,Aid Programme - Refugee Relief Payments ,East and Central Africa ,WFP CONTRIBUTIONS UNIT ,203722-102 ,"1,000,000.00",
DFID,DFID,09/07/2013,Aid Programme - Other Financial Aid to Government ,Western Asia and Stabilisation Division ,Supplier Name withheld ,202190-101 ,"1,000,000.00",
DFID,DFID,09/07/2013,Aid Programme - Partnership Programme Arrangements ,Policy Division ,ACTIONAID ,202663-101 ,"1,029,751.00",
DFID,DFID,09/07/2013,Aid Programme - Partnership Programme Arrangements ,Policy Division ,WATERAID ,202621-101 ,"1,050,410.00",
DFID,DFID,09/07/2013,Aid Programme - Accountable Grant Payments ,East and Central Africa ,FINANCIAL SECTOR DEEPENING ,103548-102 ,"4,009,359.30",
DFID,DFID,09/07/2013,Aid Programme - Core contributions ,Western Asia and Stabilisation Division ,Supplier Name withheld ,203629-102 ,"5,000,000.00",
DFID,DFID,10/07/2013,Air fares ,East and Central Africa ,Corporate Travel Provider ,101633-101 ,501.00,
DFID,DFID,10/07/2013,Air fares ,West and Southern Africa ,Supplier Name withheld ,101622-103 ,502.46,
DFID,DFID,10/07/2013,Air fares ,Asia  Caribbean and Overseas Territories ,Corporate Travel Provider ,201689-106 ,508.21,
DFID,DFID,10/07/2013,Repairs  Maint  Alter - Property & Constrct. Services ,West and Southern Africa ,Zimpest ,101638-103 ,513.42,
DFID,DFID,10/07/2013,Air fares ,Research and Evidence Division ,Corporate Travel Provider ,202392-106 ,517.44,
DFID,DFID,10/07/2013,Hotels - Accommodation only ,Business Solutions Division Level ,Corporate Travel Provider ,200001-101 ,518.84,
DFID,DFID,10/07/2013,Hotels - Accommodation only ,Business Solutions Division Level ,Corporate Travel Provider ,200001-101 ,518.84,
DFID,DFID,10/07/2013,Relocation costs ,Asia  Caribbean and Overseas Territories ,Recipient name withheld ,201739-101 ,522.98,
DFID,DFID,10/07/2013,Air fares ,International Finance Division ,Corporate Travel Provider ,100120-101 ,529.20,
DFID,DFID,10/07/2013,Electricity ,East and Central Africa ,Recipient name withheld ,202579-106 ,539.66,
DFID,DFID,10/07/2013,Air fares ,East and Central Africa ,Corporate Travel Provider ,101633-101 ,548.60,
DFID,DFID,10/07/2013,Hotels - Accommodation only ,Asia  Caribbean and Overseas Territories ,Corporate Travel Provider ,100113-101 ,561.97,
DFID,DFID,10/07/2013,Air fares ,Western Asia and Stabilisation Division ,Corporate Travel Provider ,101601-110 ,564.35,
DFID,DFID,10/07/2013,Air fares ,Conflict Humanitarian and Security Division ,Corporate Travel Provider ,100049-101 ,564.68,
DFID,DFID,10/07/2013,Facilities Management payments ,East and Central Africa ,General Technical Services Ltd ,203848-101 ,573.70,
DFID,DFID,10/07/2013,Air fares ,Internal Audit ,Corporate Travel Provider ,100121-101 ,574.81,
DFID,DFID,10/07/2013,Air fares ,Internal Audit ,Corporate Travel Provider ,100121-101 ,574.81,
DFID,DFID,10/07/2013,Hotels - Accommodation only ,Human Resources Security & Facilities Division ,Corporate Travel Provider ,100268-101 ,575.48,
DFID,DFID,10/07/2013,Air fares ,Internal Audit ,Corporate Travel Provider ,100121-101 ,575.55,
DFID,DFID,10/07/2013,Air fares ,Internal Audit ,Corporate Travel Provider ,100121-101 ,575.55,
DFID,DFID,10/07/2013,Air fares ,Asia  Caribbean and Overseas Territories ,Corporate Travel Provider ,201689-106 ,584.91,
DFID,DFID,10/07/2013,Air fares ,Asia  Caribbean and Overseas Territories ,Corporate Travel Provider ,101621-101 ,589.05,
DFID,DFID,10/07/2013,Contract & Agency Staff ,Human Resources Security & Facilities Division ,Anderson Knight Ltd ,100270-104 ,589.41,
DFID,DFID,10/07/2013,Contract & Agency Staff ,Human Resources Security & Facilities Division ,Anderson Knight Ltd ,100270-104 ,589.41,
DFID,DFID,10/07/2013,Contract & Agency Staff ,Human Resources Security & Facilities Division ,Anderson Knight Ltd ,100272-101 ,589.41,
DFID,DFID,10/07/2013,Contract & Agency Staff ,Human Resources Security & Facilities Division ,Anderson Knight Ltd ,100272-101 ,589.41,
DFID,DFID,10/07/2013,Building Plant - Air Conditioners ,Asia  Caribbean and Overseas Territories ,Haroon Engineering Limited ,100025-101 ,593.90,
DFID,DFID,10/07/2013,Hotels - Accommodation only ,West and Southern Africa ,Wood lands Guest Lodge ,201854-102 ,604.03,
DFID,DFID,10/07/2013,Hotels - Accommodation only ,Policy Division ,Corporate Travel Provider ,100276-101 ,609.04,
DFID,DFID,10/07/2013,Air fares ,Asia  Caribbean and Overseas Territories ,Corporate Travel Provider ,101621-101 ,609.05,
DFID,DFID,10/07/2013,Air fares ,Western Asia and Stabilisation Division ,Corporate Travel Provider ,203944-106 ,616.30,
DFID,DFID,10/07/2013,Air fares ,Middle East & North Africa Division (MENAD) ,Corporate Travel Provider ,101619-101 ,617.85,
DFID,DFID,10/07/2013,Hotels - Accommodation only ,Internal Audit ,Corporate Travel Provider ,100121-101 ,623.21,
DFID,DFID,10/07/2013,Air fares ,West and Southern Africa ,Corporate Travel Provider ,101629-101 ,624.05,
DFID,DFID,10/07/2013,Air fares ,Western Asia and Stabilisation Division ,Corporate Travel Provider ,101601-110 ,626.60,
DFID,DFID,10/07/2013,Hotels - Accommodation only ,Western Asia and Stabilisation Division ,Corporate Travel Provider ,100011-110 ,629.51,
DFID,DFID,10/07/2013,Air fares ,Middle East & North Africa Division (MENAD) ,Corporate Travel Provider ,100307-101 ,630.90,
DFID,DFID,10/07/2013,Air fares ,Asia  Caribbean and Overseas Territories ,Corporate Travel Provider ,201689-106 ,636.91,
DFID,DFID,10/07/2013,Air fares ,Western Asia and Stabilisation Division ,Corporate Travel Provider ,203944-106 ,639.80,
DFID,DFID,10/07/2013,Air fares ,Western Asia and Stabilisation Division ,Corporate Travel Provider ,203944-107 ,639.90,
DFID,DFID,10/07/2013,Air fares ,Western Asia and Stabilisation Division ,Corporate Travel Provider ,203944-107 ,639.90,
DFID,DFID,10/07/2013,Contract & Agency Staff ,Finance and Corporate Performance Division ,Hays Specialist Recruitment Ltd ,100201-101 ,641.02,
DFID,DFID,10/07/2013,Air fares ,Western Asia and Stabilisation Division ,Corporate Travel Provider ,101624-101 ,641.35,
DFID,DFID,10/07/2013,Air fares ,East and Central Africa ,Corporate Travel Provider ,202827-106 ,642.14,
DFID,DFID,10/07/2013,Air fares ,West and Southern Africa ,Supplier Name withheld ,104190-101 ,646.83,
DFID,DFID,10/07/2013,Air fares ,Middle East & North Africa Division (MENAD) ,Corporate Travel Provider ,100307-101 ,648.35,
DFID,DFID,10/07/2013,Air fares ,Policy Division ,Corporate Travel Provider ,100276-101 ,654.08,
DFID,DFID,10/07/2013,Hotels - Accommodation only ,Middle East & North Africa Division (MENAD) ,Corporate Travel Provider ,101619-101 ,655.10,
DFID,DFID,10/07/2013,Air fares ,Human Resources Security & Facilities Division ,Corporate Travel Provider ,100269-160 ,657.30,
DFID,DFID,10/07/2013,Air fares ,Human Resources Security & Facilities Division ,Corporate Travel Provider ,100269-160 ,657.30,
DFID,DFID,10/07/2013,Air fares ,Top Management Group ,Corporate Travel Provider ,100232-102 ,657.30,
DFID,DFID,10/07/2013,Air fares ,Top Management Group ,Corporate Travel Provider ,100232-102 ,657.30,
DFID,DFID,10/07/2013,Air fares ,Top Management Group ,Corporate Travel Provider ,100232-103 ,657.30,
DFID,DFID,10/07/2013,Air fares ,Western Asia and Stabilisation Division ,Corporate Travel Provider ,101601-110 ,660.20,
DFID,DFID,10/07/2013,Hotels - Accommodation only ,Research and Evidence Division ,Corporate Travel Provider ,202392-109 ,662.26,
DFID,DFID,10/07/2013,Air fares ,Communications Division ,Corporate Travel Provider ,100197-101 ,663.00,
DFID,DFID,10/07/2013,Hotels - Accommodation only ,Asia  Caribbean and Overseas Territories ,Corporate Travel Provider ,201689-102 ,666.36,
DFID,DFID,10/07/2013,Air fares ,Middle East & North Africa Division (MENAD) ,Corporate Travel Provider ,100307-101 ,667.71,
DFID,DFID,10/07/2013,Air fares ,Conflict Humanitarian and Security Division ,Corporate Travel Provider ,100049-101 ,667.90,
DFID,DFID,10/07/2013,Air fares ,Middle East & North Africa Division (MENAD) ,Corporate Travel Provider ,201701-101 ,670.00,
DFID,DFID,10/07/2013,Air fares ,West and Southern Africa ,Corporate Travel Provider ,100189-101 ,697.60,
DFID,DFID,10/07/2013,Air fares ,Western Asia and Stabilisation Division ,Corporate Travel Provider ,100020-101 ,700.45,
DFID,DFID,10/07/2013,Air fares ,Finance and Corporate Performance Division ,Corporate Travel Provider ,200173-101 ,714.96,
DFID,DFID,10/07/2013,Air fares ,Asia  Caribbean and Overseas Territories ,Corporate Travel Provider ,100084-101 ,716.84,
DFID,DFID,10/07/2013,Air fares ,Western Asia and Stabilisation Division ,Corporate Travel Provider ,203944-105 ,717.65,
DFID,DFID,10/07/2013,Air fares ,Top Management Group ,Corporate Travel Provider ,100232-102 ,720.26,
DFID,DFID,10/07/2013,Air fares ,Top Management Group ,Corporate Travel Provider ,100232-103 ,720.26,
DFID,DFID,10/07/2013,Air fares ,Top Management Group ,Corporate Travel Provider ,100232-103 ,720.26,
DFID,DFID,10/07/2013,Air fares ,Finance and Corporate Performance Division ,Corporate Travel Provider ,100008-103 ,727.24,
DFID,DFID,10/07/2013,Air fares ,Top Management Group ,Corporate Travel Provider ,100232-102 ,727.40,
DFID,DFID,10/07/2013,Air fares ,Top Management Group ,Corporate Travel Provider ,100232-102 ,727.40,
DFID,DFID,10/07/2013,Air fares ,Top Management Group ,Corporate Travel Provider ,100232-102 ,727.40,
DFID,DFID,10/07/2013,Air fares ,Top Management Group ,Corporate Travel Provider ,100232-103 ,727.40,
DFID,DFID,10/07/2013,Air fares ,Top Management Group ,Corporate Travel Provider ,100232-103 ,727.40,
DFID,DFID,10/07/2013,Air fares ,Finance and Corporate Performance Division ,Corporate Travel Provider ,202438-101 ,729.64,
DFID,DFID,10/07/2013,Air fares ,Middle East & North Africa Division (MENAD) ,Recipient name withheld ,201705-101 ,733.96,
DFID,DFID,10/07/2013,Air fares ,Middle East & North Africa Division (MENAD) ,Corporate Travel Provider ,201701-101 ,736.19,
DFID,DFID,10/07/2013,Air fares ,Middle East & North Africa Division (MENAD) ,Corporate Travel Provider ,101619-101 ,744.07,
DFID,DFID,10/07/2013,Air fares ,Top Management Group ,Corporate Travel Provider ,100232-102 ,745.20,
DFID,DFID,10/07/2013,Air fares ,Top Management Group ,Corporate Travel Provider ,100232-102 ,745.20,
DFID,DFID,10/07/2013,Air fares ,Top Management Group ,Corporate Travel Provider ,100232-102 ,745.20,
DFID,DFID,10/07/2013,Air fares ,Top Management Group ,Corporate Travel Provider ,100232-103 ,745.20,
DFID,DFID,10/07/2013,Air fares ,Top Management Group ,Corporate Travel Provider ,100232-103 ,745.20,
DFID,DFID,10/07/2013,Hotels - Accommodation only ,Asia  Caribbean and Overseas Territories ,Recipient name withheld ,202403-101 ,746.07,
DFID,DFID,10/07/2013,Air fares ,International Relations Division ,Corporate Travel Provider ,202319-101 ,751.95,
DFID,DFID,10/07/2013,Air fares ,Policy Division ,Corporate Travel Provider ,100191-101 ,754.15,
DFID,DFID,10/07/2013,Oil - Other Utilities ,East and Central Africa ,British High Commission(Tsh) ,101634-101 ,756.20,
DFID,DFID,10/07/2013,Air fares ,Finance and Corporate Performance Division ,Corporate Travel Provider ,100008-101 ,759.64,
DFID,DFID,10/07/2013,Air fares ,Finance and Corporate Performance Division ,Corporate Travel Provider ,100008-101 ,759.64,
DFID,DFID,10/07/2013,Air fares ,Policy Division ,Corporate Travel Provider ,100277-103 ,762.95,
DFID,DFID,10/07/2013,Air fares ,Asia  Caribbean and Overseas Territories ,Corporate Travel Provider ,101604-101 ,767.07,
DFID,DFID,10/07/2013,Air fares ,Human Resources Security & Facilities Division ,Corporate Travel Provider ,100269-160 ,767.14,
DFID,DFID,10/07/2013,Air fares ,Human Resources Security & Facilities Division ,Corporate Travel Provider ,100269-160 ,767.14,
DFID,DFID,10/07/2013,Air fares ,Western Asia and Stabilisation Division ,Corporate Travel Provider ,101601-110 ,777.21,
DFID,DFID,10/07/2013,Air fares ,Western Asia and Stabilisation Division ,Recipient name withheld ,101601-110 ,779.10,
DFID,DFID,10/07/2013,Air fares ,East and Central Africa ,Corporate Travel Provider ,101612-101 ,782.81,
DFID,DFID,10/07/2013,Air fares ,East and Central Africa ,Corporate Travel Provider ,101612-101 ,782.81,
DFID,DFID,10/07/2013,Air fares ,East and Central Africa ,Corporate Travel Provider ,101612-101 ,783.11,
DFID,DFID,10/07/2013,Air fares ,Western Asia and Stabilisation Division ,Corporate Travel Provider ,203944-106 ,783.30,
DFID,DFID,10/07/2013,Air fares ,Research and Evidence Division ,Corporate Travel Provider ,202331-101 ,783.65,
DFID,DFID,10/07/2013,Air fares ,Western Asia and Stabilisation Division ,Corporate Travel Provider ,203944-106 ,784.00,
DFID,DFID,10/07/2013,Air fares ,Asia  Caribbean and Overseas Territories ,Corporate Travel Provider ,201652-101 ,787.24,
DFID,DFID,10/07/2013,Air fares ,International Finance Division ,Corporate Travel Provider ,100098-101 ,788.45,
DFID,DFID,10/07/2013,Air fares ,Western Asia and Stabilisation Division ,Corporate Travel Provider ,100020-101 ,791.25,
DFID,DFID,10/07/2013,Air fares ,Western Asia and Stabilisation Division ,Corporate Travel Provider ,203944-106 ,796.85,
DFID,DFID,10/07/2013,Air fares ,Western Asia and Stabilisation Division ,Corporate Travel Provider ,203944-106 ,796.85,
DFID,DFID,10/07/2013,Air fares ,West and Southern Africa ,Corporate Travel Provider ,101610-101 ,805.46,
DFID,DFID,10/07/2013,Air fares ,West and Southern Africa ,Corporate Travel Provider ,101610-101 ,805.46,
DFID,DFID,10/07/2013,Air fares ,Western Asia and Stabilisation Division ,Corporate Travel Provider ,101601-110 ,818.16,
DFID,DFID,10/07/2013,Telephone Usage & services ,West and Southern Africa ,Vodacom ,100068-101 ,821.83,
DFID,DFID,10/07/2013,Air fares ,West and Southern Africa ,Corporate Travel Provider ,101620-101 ,822.10,
DFID,DFID,10/07/2013,Air fares ,West and Southern Africa ,Supplier Name withheld ,201160-102 ,828.95,
DFID,DFID,10/07/2013,Air fares ,West and Southern Africa ,Corporate Travel Provider ,101637-101 ,829.90,
DFID,DFID,10/07/2013,Hotels - Accommodation only ,West and Southern Africa ,Harvey World Travel Centurion ,101631-101 ,834.85,
DFID,DFID,10/07/2013,Hotels - Accommodation only ,Internal Audit ,Corporate Travel Provider ,100121-101 ,840.33,
DFID,DFID,10/07/2013,Air fares ,West and Southern Africa ,Corporate Travel Provider ,100189-101 ,844.40,
DFID,DFID,10/07/2013,Air fares ,Western Asia and Stabilisation Division ,Corporate Travel Provider ,101601-110 ,847.00,
DFID,DFID,10/07/2013,Air fares ,Western Asia and Stabilisation Division ,Corporate Travel Provider ,203944-106 ,853.25,
DFID,DFID,10/07/2013,Air fares ,East and Central Africa ,Bon Voyage Travel Centre Ltd(USD) ,203459-106 ,853.42,
DFID,DFID,10/07/2013,Air fares ,Western Asia and Stabilisation Division ,Corporate Travel Provider ,203944-106 ,855.66,
DFID,DFID,10/07/2013,Air fares ,Western Asia and Stabilisation Division ,Corporate Travel Provider ,203944-106 ,855.66,
DFID,DFID,10/07/2013,Air fares ,Western Asia and Stabilisation Division ,Corporate Travel Provider ,101601-110 ,862.85,
DFID,DFID,10/07/2013,Air fares ,Top Management Group ,Corporate Travel Provider ,100232-102 ,865.97,
DFID,DFID,10/07/2013,Air fares ,Policy Division ,Corporate Travel Provider ,100277-103 ,868.95,
DFID,DFID,10/07/2013,Air fares ,Policy Division ,Corporate Travel Provider ,100191-101 ,874.10,
DFID,DFID,10/07/2013,Air fares ,Western Asia and Stabilisation Division ,Corporate Travel Provider ,203944-105 ,875.45,
DFID,DFID,10/07/2013,Air fares ,Western Asia and Stabilisation Division ,Corporate Travel Provider ,203944-105 ,878.15,
DFID,DFID,10/07/2013,Air fares ,Western Asia and Stabilisation Division ,Corporate Travel Provider ,203944-106 ,878.15,
DFID,DFID,10/07/2013,Air fares ,Western Asia and Stabilisation Division ,Corporate Travel Provider ,100011-110 ,896.35,
DFID,DFID,10/07/2013,Air fares ,Policy Division ,Corporate Travel Provider ,100191-101 ,904.10,
DFID,DFID,10/07/2013,Air fares ,Asia  Caribbean and Overseas Territories ,Corporate Travel Provider ,101604-101 ,912.07,
DFID,DFID,10/07/2013,Training - Course Fees ,Middle East & North Africa Division (MENAD) ,THE OPEN UNIVERSITY ,100307-101 ,918.75,
DFID,DFID,10/07/2013,Air fares ,Communications Division ,Corporate Travel Provider ,100197-101 ,925.97,
DFID,DFID,10/07/2013,Air fares ,Top Management Group ,Corporate Travel Provider ,100232-102 ,925.97,
DFID,DFID,10/07/2013,Air fares ,Top Management Group ,Corporate Travel Provider ,100232-103 ,925.97,
DFID,DFID,10/07/2013,Facilities Management payments ,East and Central Africa ,BRICOTECH SARL ,101628-101 ,930.90,
DFID,DFID,10/07/2013,Air fares ,Human Resources Security & Facilities Division ,Corporate Travel Provider ,100269-160 ,943.19,
DFID,DFID,10/07/2013,Air fares ,East and Central Africa ,Corporate Travel Provider ,101635-101 ,949.61,
DFID,DFID,10/07/2013,Air fares ,East and Central Africa ,Corporate Travel Provider ,101635-101 ,949.61,
DFID,DFID,10/07/2013,Air fares ,Asia  Caribbean and Overseas Territories ,Corporate Travel Provider ,101604-101 ,960.07,
DFID,DFID,10/07/2013,Air fares ,Western Asia and Stabilisation Division ,Corporate Travel Provider ,101601-110 ,961.39,
DFID,DFID,10/07/2013,Air fares ,Finance and Corporate Performance Division ,Corporate Travel Provider ,100008-103 ,966.88,
DFID,DFID,10/07/2013,Air fares ,Finance and Corporate Performance Division ,Corporate Travel Provider ,100008-103 ,966.88,
DFID,DFID,10/07/2013,Electricity ,West and Southern Africa ,Power Holding co of Nigeria ,101622-105 ,972.80,
DFID,DFID,10/07/2013,Air fares ,Policy Division ,Corporate Travel Provider ,202419-104 ,976.05,
DFID,DFID,10/07/2013,Air fares ,West and Southern Africa ,Corporate Travel Provider ,101620-101 ,979.15,
DFID,DFID,10/07/2013,Air fares ,International Finance Division ,Corporate Travel Provider ,100120-101 ,979.66,
DFID,DFID,10/07/2013,Air fares ,Western Asia and Stabilisation Division ,Corporate Travel Provider ,101624-101 ,983.01,
DFID,DFID,10/07/2013,Facilities Management payments ,East and Central Africa ,General Technical Services Ltd ,203848-101 ,998.00,
DFID,DFID,10/07/2013,Hotels - Accommodation only ,West and Southern Africa ,Supplier Name withheld ,104190-101 ,"1,005.03",
DFID,DFID,10/07/2013,Air fares ,Human Resources Security & Facilities Division ,Corporate Travel Provider ,100269-160 ,"1,007.84",
DFID,DFID,10/07/2013,Air fares ,Human Resources Security & Facilities Division ,Corporate Travel Provider ,100269-160 ,"1,007.84",
DFID,DFID,10/07/2013,Air fares ,Western Asia and Stabilisation Division ,Corporate Travel Provider ,101601-110 ,"1,010.29",
DFID,DFID,10/07/2013,Air fares ,International Finance Division ,Corporate Travel Provider ,201723-102 ,"1,031.60",
DFID,DFID,10/07/2013,Air fares ,Finance and Corporate Performance Division ,Corporate Travel Provider ,202836-103 ,"1,036.24",
DFID,DFID,10/07/2013,Air fares ,International Finance Division ,Corporate Travel Provider ,100111-101 ,"1,037.35",
DFID,DFID,10/07/2013,Air fares ,Western Asia and Stabilisation Division ,Corporate Travel Provider ,203938-101 ,"1,038.15",
DFID,DFID,10/07/2013,Electricity ,West and Southern Africa ,Power Holding co of Nigeria ,101622-105 ,"1,040.63",
DFID,DFID,10/07/2013,Air fares ,East and Central Africa ,Corporate Travel Provider ,101635-101 ,"1,041.95",
DFID,DFID,10/07/2013,Air fares ,Research and Evidence Division ,Corporate Travel Provider ,202392-103 ,"1,060.71",
DFID,DFID,10/07/2013,Air fares ,Research and Evidence Division ,Corporate Travel Provider ,202392-103 ,"1,060.71",
DFID,DFID,10/07/2013,Air fares ,Asia  Caribbean and Overseas Territories ,Jaya Travels & Tours Pvt Ltd. (US$) ,101621-108 ,"1,066.44",
DFID,DFID,10/07/2013,Hotels - Accommodation only ,East and Central Africa ,Recipient name withheld ,202579-106 ,"1,082.85",
DFID,DFID,10/07/2013,Air fares ,Top Management Group ,Corporate Travel Provider ,100232-102 ,"1,084.80",
DFID,DFID,10/07/2013,Air fares ,Top Management Group ,Corporate Travel Provider ,100232-102 ,"1,084.80",
DFID,DFID,10/07/2013,Air fares ,Top Management Group ,Corporate Travel Provider ,100232-102 ,"1,084.80",
DFID,DFID,10/07/2013,Air fares ,Top Management Group ,Corporate Travel Provider ,100232-103 ,"1,084.80",
DFID,DFID,10/07/2013,Air fares ,Top Management Group ,Corporate Travel Provider ,100232-103 ,"1,084.80",
DFID,DFID,10/07/2013,Air fares ,East and Central Africa ,Corporate Travel Provider ,101612-101 ,"1,093.26",
DFID,DFID,10/07/2013,Air fares ,Communications Division ,Corporate Travel Provider ,100197-101 ,"1,098.25",
DFID,DFID,10/07/2013,Air fares ,East and Central Africa ,Corporate Travel Provider ,101635-101 ,"1,099.15",
DFID,DFID,10/07/2013,Electricity ,West and Southern Africa ,Power Holding co of Nigeria ,101622-105 ,"1,101.07",
DFID,DFID,10/07/2013,Air fares ,West and Southern Africa ,Corporate Travel Provider ,101631-101 ,"1,103.85",
DFID,DFID,10/07/2013,Hotels - Accommodation only ,West and Southern Africa ,Supplier Name withheld ,100152-106 ,"1,109.89",
DFID,DFID,10/07/2013,Air fares ,East and Central Africa ,Corporate Travel Provider ,100016-106 ,"1,123.31",
DFID,DFID,10/07/2013,Air fares ,West and Southern Africa ,Corporate Travel Provider ,101618-101 ,"1,129.34",
DFID,DFID,10/07/2013,Air fares ,West and Southern Africa ,Supplier Name withheld ,101622-106 ,"1,129.95",
DFID,DFID,10/07/2013,Air fares ,Asia  Caribbean and Overseas Territories ,Corporate Travel Provider ,101604-101 ,"1,140.07",
DFID,DFID,10/07/2013,Air fares ,Western Asia and Stabilisation Division ,Corporate Travel Provider ,101624-101 ,"1,146.00",
DFID,DFID,10/07/2013,Air fares ,West and Southern Africa ,Corporate Travel Provider ,101629-101 ,"1,148.30",
DFID,DFID,10/07/2013,Contract & Agency Staff ,Finance and Corporate Performance Division ,MICHAEL PAGE INTERNATIONAL RECRUITMENT LIMITED ,100201-101 ,"1,149.78",
DFID,DFID,10/07/2013,Air fares ,West and Southern Africa ,Corporate Travel Provider ,101629-101 ,"1,154.05",
DFID,DFID,10/07/2013,Air fares ,Finance and Corporate Performance Division ,Corporate Travel Provider ,200173-101 ,"1,160.71",
DFID,DFID,10/07/2013,Air fares ,Research and Evidence Division ,Corporate Travel Provider ,202392-104 ,"1,166.60",
DFID,DFID,10/07/2013,Air fares ,International Finance Division ,Corporate Travel Provider ,100120-101 ,"1,176.90",
DFID,DFID,10/07/2013,Air fares ,West and Southern Africa ,Corporate Travel Provider ,101618-101 ,"1,178.81",
DFID,DFID,10/07/2013,Air fares ,Western Asia and Stabilisation Division ,Corporate Travel Provider ,101601-110 ,"1,193.75",
DFID,DFID,10/07/2013,Air fares ,Policy Division ,Corporate Travel Provider ,100274-107 ,"1,199.56",
DFID,DFID,10/07/2013,Air fares ,Policy Division ,Corporate Travel Provider ,202402-104 ,"1,208.45",
DFID,DFID,10/07/2013,Repairs  Maintenance and Alterations - Other Building Costs ,Asia  Caribbean and Overseas Territories ,Anex Engineering & Electric Company ,201652-104 ,"1,215.33",
DFID,DFID,10/07/2013,Air fares ,Policy Division ,Corporate Travel Provider ,100277-104 ,"1,221.34",
DFID,DFID,10/07/2013,Air fares ,Internal Audit ,Corporate Travel Provider ,100121-101 ,"1,224.04",
DFID,DFID,10/07/2013,Air fares ,Internal Audit ,Corporate Travel Provider ,100121-101 ,"1,224.04",
DFID,DFID,10/07/2013,Air fares ,Internal Audit ,Corporate Travel Provider ,100121-101 ,"1,224.04",
DFID,DFID,10/07/2013,Air fares ,Finance and Corporate Performance Division ,Corporate Travel Provider ,200173-101 ,"1,230.45",
DFID,DFID,10/07/2013,Air fares ,West and Southern Africa ,Corporate Travel Provider ,100189-101 ,"1,247.75",
DFID,DFID,10/07/2013,Air fares ,Communications Division ,Corporate Travel Provider ,100197-101 ,"1,261.80",
DFID,DFID,10/07/2013,Air fares ,West and Southern Africa ,Corporate Travel Provider ,101618-101 ,"1,268.05",
DFID,DFID,10/07/2013,Training - Travel & Subsistence ,West and Southern Africa ,Ulendo Safaris ,101618-101 ,"1,278.42",
DFID,DFID,10/07/2013,Air fares ,Finance and Corporate Performance Division ,Corporate Travel Provider ,202836-103 ,"1,281.24",
DFID,DFID,10/07/2013,Air fares ,East and Central Africa ,Corporate Travel Provider ,101628-101 ,"1,291.31",
DFID,DFID,10/07/2013,Water charges ,West and Southern Africa ,Komawara ,101638-103 ,"1,338.93",
DFID,DFID,10/07/2013,Air fares ,Top Management Group ,Corporate Travel Provider ,100232-103 ,"1,339.46",
DFID,DFID,10/07/2013,Air fares ,Western Asia and Stabilisation Division ,Corporate Travel Provider ,203944-106 ,"1,355.95",
DFID,DFID,10/07/2013,Courier & Bag Services ,West and Southern Africa ,British  High Commission Abuja ,100152-110 ,"1,374.06",
DFID,DFID,10/07/2013,Training Providers/Facilitation Services ,Human Resources Security & Facilities Division ,Video Arts Ltd ,100269-156 ,"1,375.00",
DFID,DFID,10/07/2013,Project delivery costs - supplier services ,West and Southern Africa ,Marian Kpakpah ,202819-102 ,"1,388.89",
DFID,DFID,10/07/2013,Air fares ,West and Southern Africa ,Supplier Name withheld ,101622-101 ,"1,412.04",
DFID,DFID,10/07/2013,Air fares ,Research and Evidence Division ,Corporate Travel Provider ,202392-102 ,"1,426.10",
DFID,DFID,10/07/2013,Air fares ,East and Central Africa ,Corporate Travel Provider ,101628-101 ,"1,441.82",
DFID,DFID,10/07/2013,Air fares ,Policy Division ,Corporate Travel Provider ,100274-107 ,"1,445.60",
DFID,DFID,10/07/2013,Hotels - Accommodation only ,Middle East & North Africa Division (MENAD) ,Corporate Travel Provider ,100146-101 ,"1,458.17",
DFID,DFID,10/07/2013,Air fares ,Western Asia and Stabilisation Division ,Corporate Travel Provider ,203944-106 ,"1,471.55",
DFID,DFID,10/07/2013,Air fares ,East and Central Africa ,Corporate Travel Provider ,101625-103 ,"1,506.10",
DFID,DFID,10/07/2013,Air fares ,Finance and Corporate Performance Division ,Corporate Travel Provider ,200173-101 ,"1,576.14",
DFID,DFID,10/07/2013,Air fares ,Finance and Corporate Performance Division ,Corporate Travel Provider ,200173-101 ,"1,576.14",
DFID,DFID,10/07/2013,Air fares ,Finance and Corporate Performance Division ,Corporate Travel Provider ,202836-101 ,"1,576.32",
DFID,DFID,10/07/2013,Project delivery costs - supplier services ,Policy Division ,GBRW LIMITED ,201733-107 ,"1,700.50",
DFID,DFID,10/07/2013,Air fares ,International Finance Division ,Corporate Travel Provider ,100120-101 ,"1,714.45",
DFID,DFID,10/07/2013,Air fares ,International Finance Division ,Corporate Travel Provider ,100000-101 ,"1,732.14",
DFID,DFID,10/07/2013,Telephone Usage & services ,West and Southern Africa ,Vodacom ,101610-101 ,"1,754.79",
DFID,DFID,10/07/2013,Air fares ,Western Asia and Stabilisation Division ,Corporate Travel Provider ,100011-110 ,"1,755.68",
DFID,DFID,10/07/2013,Air fares ,East and Central Africa ,Corporate Travel Provider ,101625-104 ,"1,760.24",
DFID,DFID,10/07/2013,Courier & Bag Services ,West and Southern Africa ,British  High Commission Abuja ,101622-105 ,"1,821.43",
DFID,DFID,10/07/2013,Hotels - Accommodation only ,West and Southern Africa ,Supplier Name withheld ,101622-103 ,"1,836.15",
DFID,DFID,10/07/2013,Air fares ,West and Southern Africa ,Supplier Name withheld ,101622-101 ,"1,854.35",
DFID,DFID,10/07/2013,Air fares ,Western Asia and Stabilisation Division ,Corporate Travel Provider ,101601-110 ,"1,862.74",
DFID,DFID,10/07/2013,Air fares ,Top Management Group ,Corporate Travel Provider ,100232-102 ,"2,032.56",
DFID,DFID,10/07/2013,Air fares ,Western Asia and Stabilisation Division ,Corporate Travel Provider ,203944-104 ,"2,033.01",
DFID,DFID,10/07/2013,Facilities Management payments ,East and Central Africa ,JMC Umoja House ,100230-101 ,"2,059.60",
DFID,DFID,10/07/2013,Air fares ,Top Management Group ,Corporate Travel Provider ,100232-102 ,"2,064.70",
DFID,DFID,10/07/2013,Contract & Agency Staff ,Finance and Corporate Performance Division ,Computer Futures ,200173-102 ,"2,100.00",
DFID,DFID,10/07/2013,Contract & Agency Staff ,Finance and Corporate Performance Division ,Computer Futures ,200173-102 ,"2,100.00",
DFID,DFID,10/07/2013,Hotels - Accommodation only ,East and Central Africa ,Corporate Travel Provider ,101633-101 ,"2,134.94",
DFID,DFID,10/07/2013,Air fares ,Western Asia and Stabilisation Division ,Corporate Travel Provider ,101601-110 ,"2,136.39",
DFID,DFID,10/07/2013,Storage & Distribution costs ,West and Southern Africa ,PICKFORDS LTD ,101638-101 ,"2,301.43",
DFID,DFID,10/07/2013,Hotels - Accommodation only ,Middle East & North Africa Division (MENAD) ,Corporate Travel Provider ,201705-101 ,"2,303.80",
DFID,DFID,10/07/2013,Air fares ,Western Asia and Stabilisation Division ,Corporate Travel Provider ,101601-110 ,"2,401.25",
DFID,DFID,10/07/2013,Air fares ,Policy Division ,Corporate Travel Provider ,100274-107 ,"2,466.51",
DFID,DFID,10/07/2013,Air fares ,Policy Division ,Corporate Travel Provider ,100274-107 ,"2,466.51",
DFID,DFID,10/07/2013,Electricity ,East and Central Africa ,Tanzania Electric supply company Ltd ,101634-101 ,"2,561.82",
DFID,DFID,10/07/2013,Air fares ,Business Solutions Division Level ,African (Wings) Travels Ltd ,200001-101 ,"2,578.97",
DFID,DFID,10/07/2013,Air fares ,Western Asia and Stabilisation Division ,Corporate Travel Provider ,101601-110 ,"2,586.70",
DFID,DFID,10/07/2013,Project delivery costs - supplier services ,East and Central Africa ,KATHY ATTAWELL ,202549-101 ,"2,700.00",
DFID,DFID,10/07/2013,Air fares ,Top Management Group ,Corporate Travel Provider ,100232-102 ,"3,088.60",
DFID,DFID,10/07/2013,Mobile telephones & accessories ,East and Central Africa ,Recipient name withheld ,202579-106 ,"3,102.13",
DFID,DFID,10/07/2013,Air fares ,Communications Division ,Corporate Travel Provider ,100197-101 ,"3,615.15",
DFID,DFID,10/07/2013,Project delivery costs - supplier services ,East and Central Africa ,LTS International Ltd. ,201866-106 ,"3,773.60",
DFID,DFID,10/07/2013,Project delivery costs - supplier services ,East and Central Africa ,RSM Tenon Limited ,200250-111 ,"3,840.00",
DFID,DFID,10/07/2013,Contract & Agency Staff ,Business Solutions Division Level ,ALLEGIS GROUP LIMITED ,200001-101 ,"3,861.00",
DFID,DFID,10/07/2013,Air fares ,Top Management Group ,Corporate Travel Provider ,100232-105 ,"3,989.25",
DFID,DFID,10/07/2013,Auditors Remuneration & Expenses - Cash ,Asia  Caribbean and Overseas Territories ,A. Qasem & Co. ,113976-103 ,"4,011.69",
DFID,DFID,10/07/2013,Air fares ,Top Management Group ,Corporate Travel Provider ,100232-102 ,"4,150.40",
DFID,DFID,10/07/2013,Air fares ,Top Management Group ,Corporate Travel Provider ,100232-103 ,"4,150.40",
DFID,DFID,10/07/2013,Air fares ,West and Southern Africa ,Corporate Travel Provider ,100189-101 ,"4,300.05",
DFID,DFID,10/07/2013,Air fares ,Top Management Group ,Corporate Travel Provider ,100232-102 ,"4,330.40",
DFID,DFID,10/07/2013,Telephone Usage & services ,Business Solutions Division Level ,VERIZON UK LIMITED ,200002-126 ,"4,372.93",
DFID,DFID,10/07/2013,Secure Staff Accommodation ,West and Southern Africa ,Supplier Name withheld ,101638-103 ,"4,429.53",
DFID,DFID,10/07/2013,Project delivery costs - supplier services ,West and Southern Africa ,Recipient name withheld ,101610-101 ,"4,500.00",
DFID,DFID,10/07/2013,Project delivery costs - supplier services ,West and Southern Africa ,Recipient name withheld ,203681-103 ,"4,567.44",
DFID,DFID,10/07/2013,Hotels - Accommodation only ,East and Central Africa ,Sea Cliff Court Ltd ,203008-103 ,"4,949.62",
DFID,DFID,10/07/2013,Hotels - Accommodation only ,West and Southern Africa ,Supplier Name withheld ,100152-109 ,"5,136.83",
DFID,DFID,10/07/2013,Auditors Remuneration & Expenses - Cash ,Asia  Caribbean and Overseas Territories ,Howladar Yunus and Co. ,113976-103 ,"5,236.31",
DFID,DFID,10/07/2013,Aid Programme - Accountable Grant Payments ,Asia  Caribbean and Overseas Territories ,Dolma Development Fund ,203426-101 ,"5,888.37",
DFID,DFID,10/07/2013,Air fares ,West and Southern Africa ,Corporate Travel Provider ,100189-101 ,"5,942.21",
DFID,DFID,10/07/2013,Contract & Agency Staff ,Business Solutions Division Level ,ALLEGIS GROUP LIMITED ,200001-101 ,"6,708.00",
DFID,DFID,10/07/2013,Project delivery costs - supplier services ,East and Central Africa ,HTSPE LTD ,203595-101 ,"7,156.50",
DFID,DFID,10/07/2013,Contract & Agency Staff ,Business Solutions Division Level ,OPIN SYSTEMS LIMITED ,200001-101 ,"7,728.00",
DFID,DFID,10/07/2013,Facilities Management payments ,East and Central Africa ,JMC Umoja House ,101634-101 ,"8,238.39",
DFID,DFID,10/07/2013,Aid Programme - Accountable Grant Payments ,East and Central Africa ,CONFLICT DYNAMICS INTERNATIONAL INC ,200956-115 ,"8,867.88",
DFID,DFID,10/07/2013,Data Network - land lines ,West and Southern Africa ,MICRO COM Sprl ,101610-101 ,"9,446.31",
DFID,DFID,10/07/2013,Project delivery costs - supplier services ,Business Solutions Division Level ,OPIN SYSTEMS LIMITED ,200002-151 ,"11,520.54",
DFID,DFID,10/07/2013,Project delivery costs - supplier services ,East and Central Africa ,IMC Worldwide Ltd ,200221-105 ,"12,416.62",
DFID,DFID,10/07/2013,Storage & Distribution costs ,West and Southern Africa ,PICKFORDS LTD ,100256-101 ,"12,868.48",
DFID,DFID,10/07/2013,Project delivery costs - supplier services ,East and Central Africa ,Sasun Tsirunyan ,202394-103 ,"12,917.76",
DFID,DFID,10/07/2013,Aid Programme - Accountable Grant Payments ,East and Central Africa ,CONFLICT DYNAMICS INTERNATIONAL INC ,200956-111 ,"13,301.82",
DFID,DFID,10/07/2013,Electricity ,Group Operations ,EDF ENERGY ,100106-101 ,"14,245.81",
DFID,DFID,10/07/2013,Secure Staff Accommodation ,West and Southern Africa ,Supplier Name withheld ,101610-101 ,"16,187.92",
DFID,DFID,10/07/2013,Project delivery costs - supplier services ,Research and Evidence Division ,HTSPE LTD (notactive2) ,203772-101 ,"16,860.00",
DFID,DFID,10/07/2013,Project delivery costs - supplier services ,West and Southern Africa ,RE-ACTION ,200546-101 ,"19,223.00",
DFID,DFID,10/07/2013,Project delivery costs - supplier services ,Conflict Humanitarian and Security Division ,MINES ADVISORY GROUP ,201745-104 ,"20,366.00",
DFID,DFID,10/07/2013,Project delivery costs - supplier services ,International Finance Division ,Nathan Associates London Ltd ,114009-101 ,"20,772.68",
DFID,DFID,10/07/2013,Project delivery costs - supplier services ,Asia  Caribbean and Overseas Territories ,MAXWELL STAMP PLC ,107370-101 ,"22,857.14",
DFID,DFID,10/07/2013,Project delivery costs - supplier services ,Conflict Humanitarian and Security Division ,MINES ADVISORY GROUP ,201745-102 ,"25,915.00",
DFID,DFID,10/07/2013,Project delivery costs - supplier services ,Conflict Humanitarian and Security Division ,MINES ADVISORY GROUP ,201745-103 ,"28,032.00",
DFID,DFID,10/07/2013,Project delivery costs - supplier services ,Conflict Humanitarian and Security Division ,MINES ADVISORY GROUP ,201745-108 ,"31,652.00",
DFID,DFID,10/07/2013,Secure Staff Accommodation ,West and Southern Africa ,Supplier Name withheld ,101610-101 ,"31,711.41",Secure Staff Accommodation Costs � DFID DRC 
DFID,DFID,10/07/2013,Project delivery costs - supplier services ,Conflict Humanitarian and Security Division ,MINES ADVISORY GROUP ,201745-101 ,"41,990.00",
DFID,DFID,10/07/2013,Secure Staff Accommodation ,East and Central Africa ,Supplier Name withheld ,101634-101 ,"42,765.10",Secure Staff Accommodation Costs � DFID Tanzania
DFID,DFID,10/07/2013,Project delivery costs - supplier services ,Asia  Caribbean and Overseas Territories ,The INTASAVE Partnership ,200581-115 ,"48,136.00",
DFID,DFID,10/07/2013,Research & Development costs ,Research and Evidence Division ,Center for Strategic & International Studies  Inc ,203239-101 ,"50,650.49",
DFID,DFID,10/07/2013,Project delivery costs - supplier services ,Research and Evidence Division ,OXFORD POLICY MANAGEMENT ,203193-101 ,"50,792.40",
DFID,DFID,10/07/2013,Aid Programme - Partnership Programme Arrangements ,Policy Division ,PEOPLE IN AID LTD ,202875-101 ,"51,699.75",
DFID,DFID,10/07/2013,Project delivery costs - supplier services ,East and Central Africa ,CHARLES KENDALL & PARTNERS LIMITED (PROCUREMENT) ,202513-101 ,"56,491.12",
DFID,DFID,10/07/2013,Aid Programme - Other Financial Aid to Government ,West and Southern Africa ,Office of National Security Sierra Leone ,201018-105 ,"59,250.00",
DFID,DFID,10/07/2013,Project delivery costs - supplier services ,Middle East & North Africa Division (MENAD) ,ATOS CONSULTING LIMITED ,202375-101 ,"60,870.77",
DFID,DFID,10/07/2013,Project delivery costs - supplier services ,West and Southern Africa ,OXFORD POLICY MANAGEMENT ,202643-103 ,"66,336.10",
DFID,DFID,10/07/2013,Aid Programme - Accountable Grant Payments ,Research and Evidence Division ,Grand Challenges Canada ,203486-101 ,"93,000.00",
DFID,DFID,10/07/2013,Aid Programme - Accountable Grant Payments ,Middle East & North Africa Division (MENAD) ,Supplier name withheld ,203216-109 ,"96,112.00",
DFID,DFID,10/07/2013,Project delivery costs - supplier services ,Asia  Caribbean and Overseas Territories ,CHRISTIAN AID ,113311-101 ,"103,591.73",
DFID,DFID,10/07/2013,Aid Programme - Voluntary contributions ,West and Southern Africa ,COMESA (GBP) ,114050-111 ,"106,586.11",
DFID,DFID,10/07/2013,Aid Programme - Voluntary contributions ,East and Central Africa ,UNOPS ,201622-101 ,"137,000.00",
DFID,DFID,10/07/2013,Project delivery costs - supplier services ,International Finance Division ,Nathan Associates London Ltd ,114009-102 ,"193,975.26",
DFID,DFID,10/07/2013,Research & Development costs ,Research and Evidence Division ,UNITED NATIONS FOUNDATION ,203036-101 ,"200,000.00",
DFID,DFID,10/07/2013,Project delivery costs - supplier services ,Communications Division ,Pearson ,201469-103 ,"280,828.00",
DFID,DFID,10/07/2013,Research & Development costs ,Research and Evidence Division ,London School of Hygiene and Tropical Medicine ,201447-101 ,"286,076.17",
DFID,DFID,10/07/2013,Project delivery costs - supplier services ,Western Asia and Stabilisation Division ,Supplier Name withheld ,203474-104 ,"418,035.00",
DFID,DFID,10/07/2013,Project delivery costs - supplier services ,Communications Division ,Pearson ,201469-103 ,"456,345.00",
DFID,DFID,10/07/2013,Aid Programme - Joint programme contribution ,Research and Evidence Division ,INTERNATIONAL DEVELOPMENT RESEARCH CENTRE ,203506-101 ,"552,819.00",
DFID,DFID,10/07/2013,Aid Programme - Joint programme contribution ,Research and Evidence Division ,USAID Washington ,203705-116 ,"571,381.00",
DFID,DFID,10/07/2013,Aid Programme - Partnership Programme Arrangements ,Policy Division ,WWF-UK ,202661-101 ,"772,589.00",
DFID,DFID,10/07/2013,Aid Programme - Voluntary contributions ,Middle East & North Africa Division (MENAD) ,WFP CONTRIBUTIONS UNIT ,202375-101 ,"1,400,000.00",
DFID,DFID,10/07/2013,Aid Programme - Core contributions ,Research and Evidence Division ,WHO (GENEVA) ,203082-101 ,"1,500,000.00",
DFID,DFID,10/07/2013,Aid Programme - Voluntary contributions ,West and Southern Africa ,COMESA (GBP) ,114050-111 ,"2,556,722.00",
DFID,DFID,10/07/2013,Aid Programme - Strategic Grant Arrangement payments ,Policy Division ,VSO ,202414-102 ,"5,500,000.00",
DFID,DFID,11/07/2013,Air fares ,West and Southern Africa ,Harvey World Travel Centurion ,101631-101 ,529.72,
DFID,DFID,11/07/2013,Air fares ,West and Southern Africa ,Harvey World Travel Centurion ,101631-101 ,532.18,
DFID,DFID,11/07/2013,Telephone Usage & services ,West and Southern Africa ,Zambia Telecommunications Co Ltd ,101637-101 ,563.25,
DFID,DFID,11/07/2013,Air fares ,Asia  Caribbean and Overseas Territories ,KUONI BUSINESS TRAVEL INDIA PVT LTD ,101621-101 ,579.81,
DFID,DFID,11/07/2013,Contract & Agency Staff ,Human Resources Security & Facilities Division ,Anderson Knight Ltd ,100270-104 ,589.41,
DFID,DFID,11/07/2013,Contract & Agency Staff ,Human Resources Security & Facilities Division ,Anderson Knight Ltd ,100270-104 ,589.41,
DFID,DFID,11/07/2013,Contract & Agency Staff ,Human Resources Security & Facilities Division ,Anderson Knight Ltd ,100270-104 ,589.41,
DFID,DFID,11/07/2013,Contract & Agency Staff ,Human Resources Security & Facilities Division ,Anderson Knight Ltd ,100270-104 ,589.41,
DFID,DFID,11/07/2013,Contract & Agency Staff ,Human Resources Security & Facilities Division ,Anderson Knight Ltd ,100272-101 ,589.41,
DFID,DFID,11/07/2013,Contract & Agency Staff ,Human Resources Security & Facilities Division ,Anderson Knight Ltd ,100272-101 ,677.47,
DFID,DFID,11/07/2013,Hostile Environment Training ,Western Asia and Stabilisation Division ,Recipient name withheld ,203940-102 ,804.72,
DFID,DFID,11/07/2013,Conferences  Seminars & Meeting/Event Resource ,Conflict Humanitarian and Security Division ,CHURCH HOUSE CONFERENCE CENTRE ,100049-101 ,807.60,
DFID,DFID,11/07/2013,Telephone Usage & services ,West and Southern Africa ,Zambia Telecommunications Co Ltd ,101637-101 ,866.58,
DFID,DFID,11/07/2013,Mobile telephones & accessories ,West and Southern Africa ,MCell ,101620-101 ,886.84,
DFID,DFID,11/07/2013,Project delivery costs - supplier services ,Western Asia and Stabilisation Division ,SHAHID HAFIZ KARDAR ,202378-107 ,932.43,
DFID,DFID,11/07/2013,Training - Course Fees ,Group Operations ,VULCAN FIRE TRAINING CO LTD ,100161-101 ,982.80,
DFID,DFID,11/07/2013,Telephone Usage & services ,West and Southern Africa ,Zambia Telecommunications Co Ltd ,101637-101 ,"1,015.51",
DFID,DFID,11/07/2013,Training - Travel & Subsistence ,West and Southern Africa ,British Airways PLC ,101622-106 ,"1,147.15",
DFID,DFID,11/07/2013,Contract & Agency Staff ,Human Resources Security & Facilities Division ,Anderson Knight Ltd ,100270-104 ,"1,178.82",
DFID,DFID,11/07/2013,Training - Travel & Subsistence ,West and Southern Africa ,British Airways PLC ,100152-114 ,"1,279.68",
DFID,DFID,11/07/2013,Other rentals ,West and Southern Africa ,JAT Constroi ,100148-101 ,"1,313.64",
DFID,DFID,11/07/2013,Training - Course Fees ,Research and Evidence Division ,Open Data Institute ,202392-101 ,"1,344.00",
DFID,DFID,11/07/2013,Air fares ,West and Southern Africa ,UNHAS - WFP (DRC) ,101610-101 ,"1,482.55",
DFID,DFID,11/07/2013,Contract & Agency Staff ,Finance and Corporate Performance Division ,MICHAEL PAGE INTERNATIONAL RECRUITMENT LIMITED ,100201-101 ,"1,650.00",
DFID,DFID,11/07/2013,Other rentals ,West and Southern Africa ,Condominios JAT ,101620-101 ,"1,819.50",
DFID,DFID,11/07/2013,Contract Catering Services ,Group Operations ,MITIE Catering Services Ltd ,203717-101 ,"1,938.15",
DFID,DFID,11/07/2013,Project delivery costs - supplier services ,Business Solutions Division Level ,Parity Resources ,200003-154 ,"1,968.65",
DFID,DFID,11/07/2013,Furniture & Fittings ,East and Central Africa ,M.S.MEGJI LTD ,101634-101 ,"2,992.08",
DFID,DFID,11/07/2013,Project delivery costs - supplier services ,Western Asia and Stabilisation Division ,Dr Sohail Jehangir Malik ,113484-106 ,"3,208.06",
DFID,DFID,11/07/2013,Other non-passenger transportation ,Asia  Caribbean and Overseas Territories ,G4S FACILITY SERVICES (INDIA) PVT. L ,201689-105 ,"3,232.77",
DFID,DFID,11/07/2013,Other non-passenger transportation ,Asia  Caribbean and Overseas Territories ,G4S FACILITY SERVICES (INDIA) PVT. L ,201689-105 ,"3,322.04",
DFID,DFID,11/07/2013,Repairs  Maint  Alter - Property & Constrct. Services ,West and Southern Africa ,Circuit Board (Nig) Ltd ,101622-105 ,"3,495.07",
DFID,DFID,11/07/2013,Other rentals ,West and Southern Africa ,JAT Constroi ,101620-101 ,"5,254.57",
DFID,DFID,11/07/2013,Secure Staff Accommodation ,West and Southern Africa ,Supplier Name withheld ,101637-101 ,"5,261.52",
DFID,DFID,11/07/2013,Project delivery costs - supplier services ,East and Central Africa ,Rugemeleza Albert Kamuhabwa Nshala ,203459-106 ,"5,302.06",
DFID,DFID,11/07/2013,Secure Staff Accommodation ,West and Southern Africa ,Supplier Name withheld ,101620-101 ,"6,242.74",
DFID,DFID,11/07/2013,Other rentals ,West and Southern Africa ,JAT Constroi ,100148-101 ,"6,289.93",
DFID,DFID,11/07/2013,House rentals ,Asia  Caribbean and Overseas Territories ,FOREIGN AND COMMONWEALTH OFFICE (FCO) ,202403-101 ,"8,575.59",
DFID,DFID,11/07/2013,Project delivery costs - supplier services ,Policy Division ,KPMG Development Services ,100045-101 ,"9,973.29",
DFID,DFID,11/07/2013,Project delivery costs - supplier services ,East and Central Africa ,HTSPE LTD ,103548-101 ,"10,399.00",
DFID,DFID,11/07/2013,Project delivery costs - supplier services ,Policy Division ,KPMG Development Services ,100045-101 ,"11,313.98",
DFID,DFID,11/07/2013,Project delivery costs - supplier services ,Asia  Caribbean and Overseas Territories ,ERNST &  YOUNG PRIVATE LTD ,200599-101 ,"11,705.17",
DFID,DFID,11/07/2013,Secure Staff Accommodation ,West and Southern Africa ,Supplier Name withheld ,203001-104 ,"13,681.95",
DFID,DFID,11/07/2013,Project delivery costs - supplier services ,West and Southern Africa ,Mr Johan Verhaghe ,203154-101 ,"15,540.00",
DFID,DFID,11/07/2013,Project delivery costs - supplier services ,East and Central Africa ,HTSPE LTD ,203603-101 ,"16,621.89",
DFID,DFID,11/07/2013,Aid Programme - Accountable Grant Payments ,Communications Division ,Retrak ,202197-101 ,"23,563.00",
DFID,DFID,11/07/2013,Other rentals ,West and Southern Africa ,JAT Constroi ,101620-101 ,"25,159.71",DFID Office Rent -2nd Quarter 2013/14  Mozambique
DFID,DFID,11/07/2013,Project delivery costs - supplier services ,East and Central Africa ,KPMG EAST AFRICA LTD ,201866-109 ,"33,070.45",
DFID,DFID,11/07/2013,Project delivery costs - supplier services ,Asia  Caribbean and Overseas Territories ,ERNST &  YOUNG PRIVATE LTD ,200599-101 ,"33,708.00",
DFID,DFID,11/07/2013,Aid Programme - Accountable Grant Payments ,Western Asia and Stabilisation Division ,Institute of Social and Policy Sciences (I-SAPS) ,201337-102 ,"37,409.00",
DFID,DFID,11/07/2013,Project delivery costs - supplier services ,Policy Division ,COFFEY INTERNATIONAL DEVELOPMENT LTD ,202035-101 ,"60,334.44",
DFID,DFID,11/07/2013,Project delivery costs - supplier services ,Asia  Caribbean and Overseas Territories ,OXFORD POLICY MANAGEMENT ,203123-101 ,"65,492.22",
DFID,DFID,11/07/2013,Project delivery costs - supplier services ,Policy Division ,KPMG Development Services ,114143-101 ,"67,100.00",
DFID,DFID,11/07/2013,Project delivery costs - supplier services ,Policy Division ,KPMG Development Services ,114143-101 ,"76,000.00",
DFID,DFID,11/07/2013,Aid Programme - Accountable Grant Payments ,Asia  Caribbean and Overseas Territories ,Transparency International Berlin ,200621-101 ,"115,966.13",
DFID,DFID,11/07/2013,Project delivery costs - supplier services ,Asia  Caribbean and Overseas Territories ,INFRASTRUCTURE PROFESSIONALS ENTERPRISE ,203217-101 ,"122,809.48",
DFID,DFID,11/07/2013,Project delivery costs - supplier services ,Asia  Caribbean and Overseas Territories ,DELOITTE TOUCHE TOHAMATSU INDIA PRIVATE LTD (DTTIPL) ,107891-102 ,"139,323.00",
DFID,DFID,11/07/2013,Aid Programme - Partnership Programme Arrangements ,Policy Division ,ACTION ON DISABILITY AND DE ,202561-101 ,"283,456.25",
DFID,DFID,11/07/2013,Aid Programme - Joint programme contribution ,West and Southern Africa ,Royal Norwegian Embassy Lilongwe ,204006-102 ,"297,162.54",
DFID,DFID,11/07/2013,Aid Programme - Accountable Grant Payments ,Communications Division ,CAFOD ,202197-101 ,"765,690.00",
DFID,DFID,11/07/2013,Encashment of Promissory Notes ,International Finance Division ,Asian Development Bank ,200614-105 ,"1,250,024.00",
DFID,DFID,11/07/2013,Encashment of Promissory Notes ,International Finance Division ,Asian Development Bank ,110992-104 ,"1,969,000.00",
DFID,DFID,11/07/2013,Encashment of Promissory Notes ,International Finance Division ,Asian Development Bank ,200614-102 ,"3,360,976.00",
DFID,DFID,12/07/2013,Hostile Environment Training ,Western Asia and Stabilisation Division ,Recipient name withheld ,203940-102 ,506.59,
DFID,DFID,12/07/2013,Air fares ,West and Southern Africa ,Supplier Name withheld ,101622-103 ,518.99,
DFID,DFID,12/07/2013,Hotels - Accommodation only ,Asia  Caribbean and Overseas Territories ,Recipient name withheld ,201689-102 ,521.03,
DFID,DFID,12/07/2013,Repairs  Maint  Alter - Property & Constrct. Services ,East and Central Africa ,S.E.T Electromechanical Works Plc  ,202913-104 ,536.18,
DFID,DFID,12/07/2013,Hotels - Accommodation only ,West and Southern Africa ,Hotel VIP Maputo ,101631-101 ,560.32,
DFID,DFID,12/07/2013,Medical/Health Services ,Western Asia and Stabilisation Division ,INTERHEALTH ,203940-103 ,588.00,
DFID,DFID,12/07/2013,Contract & Agency Staff ,Human Resources Security & Facilities Division ,Anderson Knight Ltd ,100272-101 ,589.41,
DFID,DFID,12/07/2013,Air fares ,West and Southern Africa ,Supplier Name withheld ,100152-106 ,601.37,
DFID,DFID,12/07/2013,Medical/Health Services ,Western Asia and Stabilisation Division ,INTERHEALTH ,203940-103 ,608.90,
DFID,DFID,12/07/2013,Telephone Usage & services ,East and Central Africa ,MTN Uganda Ltd ,101635-101 ,652.41,
DFID,DFID,12/07/2013,Training - Travel & Subsistence ,East and Central Africa ,Simbatravelcare Limited ,101635-101 ,677.85,
DFID,DFID,12/07/2013,Hotels - Accommodation only ,Joint Trade Policy Division ,Recipient name withheld ,100124-101 ,698.89,
DFID,DFID,12/07/2013,Hotels - Accommodation only ,West and Southern Africa ,Hotel VIP Maputo ,101631-101 ,700.40,
DFID,DFID,12/07/2013,Telephone Usage & services ,East and Central Africa ,MTN Uganda Ltd ,101635-101 ,701.97,
DFID,DFID,12/07/2013,Facilities Management payments ,East and Central Africa ,Dream Clean Limited ,101635-101 ,711.37,
DFID,DFID,12/07/2013,Medical/Health Services ,Western Asia and Stabilisation Division ,INTERHEALTH ,203940-103 ,741.45,
DFID,DFID,12/07/2013,Air fares ,West and Southern Africa ,Supplier Name withheld ,114073-101 ,778.38,
DFID,DFID,12/07/2013,Entertainment & Hospitality ,East and Central Africa ,MAKINDYE COUNTRY CLUB LTD ,101635-101 ,794.01,
DFID,DFID,12/07/2013,Medical/Health Services ,Western Asia and Stabilisation Division ,INTERHEALTH ,203940-103 ,795.05,
DFID,DFID,12/07/2013,Auditors Remuneration & Expenses - Cash ,West and Southern Africa ,RSM Tenon Limited ,103334-103 ,802.10,
DFID,DFID,12/07/2013,Contract & Agency Staff ,Finance and Corporate Performance Division ,Hays Specialist Recruitment Ltd ,100201-101 ,806.88,
DFID,DFID,12/07/2013,Legal costs ,Finance and Corporate Performance Division ,TREASURY SOLICITORS CASH ACC ,100201-101 ,901.44,
DFID,DFID,12/07/2013,Hotels - Accommodation only ,Top Management Group ,Harmony  Hotel ,100232-106 ,916.10,
DFID,DFID,12/07/2013,Oil - Other Utilities ,Western Asia and Stabilisation Division ,Babar Ali Foundation ,101624-101 ,927.96,
DFID,DFID,12/07/2013,Oil - Other Utilities ,Western Asia and Stabilisation Division ,Babar Ali Foundation ,101624-101 ,"1,046.05",
DFID,DFID,12/07/2013,Repairs  Maint  Alter - Removal & waste disposal services ,Group Operations ,BYWATERS ,100187-101 ,"1,104.86",
DFID,DFID,12/07/2013,Contract & Agency Staff ,Business Solutions Division Level ,ALLEGIS GROUP LIMITED ,200001-101 ,"1,170.00",
DFID,DFID,12/07/2013,Project delivery costs - supplier services ,East and Central Africa ,Susan Amlango Aletia ,103548-101 ,"1,295.54",
DFID,DFID,12/07/2013,Project delivery costs - supplier services ,East and Central Africa ,Oloya Aliker Tebere ,200250-106 ,"1,381.10",
DFID,DFID,12/07/2013,Hostile Environment Training ,East and Central Africa ,Simbatravelcare Limited ,200171-103 ,"1,532.89",
DFID,DFID,12/07/2013,Air fares ,West and Southern Africa ,Supplier Name withheld ,101622-105 ,"1,689.98",
DFID,DFID,12/07/2013,Air fares ,Western Asia and Stabilisation Division ,BONDS TRAVEL BUREAU ,100020-101 ,"1,819.78",
DFID,DFID,12/07/2013,Project delivery costs - supplier services ,International Finance Division ,INSTITUTE OF DEV  STUDIES UNIVER ,100120-101 ,"2,083.33",
DFID,DFID,12/07/2013,Project delivery costs - supplier services ,Policy Division ,COFFEY INTERNATIONAL DEVELOPMENT LTD ,202372-104 ,"5,110.00",
DFID,DFID,12/07/2013,Secure Staff Accommodation ,East and Central Africa ,Supplier Name withheld ,101628-101 ,"8,073.60",
DFID,DFID,12/07/2013,Facilities Management payments ,Asia  Caribbean and Overseas Territories ,CB RICHARD ELLIS SOUTH ASIA PVT LTD ,201689-105 ,"8,240.39",
DFID,DFID,12/07/2013,Conferences  Seminars & Meeting/Event Resource ,Research and Evidence Division ,ADAM SMITH INTERNATIONAL  LTD ,203778-101 ,"9,002.21",
DFID,DFID,12/07/2013,Project delivery costs - supplier services ,Policy Division ,PATH ,202674-101 ,"11,751.72",
DFID,DFID,12/07/2013,Project delivery costs - supplier services ,Asia  Caribbean and Overseas Territories ,Ivan Scott ,200696-103 ,"12,217.06",
DFID,DFID,12/07/2013,Facilities Management payments ,Asia  Caribbean and Overseas Territories ,CB RICHARD ELLIS SOUTH ASIA PVT LTD ,201689-105 ,"14,101.07",
DFID,DFID,12/07/2013,Project delivery costs - supplier services ,Policy Division ,COFFEY INTERNATIONAL DEVELOPMENT LTD ,202372-104 ,"15,942.80",
DFID,DFID,12/07/2013,Hostile Environment Training ,Western Asia and Stabilisation Division ,KBR IGDSS ,203940-102 ,"28,790.55",
DFID,DFID,12/07/2013,Project delivery costs - supplier services ,Asia  Caribbean and Overseas Territories ,CARE INTERNATIONAL ,114506-101 ,"32,538.63",
DFID,DFID,12/07/2013,Project delivery costs - supplier services ,Western Asia and Stabilisation Division ,The SecDev Group ,203941-103 ,"47,259.24",
DFID,DFID,12/07/2013,Aid Programme - Accountable Grant Payments ,International Relations Division ,ECDPM GBP ,203009-101 ,"61,364.76",
DFID,DFID,12/07/2013,Project delivery costs - supplier services ,West and Southern Africa ,OXFORD POLICY MANAGEMENT ,203965-101 ,"62,752.02",
DFID,DFID,12/07/2013,Project delivery costs - supplier services ,Research and Evidence Division ,COFFEY INTERNATIONAL DEVELOPMENT LTD ,203193-101 ,"77,572.80",
DFID,DFID,12/07/2013,Aid Programme - Partnership Programme Arrangements ,Policy Division ,WOMANKIND WORLDWIDE (JFS) ,202548-101 ,"140,095.75",
DFID,DFID,12/07/2013,Aid Programme - Partnership Programme Arrangements ,Policy Division ,GENDER LINKS ,202576-101 ,"156,216.75",
DFID,DFID,12/07/2013,Aid Programme - Accountable Grant Payments ,East and Central Africa ,TechnoServe  Incorporated ,202844-104 ,"333,626.00",
DFID,DFID,12/07/2013,Aid Programme - Accountable Grant Payments ,West and Southern Africa ,National Business Initiative for Growth  Development and Democracy ,202555-102 ,"411,002.76",
DFID,DFID,12/07/2013,Aid Programme - Core contributions ,Policy Division ,UNDP (USD) ACCOUNT ,203184-101 ,"1,144,000.00",
DFID,DFID,12/07/2013,Project delivery costs - supplier services ,West and Southern Africa ,HTSPE LTD ,104189-101 ,"1,591,417.93",
DFID,DFID,12/07/2013,Aid Programme - Trust Funds contributions ,Joint Trade Policy Division ,IBRD HSBC T ,203528-101 ,"2,000,000.00",
DFID,DFID,14/07/2013,Repairs  Maintenance and Alterations - Other Building Costs ,Asia  Caribbean and Overseas Territories ,Anex Engineering & Electric Company ,201652-104 ,"1,361.70",
DFID,DFID,14/07/2013,Secure Staff Accommodation ,West and Southern Africa ,Supplier Name withheld ,101620-101 ,"6,783.86",
DFID,DFID,15/07/2013,Air fares ,West and Southern Africa ,Supplier Name withheld ,101622-103 ,542.02,
DFID,DFID,15/07/2013,Storage & Distribution costs ,West and Southern Africa ,PICKFORDS LTD ,101613-101 ,559.23,
DFID,DFID,15/07/2013,Hotels - Accommodation only ,West and Southern Africa ,Supplier Name withheld ,100152-110 ,577.65,
DFID,DFID,15/07/2013,Hotels - Accommodation only ,West and Southern Africa ,Supplier Name withheld ,100152-110 ,595.70,
DFID,DFID,15/07/2013,Office Supplies ,West and Southern Africa ,Papirus Plus Lda ,101620-101 ,599.39,
DFID,DFID,15/07/2013,Repairs  Maint  Alter - Property & Constrct. Services ,West and Southern Africa ,Kay Two Zambia Limited ,101637-101 ,704.70,
DFID,DFID,15/07/2013,Hotels - Accommodation only ,West and Southern Africa ,Supplier Name withheld ,101622-105 ,765.72,
DFID,DFID,15/07/2013,Recruitment costs ,West and Southern Africa ,Times Printpak (Z) Ltd ,101637-101 ,783.84,
DFID,DFID,15/07/2013,Hotels - Accommodation only ,West and Southern Africa ,Supplier Name withheld ,101622-105 ,789.65,
DFID,DFID,15/07/2013,Hotels - Accommodation only ,Western Asia and Stabilisation Division ,Recipient name withheld ,203938-101 ,947.26,
DFID,DFID,15/07/2013,Furniture & Fittings ,East and Central Africa ,Hussein Seif Aziz ,203848-101 ,993.09,
DFID,DFID,15/07/2013,Legal costs ,West and Southern Africa ,Savjani & Company ,101618-101 ,"1,214.62",
DFID,DFID,15/07/2013,Legal costs ,West and Southern Africa ,Savjani & Company ,101618-101 ,"1,221.56",
DFID,DFID,15/07/2013,Repairs  Maint  Alter - Property & Constrct. Services ,West and Southern Africa ,Kay Two Zambia Limited ,101637-101 ,"1,260.78",
DFID,DFID,15/07/2013,Hotels - Accommodation only ,West and Southern Africa ,Supplier Name withheld ,100152-105 ,"1,343.37",
DFID,DFID,15/07/2013,Office Supplies ,West and Southern Africa ,Papirus Plus Lda ,101620-101 ,"1,654.56",
DFID,DFID,15/07/2013,Repairs  Maint  Alter - Property & Constrct. Services ,West and Southern Africa ,Mr Eze Samson ,101622-105 ,"1,839.25",
DFID,DFID,15/07/2013,Storage & Distribution costs ,West and Southern Africa ,PICKFORDS LTD ,101613-101 ,"1,994.33",
DFID,DFID,15/07/2013,Repairs  Maint  Alter - Property & Constrct. Services ,Western Asia and Stabilisation Division ,Supplier Name withheld ,100061-101 ,"2,563.76",
DFID,DFID,15/07/2013,Project delivery costs - supplier services ,West and Southern Africa ,Lexterra  Lda ,103993-104 ,"2,745.03",
DFID,DFID,15/07/2013,Training - Course Fees ,Western Asia and Stabilisation Division ,Supplier Name withheld ,101601-110 ,"3,819.00",
DFID,DFID,15/07/2013,Secure Staff Accommodation ,West and Southern Africa ,Supplier Name withheld ,101637-101 ,"4,620.61",
DFID,DFID,15/07/2013,Legal costs ,West and Southern Africa ,Lexterra  Lda ,103993-104 ,"4,832.21",
DFID,DFID,15/07/2013,Repairs  Maint  Alter - Property & Constrct. Services ,Western Asia and Stabilisation Division ,Supplier Name withheld ,100061-101 ,"4,859.06",
DFID,DFID,16/07/2013,Hotels - Accommodation only ,Policy Division ,Recipient name withheld ,100274-107 ,520.17,
DFID,DFID,16/07/2013,Office Equipment - Purchases ,East and Central Africa ,DIPLOMATIC MISSION SUPPLIES ,101628-101 ,531.25,
DFID,DFID,16/07/2013,Medical/Health Services ,Western Asia and Stabilisation Division ,INTERHEALTH ,202288-104 ,561.00,
DFID,DFID,16/07/2013,Further Education costs ,West and Southern Africa ,Recipient name withheld ,100152-114 ,579.02,
DFID,DFID,16/07/2013,Contract & Agency Staff ,Human Resources Security & Facilities Division ,MARGARET HODGE RECRUITMENT LTD ,100266-109 ,623.08,
DFID,DFID,16/07/2013,Mobile telephones & accessories ,East and Central Africa ,Sudanese Mobile Telephone (Zain) Co Ltd ,202594-101 ,644.47,
DFID,DFID,16/07/2013,Generators & spares ,West and Southern Africa ,Oduntor C.Wilson ,101629-101 ,694.57,
DFID,DFID,16/07/2013,Vehicle Petrol & Oil ,West and Southern Africa ,Shell Ghana Limited ,101613-101 ,711.05,
DFID,DFID,16/07/2013,Conferences  Seminars & Meeting/Event Resource ,Western Asia and Stabilisation Division ,WILTON PARK ,203944-102 ,730.00,
DFID,DFID,16/07/2013,Hotels - Accommodation only ,Policy Division ,Southern African Confederation of Agricultural Unions ,203184-101 ,771.78,
DFID,DFID,16/07/2013,Mobile telephones & accessories ,West and Southern Africa ,ECONET ,101638-104 ,790.62,
DFID,DFID,16/07/2013,Hotels - Accommodation only ,International Finance Division ,Recipient name withheld ,203362-101 ,816.30,
DFID,DFID,16/07/2013,Hotels - Accommodation only ,Finance and Corporate Performance Division ,Recipient name withheld ,202836-103 ,911.74,
DFID,DFID,16/07/2013,Hotels - Accommodation only ,Policy Division ,Recipient name withheld ,100274-107 ,"1,130.53",
DFID,DFID,16/07/2013,Project delivery costs - supplier services ,International Relations Division ,ART OF LIVING ,202319-101 ,"1,166.83",
DFID,DFID,16/07/2013,Project delivery costs - supplier services ,Asia  Caribbean and Overseas Territories ,Pradeep Kumar Shrestha ,203275-104 ,"1,388.77",
DFID,DFID,16/07/2013,Hotels - Accommodation only ,East and Central Africa ,SORAS ,101628-101 ,"1,589.40",
DFID,DFID,16/07/2013,Hotels - Accommodation only ,East and Central Africa ,SORAS ,203848-101 ,"1,589.40",
DFID,DFID,16/07/2013,Project delivery costs - supplier services ,International Finance Division ,Nathan Associates London Ltd ,114009-103 ,"1,962.00",
DFID,DFID,16/07/2013,Repairs  Maint  Alter - Property & Constrct. Services ,East and Central Africa ,DMS AFRICA ,202594-101 ,"2,436.00",
DFID,DFID,16/07/2013,Repairs  Maint  Alter - Removal & waste disposal services ,Group Operations ,BYWATERS ,203717-101 ,"2,856.14",
DFID,DFID,16/07/2013,Project delivery costs - supplier services ,Asia  Caribbean and Overseas Territories ,Dr Rajan Suwal  ,200696-103 ,"2,871.44",
DFID,DFID,16/07/2013,Facilities Management payments ,Asia  Caribbean and Overseas Territories ,John Sanday Associates Pvt. Ltd ,101621-103 ,"3,456.45",
DFID,DFID,16/07/2013,Project delivery costs - supplier services ,Asia  Caribbean and Overseas Territories ,Deego Pvt Ltd                                                                                                     ,203186-105 ,"3,850.72",
DFID,DFID,16/07/2013,Repairs  Maint  Alter - Property & Constrct. Services ,East and Central Africa ,DMS AFRICA ,202586-101 ,"4,179.56",
DFID,DFID,16/07/2013,Project delivery costs - supplier services ,West and Southern Africa ,CHARLES KENDALL & PARTNERS LIMITED (PROCUREMENT) ,113961-106 ,"4,380.79",
DFID,DFID,16/07/2013,Secure Staff Accommodation ,Asia  Caribbean and Overseas Territories ,Supplier Name withheld ,100025-101 ,"4,469.27",
DFID,DFID,16/07/2013,Repairs  Maint  Alter - Property & Constrct. Services ,East and Central Africa ,DMS AFRICA ,202594-101 ,"5,033.38",
DFID,DFID,16/07/2013,Project delivery costs - supplier services ,Asia  Caribbean and Overseas Territories ,Cogent Consulting ,107448-101 ,"5,071.51",
DFID,DFID,16/07/2013,Repairs  Maint  Alter - Property & Constrct. Services ,East and Central Africa ,DMS AFRICA ,202586-101 ,"6,000.00",
DFID,DFID,16/07/2013,Project delivery costs - supplier services ,East and Central Africa ,OXFORD POLICY MANAGEMENT ,201512-103 ,"6,600.00",
DFID,DFID,16/07/2013,Storage & Distribution costs ,West and Southern Africa ,PICKFORDS SELF STORE ,101613-101 ,"7,005.65",
DFID,DFID,16/07/2013,Contract & Agency Staff ,Business Solutions Division Level ,Networkers Recruitment Services Ltd ,200001-101 ,"7,034.70",
DFID,DFID,16/07/2013,Repairs  Maint  Alter - Property & Constrct. Services ,East and Central Africa ,DMS AFRICA ,202594-101 ,"8,826.70",
DFID,DFID,16/07/2013,Project delivery costs - supplier services ,West and Southern Africa ,OXFORD POLICY MANAGEMENT ,202819-102 ,"8,881.33",
DFID,DFID,16/07/2013,Project delivery costs - supplier services ,Non-Departmental Public Body ,NATIONAL AUDIT OFFICE ,203064-101 ,"9,393.08",
DFID,DFID,16/07/2013,Secure Staff Accommodation ,West and Southern Africa ,Supplier Name withheld ,101620-101 ,"9,933.77",
DFID,DFID,16/07/2013,Secure Staff Accommodation ,Asia  Caribbean and Overseas Territories ,Supplier Name withheld ,101603-101 ,"12,351.73",
DFID,DFID,16/07/2013,Project delivery costs - supplier services ,East and Central Africa ,COFFEY INTERNATIONAL DEVELOPMENT LTD ,200779-107 ,"13,704.82",
DFID,DFID,16/07/2013,Aid Programme - Accountable Grant Payments ,East and Central Africa ,The Somaliland Development Corporation ,203742-101 ,"20,065.00",
DFID,DFID,16/07/2013,Project delivery costs - supplier services ,Policy Division ,HLSP LTD ,202860-101 ,"21,569.10",
DFID,DFID,16/07/2013,Project delivery costs - supplier services ,Finance and Corporate Performance Division ,ITAD LTD ,203316-101 ,"23,665.50",
DFID,DFID,16/07/2013,Project delivery costs - supplier services ,West and Southern Africa ,GRM INTERNATIONAL LTD ,103993-102 ,"25,732.80",
DFID,DFID,16/07/2013,Project delivery costs - supplier services ,Asia  Caribbean and Overseas Territories ,CARE INTERNATIONAL ,114506-101 ,"27,115.46",
DFID,DFID,16/07/2013,Legal costs ,Asia  Caribbean and Overseas Territories ,Marriott Davies Yapp LLP ,107955-101 ,"33,656.00",
DFID,DFID,16/07/2013,Print Services ,West and Southern Africa ,New Horizon Printing Press ,201978-102 ,"46,665.11",
DFID,DFID,16/07/2013,Project delivery costs - supplier services ,Asia  Caribbean and Overseas Territories ,ERNST &  YOUNG PRIVATE LTD ,200599-101 ,"50,911.83",
DFID,DFID,16/07/2013,Aid Programme - Accountable Grant Payments ,Communications Division ,SAVE THE CHILDREN UK ,202197-101 ,"65,692.00",
DFID,DFID,16/07/2013,Project delivery costs - supplier services ,Research and Evidence Division ,COFFEY INTERNATIONAL DEVELOPMENT LTD ,203193-101 ,"77,572.80",
DFID,DFID,16/07/2013,Project delivery costs - supplier services ,East and Central Africa ,THE SAVE THE CHILDREN FUND ,202891-101 ,"100,000.00",
DFID,DFID,16/07/2013,Project delivery costs - supplier services ,West and Southern Africa ,SCHOOL OF ORIENTAL & AFRICAN STUDIES ,202524-107 ,"103,500.00",
DFID,DFID,16/07/2013,Aid Programme - Joint programme contribution ,West and Southern Africa ,the Royal Danish Embassy Office ,202351-103 ,"113,333.33",
DFID,DFID,16/07/2013,Aid Programme - Accountable Grant Payments ,West and Southern Africa ,INTERNATIONAL RESCUE COMMITTEE UK ,203771-105 ,"146,536.00",
DFID,DFID,16/07/2013,Project delivery costs - supplier services ,West and Southern Africa ,GRM INTERNATIONAL LTD ,103993-102 ,"203,445.20",
DFID,DFID,16/07/2013,Project delivery costs - supplier services ,Communications Division ,VOLUNTARY SERVICE OVERSEAS ,202883-101 ,"400,000.00",
DFID,DFID,16/07/2013,Aid Programme - Partnership Programme Arrangements ,Policy Division ,FARM-Africa ,202624-101 ,"769,567.50",
DFID,DFID,16/07/2013,Aid Programme - Partnership Programme Arrangements ,Policy Division ,CAFOD ,202669-101 ,"1,044,410.75",
DFID,DFID,16/07/2013,Project delivery costs - supplier services ,West and Southern Africa ,Society for Family  Health ,114206-101 ,"1,228,503.96",
DFID,DFID,16/07/2013,Aid Programme - Accountable Grant Payments ,East and Central Africa ,POPULATION  SERVICES INTERNATIONAL ,202841-104 ,"1,388,962.00",
DFID,DFID,16/07/2013,Aid Programme - Trust Funds contributions ,Asia  Caribbean and Overseas Territories ,IBRD HSBC T ,114269-102 ,"4,700,000.00",
DFID,DFID,17/07/2013,Hotels - Accommodation only ,West and Southern Africa ,Recipient name withheld ,101610-101 ,519.87,
DFID,DFID,17/07/2013,Telephone Usage & services ,Western Asia and Stabilisation Division ,Supplier Name withheld ,100011-110 ,566.76,
DFID,DFID,17/07/2013,Hotels - Accommodation only ,West and Southern Africa ,Supplier Name withheld ,100152-110 ,577.65,
DFID,DFID,17/07/2013,Mobile telephones & accessories ,Asia  Caribbean and Overseas Territories ,Grameen Phone (USD) ,101603-101 ,606.25,
DFID,DFID,17/07/2013,Hotels - Accommodation only ,West and Southern Africa ,Supplier Name withheld ,100152-110 ,607.51,
DFID,DFID,17/07/2013,Vehicle Petrol & Oil ,West and Southern Africa ,British High Commission ,101629-101 ,614.76,
DFID,DFID,17/07/2013,Project delivery costs - supplier services ,Group Operations ,MITIE Technical Facilities Management Ltd ,203717-101 ,644.22,
DFID,DFID,17/07/2013,Repairs  Maint  Alter - Property & Constrct. Services ,Asia  Caribbean and Overseas Territories ,Recipient name withheld ,101603-101 ,703.18,
DFID,DFID,17/07/2013,Hotels - Accommodation only ,Joint Trade Policy Division ,Recipient name withheld ,100124-101 ,714.19,
DFID,DFID,17/07/2013,Water charges ,Asia  Caribbean and Overseas Territories ,Bal Krishna Dahal ,101621-103 ,724.54,
DFID,DFID,17/07/2013,Conferences  Seminars & Meeting/Event Resource ,West and Southern Africa ,Turvisa Girassol Bahia Hotel ,103993-104 ,761.75,
DFID,DFID,17/07/2013,Hotels - Accommodation only ,West and Southern Africa ,Supplier Name withheld ,101622-105 ,765.72,
DFID,DFID,17/07/2013,Cleaning Costs ,West and Southern Africa ,Sparklean Services Nig Ltd ,100152-110 ,793.69,
DFID,DFID,17/07/2013,Hotels - Accommodation only ,West and Southern Africa ,Supplier Name withheld ,101622-105 ,805.30,
DFID,DFID,17/07/2013,Repairs  Maint  Alter - Property & Constrct. Services ,Group Operations ,MITIE Technical Facilities Management Ltd ,100187-101 ,883.62,
DFID,DFID,17/07/2013,Hotels - Accommodation only ,Joint Trade Policy Division ,Recipient name withheld ,100124-101 ,941.67,
DFID,DFID,17/07/2013,Vehicle Repairs & Maintenance ,East and Central Africa ,Mustafa Auto Garage ,202586-101 ,978.72,
DFID,DFID,17/07/2013,Hotels - Accommodation only ,West and Southern Africa ,Supplier Name withheld ,200332-101 ,"1,066.95",
DFID,DFID,17/07/2013,Contract & Agency Staff ,Finance and Corporate Performance Division ,Hays Specialist Recruitment Ltd ,100201-101 ,"1,068.36",
DFID,DFID,17/07/2013,Repairs  Maint  Alter - Removal & waste disposal services ,Group Operations ,BYWATERS ,100187-101 ,"1,104.86",
DFID,DFID,17/07/2013,Postage Costs ,Group Operations ,TNT Express (UK) Ltd ,100106-101 ,"1,106.82",
DFID,DFID,17/07/2013,Repairs  Maint  Alter - Property & Constrct. Services ,East and Central Africa ,DMS AFRICA ,202586-101 ,"1,134.71",
DFID,DFID,17/07/2013,Contract & Agency Staff ,Finance and Corporate Performance Division ,Hays Specialist Recruitment Ltd ,100201-101 ,"1,163.66",
DFID,DFID,17/07/2013,Project delivery costs - supplier services ,West and Southern Africa ,CHARLES KENDALL & PARTNERS LIMITED (PROCUREMENT) ,202524-113 ,"1,203.04",
DFID,DFID,17/07/2013,Project delivery costs - supplier services ,Policy Division ,HTSPE LTD ,202650-102 ,"1,290.00",
DFID,DFID,17/07/2013,Hotels - Accommodation only ,West and Southern Africa ,Supplier Name withheld ,100152-109 ,"1,340.04",
DFID,DFID,17/07/2013,Hotels - Accommodation only ,West and Southern Africa ,Supplier Name withheld ,100152-105 ,"1,343.37",
DFID,DFID,17/07/2013,Vehicle Repairs & Maintenance ,East and Central Africa ,Mustafa Auto Garage ,202594-101 ,"1,468.09",
DFID,DFID,17/07/2013,Repairs  Maint  Alter - Property & Constrct. Services ,East and Central Africa ,DMS AFRICA ,202594-101 ,"1,491.79",
DFID,DFID,17/07/2013,Telephone Usage & services ,Western Asia and Stabilisation Division ,Supplier Name withheld ,101601-110 ,"1,700.28",
DFID,DFID,17/07/2013,Storage & Distribution costs ,Asia  Caribbean and Overseas Territories ,PICKFORDS LTD ,101603-101 ,"1,754.99",
DFID,DFID,17/07/2013,Project delivery costs - supplier services ,Communications Division ,CYFANFYD ,201440-105 ,"1,775.00",
DFID,DFID,17/07/2013,Project delivery costs - supplier services ,Business Solutions Division Level ,OPIN SYSTEMS LIMITED ,200001-101 ,"1,920.00",
DFID,DFID,17/07/2013,Contract & Agency Staff ,Business Solutions Division Level ,Networkers Recruitment Services Ltd ,200001-101 ,"2,067.66",
DFID,DFID,17/07/2013,Contract & Agency Staff ,Finance and Corporate Performance Division ,Computer Futures ,200173-102 ,"2,100.00",
DFID,DFID,17/07/2013,Electricity ,Asia  Caribbean and Overseas Territories ,Dhaka Electric Supply Company Ltd ,101603-101 ,"2,142.06",
DFID,DFID,17/07/2013,Project delivery costs - supplier services ,Group Operations ,BRUTON KNOWLES ,203717-101 ,"2,171.16",
DFID,DFID,17/07/2013,Project delivery costs - supplier services ,East and Central Africa ,Pauline Akinyi Gogo ,103548-101 ,"2,253.93",
DFID,DFID,17/07/2013,Computer hardware maintenance ,Group Operations ,KCOM Group Plc ,203716-101 ,"2,775.88",
DFID,DFID,17/07/2013,Hotels - Accommodation only ,West and Southern Africa ,Supplier Name withheld ,202643-102 ,"2,880.76",
DFID,DFID,17/07/2013,Project delivery costs - supplier services ,East and Central Africa ,SAANA CONSULTING LTD ,200171-104 ,"2,893.03",
DFID,DFID,17/07/2013,Postage Costs ,Group Operations ,FCO SERVICES ,201157-101 ,"2,973.10",
DFID,DFID,17/07/2013,Gas ,Group Operations ,Government Procurement Service ,203717-101 ,"3,161.94",
DFID,DFID,17/07/2013,Cleaning Costs ,West and Southern Africa ,Sparklean Services Nig Ltd ,101622-105 ,"3,174.77",
DFID,DFID,17/07/2013,Water charges ,Group Operations ,THAMES WATER UTILITIES LTD ,100187-101 ,"3,318.40",
DFID,DFID,17/07/2013,Heating boilers & spares ,Group Operations ,Wood Energy ,100106-101 ,"3,319.92",
DFID,DFID,17/07/2013,Professional member subscriptions ,Human Resources Security & Facilities Division ,Towers Watson Limited ,100269-148 ,"3,828.00",
DFID,DFID,17/07/2013,Hotels - Accommodation only ,West and Southern Africa ,Supplier Name withheld ,104200-101 ,"4,161.09",
DFID,DFID,17/07/2013,Facilities Management payments ,Group Operations ,MITIE Technical Facilities Management Ltd ,100187-101 ,"4,264.19",
DFID,DFID,17/07/2013,Repairs  Maint  Alter - Property & Constrct. Services ,Group Operations ,MITIE Technical Facilities Management Ltd ,100106-101 ,"4,431.12",
DFID,DFID,17/07/2013,Project delivery costs - supplier services ,Western Asia and Stabilisation Division ,Supplier Name withheld ,114348-102 ,"4,908.00",
DFID,DFID,17/07/2013,Project delivery costs - supplier services ,Asia  Caribbean and Overseas Territories ,Harewelle International Limited. ,107402-105 ,"5,038.78",
DFID,DFID,17/07/2013,Telephone Usage & services ,Business Solutions Division Level ,FCO RECOVERIES UNIT ,200003-121 ,"5,142.85",
DFID,DFID,17/07/2013,Contract & Agency Staff ,Finance and Corporate Performance Division ,HUDSON GLOBAL RESOURCES LTD ,100201-101 ,"5,997.48",
DFID,DFID,17/07/2013,Repairs  Maintenance and Alterations - Other Building Costs ,Group Operations ,Government Procurement Service ,203717-101 ,"7,497.54",
DFID,DFID,17/07/2013,Repairs  Maint  Alter - Property & Constrct. Services ,Group Operations ,MITIE Technical Facilities Management Ltd ,203717-101 ,"7,952.54",
DFID,DFID,17/07/2013,Project delivery costs - supplier services ,East and Central Africa ,JET Education Services ,203956-101 ,"8,452.24",
DFID,DFID,17/07/2013,Project delivery costs - supplier services ,East and Central Africa ,Edward Russell ,203603-101 ,"9,000.00",
DFID,DFID,17/07/2013,Facilities Management payments ,Group Operations ,MITIE Technical Facilities Management Ltd ,100106-101 ,"9,715.40",
DFID,DFID,17/07/2013,Project delivery costs - supplier services ,Asia  Caribbean and Overseas Territories ,ERIC WOODS ,202123-105 ,"11,443.25",
DFID,DFID,17/07/2013,Cleaning Costs ,Group Operations ,MITIE Technical Facilities Management Ltd ,100106-101 ,"12,213.55",
DFID,DFID,17/07/2013,Project delivery costs - supplier services ,West and Southern Africa ,GRM INTERNATIONAL LTD ,113871-128 ,"13,374.51",
DFID,DFID,17/07/2013,Facilities Management payments ,Group Operations ,MITIE Technical Facilities Management Ltd ,203717-101 ,"14,928.04",
DFID,DFID,17/07/2013,Cleaning Costs ,Group Operations ,MITIE Technical Facilities Management Ltd ,203717-101 ,"16,053.83",
DFID,DFID,17/07/2013,Repairs  Maintenance and Alterations - Other Building Costs ,Group Operations ,Government Procurement Service ,203717-101 ,"19,408.10",
DFID,DFID,17/07/2013,Project delivery costs - supplier services ,West and Southern Africa ,CHANNEL RESEARCH ,202416-104 ,"21,410.63",
DFID,DFID,17/07/2013,Project delivery costs - supplier services ,Western Asia and Stabilisation Division ,Supplier Name withheld ,203497-102 ,"22,638.44",
DFID,DFID,17/07/2013,DFID Purchased Relief Supplies ,West and Southern Africa ,CHARLES KENDALL & PARTNERS LIMITED (PROCUREMENT) ,202524-112 ,"24,060.76",
DFID,DFID,17/07/2013,Project delivery costs - supplier services ,Policy Division ,CAMBRIDGE ECONOMIC POLICY ASSOCIATES ,202745-101 ,"24,066.00",
DFID,DFID,17/07/2013,Project delivery costs - supplier services ,Policy Division , Overseas Development Institute ,202653-101 ,"30,425.00",
DFID,DFID,17/07/2013,Computer software maintenance ,Business Solutions Division Level ,INSIGHT DIRECT (UK) LTD ,200002-147 ,"38,131.20",Annual Payment for E-mail Security Services (01/07/13 - 30/06/14) 
DFID,DFID,17/07/2013,Hostile Environment Training ,Western Asia and Stabilisation Division ,GroundTruth Consulting ,203940-102 ,"42,938.50",
DFID,DFID,17/07/2013,Project delivery costs - supplier services ,East and Central Africa ,MAXWELL STAMP PLC ,202891-104 ,"65,000.00",
DFID,DFID,17/07/2013,Other Building Products ,Asia  Caribbean and Overseas Territories ,XAL GMBH ,100114-104 ,"71,441.03",
DFID,DFID,17/07/2013,Aid Programme - Accountable Grant Payments ,Conflict Humanitarian and Security Division ,HARVARD UNIVERSITY (OFFICE FOR SPONSERED PROGRAMS) ,201898-103 ,"72,349.23",
DFID,DFID,17/07/2013,Aid Programme - Accountable Grant Payments ,Asia  Caribbean and Overseas Territories ,THE SAVE THE CHILDREN FUND ,203400-103 ,"74,585.00",
DFID,DFID,17/07/2013,Project delivery costs - supplier services ,Research and Evidence Division ,COFFEY INTERNATIONAL DEVELOPMENT LTD ,203193-101 ,"77,572.80",
DFID,DFID,17/07/2013,Project delivery costs - supplier services ,East and Central Africa ,Mennonite Economic Development Associates of Canada ,202481-104 ,"84,551.67",
DFID,DFID,17/07/2013,Project delivery costs - supplier services ,East and Central Africa ,ADAM SMITH INTERNATIONAL  LTD ,200221-107 ,"97,552.92",
DFID,DFID,17/07/2013,Aid Programme - Accountable Grant Payments ,Conflict Humanitarian and Security Division ,CHRISTIAN AID ,204051-101 ,"100,000.00",
DFID,DFID,17/07/2013,Project delivery costs - supplier services ,Asia  Caribbean and Overseas Territories ,Harewelle International Limited. ,107402-101 ,"101,446.47",
DFID,DFID,17/07/2013,Aid Programme - Challenge Fund payments ,Asia  Caribbean and Overseas Territories ,Harewelle International Limited. ,107402-106 ,"112,973.88",
DFID,DFID,17/07/2013,Aid Programme - Accountable Grant Payments ,Asia  Caribbean and Overseas Territories ,INTERNATIONAL RESCUE COMMITTEE UK ,203400-102 ,"130,018.00",
DFID,DFID,17/07/2013,Project delivery costs - supplier services ,East and Central Africa ,DELOITTE (UGANDA) LIMITED ,200787-107 ,"146,338.88",
DFID,DFID,17/07/2013,Aid Programme - Accountable Grant Payments ,Western Asia and Stabilisation Division ,Supplier Name withheld ,203496-101 ,"170,607.47",
DFID,DFID,17/07/2013,Project delivery costs - supplier services ,West and Southern Africa ,ADAM SMITH INTERNATIONAL  LTD ,114073-101 ,"194,208.35",
DFID,DFID,17/07/2013,Aid Programme - Joint programme contribution ,Asia  Caribbean and Overseas Territories ,UNDP CONTRIBUTIONS ACCOUNT ,200593-105 ,"200,000.00",
DFID,DFID,17/07/2013,Aid Programme - Core contributions ,Asia  Caribbean and Overseas Territories ,The World Bank (EFO) ,107454-101 ,"225,000.00",
DFID,DFID,17/07/2013,Aid Programme - Accountable Grant Payments ,Middle East & North Africa Division (MENAD) ,Carnegie Endowment for International Peace ,203436-101 ,"231,112.00",
DFID,DFID,17/07/2013,Aid Programme - Voluntary contributions ,Asia  Caribbean and Overseas Territories ,The World Bank (EFO) ,201375-104 ,"270,000.00",
DFID,DFID,17/07/2013,Aid Programme - Partnership Programme Arrangements ,Policy Division ,ISLAMIC RELIEF ,203105-101 ,"300,000.00",
DFID,DFID,17/07/2013,Aid Programme - Accountable Grant Payments ,West and Southern Africa ,POLICY AND LEGAL ADVOCACY CENTRE ,200274-109 ,"309,708.00",
DFID,DFID,17/07/2013,Aid Programme - Accountable Grant Payments ,Policy Division ,Center for Global Development ,202820-101 ,"313,200.00",
DFID,DFID,17/07/2013,Aid Programme - Other Financial Aid to Government ,Asia  Caribbean and Overseas Territories ,Jamaica Constabulary Force ,202591-101 ,"400,000.00",
DFID,DFID,17/07/2013,Project delivery costs - supplier services ,East and Central Africa ,Mennonite Economic Development Associates of Canada ,202481-104 ,"431,868.13",
DFID,DFID,17/07/2013,Project delivery costs - supplier services ,Asia  Caribbean and Overseas Territories ,GRM INTERNATIONAL LTD ,108572-101 ,"434,750.85",
DFID,DFID,17/07/2013,Aid Programme - Partnership Programme Arrangements ,Policy Division ,INTERNATIONAL ALERT ,202687-101 ,"434,790.00",
DFID,DFID,17/07/2013,Aid Programme - Partnership Programme Arrangements ,Policy Division ,SAFERWORLD ,202709-101 ,"434,790.00",
DFID,DFID,17/07/2013,Aid Programme - Accountable Grant Payments ,East and Central Africa ,The Aga Khan Foundation ,201601-110 ,"462,608.97",
DFID,DFID,17/07/2013,Project delivery costs - supplier services ,Western Asia and Stabilisation Division ,Supplier Name withheld ,202311-102 ,"701,301.84",
DFID,DFID,17/07/2013,Aid Programme - Partnership Programme Arrangements ,Policy Division ,PRACTICAL ACTION LTD ,202646-101 ,"722,765.25",
DFID,DFID,17/07/2013,Aid Programme - Challenge Fund payments ,Asia  Caribbean and Overseas Territories ,Harewelle International Limited. ,107402-102 ,"908,365.44",
DFID,DFID,17/07/2013,Aid Programme - Partnership Programme Arrangements ,Policy Division ,SIGHT SAVERS INTERNATIONAL ,202546-101 ,"934,669.50",
DFID,DFID,17/07/2013,Aid Programme - Accountable Grant Payments ,Western Asia and Stabilisation Division ,Supplier Name withheld ,203748-101 ,"955,741.19",
DFID,DFID,17/07/2013,Aid Programme - Voluntary contributions ,West and Southern Africa ,COMESA (GBP) ,201791-106 ,"971,590.40",
DFID,DFID,17/07/2013,Aid Programme - Accountable Grant Payments ,West and Southern Africa ,AgDevCo ,201862-101 ,"1,000,000.00",
DFID,DFID,17/07/2013,Aid Programme - Partnership Programme Arrangements ,Policy Division ,CHRISTIAN AID ,202651-101 ,"1,813,981.75",
DFID,DFID,17/07/2013,Aid Programme - Accountable Grant Payments ,Middle East & North Africa Division (MENAD) ,OXFAM INSTITUTIONAL INCOME ACCOUNT ,203119-102 ,"1,960,896.00",
DFID,DFID,17/07/2013,Encashment of Promissory Notes ,Policy Division ,World Bank ,113819-103 ,"2,450,000.00",
DFID,DFID,18/07/2013,Hotels - Accommodation only ,Asia  Caribbean and Overseas Territories ,Corporate Travel Provider ,100113-101 ,500.57,
DFID,DFID,18/07/2013,Hotels - Accommodation only ,Asia  Caribbean and Overseas Territories ,Corporate Travel Provider ,100113-101 ,500.57,
DFID,DFID,18/07/2013,Hotels - Accommodation only ,Research and Evidence Division ,Corporate Travel Provider ,202392-109 ,512.84,
DFID,DFID,18/07/2013,Data Network - land lines ,Business Solutions Division Level ,Level 3 ,200002-117 ,516.00,
DFID,DFID,18/07/2013,Air fares ,International Finance Division ,Corporate Travel Provider ,100098-101 ,516.75,
DFID,DFID,18/07/2013,Hotels - Accommodation only ,West and Southern Africa ,Corporate Travel Provider ,101629-101 ,516.94,
DFID,DFID,18/07/2013,Hotels - Accommodation only ,West and Southern Africa ,Corporate Travel Provider ,100214-101 ,516.94,
DFID,DFID,18/07/2013,Air fares ,Finance and Corporate Performance Division ,Corporate Travel Provider ,100201-101 ,522.25,
DFID,DFID,18/07/2013,Air fares ,East and Central Africa ,Corporate Travel Provider ,101625-104 ,525.38,
DFID,DFID,18/07/2013,Hotels - Accommodation only ,Conflict Humanitarian and Security Division ,Corporate Travel Provider ,100049-101 ,525.98,
DFID,DFID,18/07/2013,Facilities Management payments ,East and Central Africa ,Rato General Traders ,101634-101 ,552.79,
DFID,DFID,18/07/2013,Air fares ,Western Asia and Stabilisation Division ,Corporate Travel Provider ,101601-110 ,555.50,
DFID,DFID,18/07/2013,Air fares ,East and Central Africa ,Corporate Travel Provider ,101625-103 ,566.20,
DFID,DFID,18/07/2013,Hotels - Accommodation only ,Asia  Caribbean and Overseas Territories ,Corporate Travel Provider ,202403-101 ,571.13,
DFID,DFID,18/07/2013,Hotels - Accommodation only ,Asia  Caribbean and Overseas Territories ,Corporate Travel Provider ,202403-101 ,571.13,
DFID,DFID,18/07/2013,Furniture & Fittings ,East and Central Africa ,JIT Beverages ,202586-101 ,576.81,
DFID,DFID,18/07/2013,Air fares ,Western Asia and Stabilisation Division ,Corporate Travel Provider ,101601-110 ,580.50,
DFID,DFID,18/07/2013,Hostile Environment Training ,West and Southern Africa ,Pilgrims Group ,100152-114 ,580.97,
DFID,DFID,18/07/2013,Air fares ,Internal Audit ,Corporate Travel Provider ,100121-101 ,586.32,
DFID,DFID,18/07/2013,Contract & Agency Staff ,Human Resources Security & Facilities Division ,Anderson Knight Ltd ,100270-104 ,589.41,
DFID,DFID,18/07/2013,Contract & Agency Staff ,Human Resources Security & Facilities Division ,Anderson Knight Ltd ,100270-104 ,589.41,
DFID,DFID,18/07/2013,Contract & Agency Staff ,Human Resources Security & Facilities Division ,Anderson Knight Ltd ,100270-104 ,589.41,
DFID,DFID,18/07/2013,Repairs  Maint  Alter - Property & Constrct. Services ,West and Southern Africa ,Extin Maputo ,101620-101 ,590.04,
DFID,DFID,18/07/2013,Hotels - Accommodation only ,Asia  Caribbean and Overseas Territories ,Corporate Travel Provider ,101604-101 ,598.81,
DFID,DFID,18/07/2013,Hotels - Accommodation only ,Asia  Caribbean and Overseas Territories ,Corporate Travel Provider ,100033-101 ,603.93,
DFID,DFID,18/07/2013,Water charges ,West and Southern Africa ,ETS Abeer ,100068-101 ,612.23,
DFID,DFID,18/07/2013,Air fares ,Western Asia and Stabilisation Division ,Corporate Travel Provider ,101624-101 ,621.76,
DFID,DFID,18/07/2013,Air fares ,Western Asia and Stabilisation Division ,Corporate Travel Provider ,101624-101 ,623.30,
DFID,DFID,18/07/2013,Air fares ,West and Southern Africa ,Corporate Travel Provider ,101629-101 ,624.05,
DFID,DFID,18/07/2013,Air fares ,Research and Evidence Division ,Corporate Travel Provider ,100039-108 ,626.83,
DFID,DFID,18/07/2013,Air fares ,East and Central Africa ,Corporate Travel Provider ,101625-104 ,629.70,
DFID,DFID,18/07/2013,Hotels - Accommodation only ,East and Central Africa ,Bon Voyage Travel Centre Ltd(USD) ,101634-101 ,639.74,
DFID,DFID,18/07/2013,Air fares ,Middle East & North Africa Division (MENAD) ,Corporate Travel Provider ,101619-101 ,642.80,
DFID,DFID,18/07/2013,Air fares ,East and Central Africa ,Corporate Travel Provider ,101635-101 ,652.35,
DFID,DFID,18/07/2013,Air fares ,Western Asia and Stabilisation Division ,Corporate Travel Provider ,101601-110 ,663.76,
DFID,DFID,18/07/2013,Air fares ,International Finance Division ,Corporate Travel Provider ,202259-101 ,664.95,
DFID,DFID,18/07/2013,Air fares ,Asia  Caribbean and Overseas Territories ,Corporate Travel Provider ,100084-101 ,666.76,
DFID,DFID,18/07/2013,Air fares ,Western Asia and Stabilisation Division ,Corporate Travel Provider ,101601-110 ,694.29,
DFID,DFID,18/07/2013,Data Network - land lines ,Business Solutions Division Level ,Level 3 ,200002-117 ,698.94,
DFID,DFID,18/07/2013,Recruitment costs ,Asia  Caribbean and Overseas Territories ,STRATEGIC ALLIANCE MANAGEMENT SERVICES PVT. LTD. ,201689-106 ,703.33,
DFID,DFID,18/07/2013,Air fares ,West and Southern Africa ,DANA Agency ,101620-101 ,707.55,
DFID,DFID,18/07/2013,Repairs  Maintenance and Alterations - Other Building Costs ,Group Operations ,RICOH UK LTD ,100187-101 ,714.00,
DFID,DFID,18/07/2013,Hotels - Accommodation only ,Finance and Corporate Performance Division ,Corporate Travel Provider ,200173-101 ,731.85,
DFID,DFID,18/07/2013,Hotels - Accommodation only ,West and Southern Africa ,Corporate Travel Provider ,101637-101 ,736.76,
DFID,DFID,18/07/2013,Project delivery costs - supplier services ,Policy Division ,OXFORD POLICY MANAGEMENT ,203368-101 ,739.80,
DFID,DFID,18/07/2013,Office Supplies ,East and Central Africa ,Afri General Trading ,202594-101 ,746.81,
DFID,DFID,18/07/2013,Hostile Environment Training ,East and Central Africa ,Pilgrims Group ,101630-101 ,752.10,
DFID,DFID,18/07/2013,Air fares ,Conflict Humanitarian and Security Division ,Corporate Travel Provider ,202410-101 ,754.29,
DFID,DFID,18/07/2013,Air fares ,Middle East & North Africa Division (MENAD) ,Corporate Travel Provider ,201701-101 ,771.55,
DFID,DFID,18/07/2013,Project delivery costs - supplier services ,West and Southern Africa ,Mr Johan Verhaghe ,203154-101 ,773.00,
DFID,DFID,18/07/2013,Training - Travel & Subsistence ,Western Asia and Stabilisation Division ,OMAR TRAVELS ,101624-101 ,776.40,
DFID,DFID,18/07/2013,Air fares ,West and Southern Africa ,Corporate Travel Provider ,101610-101 ,777.96,
DFID,DFID,18/07/2013,Data Network - land lines ,Business Solutions Division Level ,Level 3 ,200002-117 ,780.28,
DFID,DFID,18/07/2013,Air fares ,Top Management Group ,Corporate Travel Provider ,100232-102 ,798.38,
DFID,DFID,18/07/2013,Air fares ,East and Central Africa ,Corporate Travel Provider ,101625-103 ,798.69,
DFID,DFID,18/07/2013,Contract & Agency Staff ,Finance and Corporate Performance Division ,Hays Specialist Recruitment Ltd ,100201-101 ,806.88,
DFID,DFID,18/07/2013,Hotels - Accommodation only ,East and Central Africa ,Southern Sun Hotels(T) Ltd (USD) ,101634-101 ,809.40,
DFID,DFID,18/07/2013,Air fares ,Western Asia and Stabilisation Division ,Corporate Travel Provider ,203944-106 ,814.05,
DFID,DFID,18/07/2013,Hotels - Accommodation only ,Asia  Caribbean and Overseas Territories ,Corporate Travel Provider ,101604-101 ,815.57,
DFID,DFID,18/07/2013,Hotels - Accommodation only ,Asia  Caribbean and Overseas Territories ,Corporate Travel Provider ,201689-104 ,826.01,
DFID,DFID,18/07/2013,Air fares ,International Relations Division ,Corporate Travel Provider ,100238-101 ,840.00,
DFID,DFID,18/07/2013,Air fares ,Middle East & North Africa Division (MENAD) ,Corporate Travel Provider ,100307-101 ,842.55,
DFID,DFID,18/07/2013,Air fares ,West and Southern Africa ,Jeffery Travels ,101610-101 ,845.75,
DFID,DFID,18/07/2013,Air fares ,Research and Evidence Division ,Corporate Travel Provider ,202392-106 ,846.95,
DFID,DFID,18/07/2013,Air fares ,Research and Evidence Division ,Corporate Travel Provider ,202392-106 ,857.00,
DFID,DFID,18/07/2013,Air fares ,Research and Evidence Division ,Corporate Travel Provider ,100039-108 ,857.95,
DFID,DFID,18/07/2013,Air fares ,Policy Division ,Corporate Travel Provider ,203564-102 ,857.95,
DFID,DFID,18/07/2013,Generators & spares ,Asia  Caribbean and Overseas Territories ,ZEUS POWER SOLUTIONS (P) LTD ,201689-105 ,863.78,
DFID,DFID,18/07/2013,Air fares ,Human Resources Security & Facilities Division ,Recipient name withheld ,100269-128 ,864.03,
DFID,DFID,18/07/2013,Furniture & Fittings ,East and Central Africa ,JIT Beverages ,202594-101 ,865.11,
DFID,DFID,18/07/2013,Air fares ,Policy Division ,Corporate Travel Provider ,202419-105 ,866.18,
DFID,DFID,18/07/2013,Contract & Agency Staff ,Finance and Corporate Performance Division ,Hays Specialist Recruitment Ltd ,100201-101 ,870.74,
DFID,DFID,18/07/2013,Air fares ,Western Asia and Stabilisation Division ,Corporate Travel Provider ,101601-110 ,873.69,
DFID,DFID,18/07/2013,Hotels - Accommodation only ,West and Southern Africa ,Corporate Travel Provider ,101638-101 ,875.12,
DFID,DFID,18/07/2013,Air fares ,Western Asia and Stabilisation Division ,Corporate Travel Provider ,101601-110 ,879.59,
DFID,DFID,18/07/2013,Air fares ,Conflict Humanitarian and Security Division ,Corporate Travel Provider ,202410-101 ,882.45,
DFID,DFID,18/07/2013,Hotels - Accommodation only ,Human Resources Security & Facilities Division ,Corporate Travel Provider ,100269-158 ,895.59,
DFID,DFID,18/07/2013,Air fares ,East and Central Africa ,Corporate Travel Provider ,202594-101 ,929.55,
DFID,DFID,18/07/2013,Air fares ,East and Central Africa ,Corporate Travel Provider ,202579-106 ,933.75,
DFID,DFID,18/07/2013,Air fares ,East and Central Africa ,Corporate Travel Provider ,202579-106 ,933.75,
DFID,DFID,18/07/2013,Air fares ,East and Central Africa ,Corporate Travel Provider ,202579-106 ,933.75,
DFID,DFID,18/07/2013,Hotels - Accommodation only ,East and Central Africa ,Corporate Travel Provider ,100234-104 ,936.53,
DFID,DFID,18/07/2013,Air fares ,Middle East & North Africa Division (MENAD) ,Corporate Travel Provider ,100307-101 ,937.65,
DFID,DFID,18/07/2013,Generators & spares ,Asia  Caribbean and Overseas Territories ,ZEUS POWER SOLUTIONS (P) LTD ,201689-105 ,939.02,
DFID,DFID,18/07/2013,Air fares ,International Finance Division ,Corporate Travel Provider ,202259-101 ,939.25,
DFID,DFID,18/07/2013,Air fares ,Conflict Humanitarian and Security Division ,Corporate Travel Provider ,100049-101 ,940.95,
DFID,DFID,18/07/2013,Air fares ,Western Asia and Stabilisation Division ,Corporate Travel Provider ,100020-101 ,948.12,
DFID,DFID,18/07/2013,Air fares ,International Finance Division ,Corporate Travel Provider ,100120-101 ,948.30,
DFID,DFID,18/07/2013,Vehicle Petrol & Oil ,East and Central Africa ,British Embassy ,100082-101 ,981.84,
DFID,DFID,18/07/2013,Air fares ,Western Asia and Stabilisation Division ,Corporate Travel Provider ,101601-110 ,990.49,
DFID,DFID,18/07/2013,Aid Programme - Voluntary contributions ,East and Central Africa ,Tubali Limited ,202974-108 ,992.72,
DFID,DFID,18/07/2013,Medical/Health Services ,East and Central Africa ,Unity Resources Group ,202586-101 ,999.75,
DFID,DFID,18/07/2013,Air fares ,International Finance Division ,Corporate Travel Provider ,203362-101 ,"1,002.05",
DFID,DFID,18/07/2013,Mobile telephones & accessories ,East and Central Africa ,MTN RWANDACELL ,101628-101 ,"1,024.76",
DFID,DFID,18/07/2013,Hotels - Accommodation only ,Research and Evidence Division ,Corporate Travel Provider ,202392-109 ,"1,026.59",
DFID,DFID,18/07/2013,Training - Course Fees ,Human Resources Security & Facilities Division ,CAPITA LEARNING &DEVELOPMENT ,100269-153 ,"1,033.00",
DFID,DFID,18/07/2013,Contract & Agency Staff ,Finance and Corporate Performance Division ,MICHAEL PAGE INTERNATIONAL RECRUITMENT LIMITED ,100201-101 ,"1,034.81",
DFID,DFID,18/07/2013,Air fares ,Western Asia and Stabilisation Division ,Corporate Travel Provider ,100020-101 ,"1,042.80",
DFID,DFID,18/07/2013,Air fares ,International Finance Division ,Corporate Travel Provider ,100120-101 ,"1,071.26",
DFID,DFID,18/07/2013,Air fares ,Research and Evidence Division ,Corporate Travel Provider ,202392-107 ,"1,078.80",
DFID,DFID,18/07/2013,Air fares ,Western Asia and Stabilisation Division ,Corporate Travel Provider ,100020-101 ,"1,098.93",
DFID,DFID,18/07/2013,Training - Course Fees ,Middle East & North Africa Division (MENAD) ,Professionals In Humanitarian Assistance and Protection ,201701-101 ,"1,107.20",
DFID,DFID,18/07/2013,Air fares ,Finance and Corporate Performance Division ,Corporate Travel Provider ,200173-101 ,"1,133.75",
DFID,DFID,18/07/2013,Air fares ,Research and Evidence Division ,Corporate Travel Provider ,100039-108 ,"1,144.25",
DFID,DFID,18/07/2013,Air fares ,Asia  Caribbean and Overseas Territories ,Corporate Travel Provider ,101611-101 ,"1,146.34",
DFID,DFID,18/07/2013,Contract & Agency Staff ,Finance and Corporate Performance Division ,Hays Specialist Recruitment Ltd ,100201-101 ,"1,152.00",
DFID,DFID,18/07/2013,Contract & Agency Staff ,Finance and Corporate Performance Division ,Hays Specialist Recruitment Ltd ,100201-101 ,"1,159.14",
DFID,DFID,18/07/2013,Air fares ,International Relations Division ,Corporate Travel Provider ,202617-101 ,"1,163.10",
DFID,DFID,18/07/2013,Air fares ,East and Central Africa ,Corporate Travel Provider ,202579-106 ,"1,166.75",
DFID,DFID,18/07/2013,Air fares ,East and Central Africa ,Corporate Travel Provider ,202579-106 ,"1,166.75",
DFID,DFID,18/07/2013,Air fares ,West and Southern Africa ,Corporate Travel Provider ,201763-101 ,"1,171.54",
DFID,DFID,18/07/2013,Air fares ,Non-Departmental Public Body ,Corporate Travel Provider ,203064-101 ,"1,251.15",
DFID,DFID,18/07/2013,Facilities Management payments ,East and Central Africa ,Joshi Electrical & General Services ,101635-101 ,"1,279.65",
DFID,DFID,18/07/2013,Air fares ,Research and Evidence Division ,Corporate Travel Provider ,100039-108 ,"1,291.41",
DFID,DFID,18/07/2013,Project delivery costs - supplier services ,West and Southern Africa ,Sansao Andre Muchanga ,101620-101 ,"1,323.63",
DFID,DFID,18/07/2013,Hotels - Accommodation only ,Western Asia and Stabilisation Division ,Ramada Multan ,101624-101 ,"1,378.89",
DFID,DFID,18/07/2013,Air fares ,East and Central Africa ,Highlight Travel SS T/A BCD Travel ,202586-101 ,"1,397.34",
DFID,DFID,18/07/2013,Air fares ,International Finance Division ,Corporate Travel Provider ,100098-101 ,"1,410.90",
DFID,DFID,18/07/2013,Hotels - Accommodation only ,East and Central Africa ,Harmony  Hotel ,101612-101 ,"1,443.01",
DFID,DFID,18/07/2013,Facilities Management payments ,East and Central Africa ,Moriri General Electrical ,101634-101 ,"1,450.87",
DFID,DFID,18/07/2013,Contract & Agency Staff ,Finance and Corporate Performance Division ,Hays Specialist Recruitment Ltd ,100201-101 ,"1,454.58",
DFID,DFID,18/07/2013,Air fares ,Asia  Caribbean and Overseas Territories ,Corporate Travel Provider ,100084-101 ,"1,501.58",
DFID,DFID,18/07/2013,Air fares ,East and Central Africa ,Corporate Travel Provider ,101625-105 ,"1,523.34",
DFID,DFID,18/07/2013,Medical/Health Services ,East and Central Africa ,Unity Resources Group ,202594-101 ,"1,566.81",
DFID,DFID,18/07/2013,Air fares ,Middle East & North Africa Division (MENAD) ,Corporate Travel Provider ,100146-101 ,"1,599.45",
DFID,DFID,18/07/2013,Air fares ,Middle East & North Africa Division (MENAD) ,Corporate Travel Provider ,100146-101 ,"1,599.45",
DFID,DFID,18/07/2013,Hotels - Accommodation only ,Asia  Caribbean and Overseas Territories ,Corporate Travel Provider ,101603-101 ,"1,613.82",
DFID,DFID,18/07/2013,Contract & Agency Staff ,Finance and Corporate Performance Division ,MICHAEL PAGE INTERNATIONAL RECRUITMENT LIMITED ,100201-101 ,"1,650.00",
DFID,DFID,18/07/2013,Air fares ,West and Southern Africa ,Corporate Travel Provider ,101618-101 ,"1,651.45",
DFID,DFID,18/07/2013,Air fares ,West and Southern Africa ,Supplier Name withheld ,101622-106 ,"1,669.07",
DFID,DFID,18/07/2013,Air fares ,Policy Division ,Shambani Graduates Enterprises Limited ,203184-101 ,"1,669.72",
DFID,DFID,18/07/2013,Recruitment costs ,East and Central Africa ,aikan Uganda Limited ,100234-101 ,"1,682.12",
DFID,DFID,18/07/2013,Air fares ,Research and Evidence Division ,Corporate Travel Provider ,202392-102 ,"1,808.91",
DFID,DFID,18/07/2013,Air fares ,Research and Evidence Division ,Corporate Travel Provider ,202392-102 ,"1,809.56",
DFID,DFID,18/07/2013,Project delivery costs - supplier services ,Western Asia and Stabilisation Division ,Sarah Saeed ,113484-106 ,"1,847.92",
DFID,DFID,18/07/2013,Project delivery costs - supplier services ,East and Central Africa ,Andrew Nyabera Nyagwencha ,103548-101 ,"1,862.67",
DFID,DFID,18/07/2013,Project delivery costs - supplier services ,Asia  Caribbean and Overseas Territories ,KRAN CONSULTING PVT. LTD. ,114506-101 ,"1,932.92",
DFID,DFID,18/07/2013,Air fares ,West and Southern Africa ,Corporate Travel Provider ,204049-101 ,"1,944.74",
DFID,DFID,18/07/2013,Air fares ,Western Asia and Stabilisation Division ,Corporate Travel Provider ,203938-103 ,"2,240.11",
DFID,DFID,18/07/2013,Project delivery costs - supplier services ,Asia  Caribbean and Overseas Territories ,SPC MANAGEMENT SERVICES PRIVATE LIMI ,114177-101 ,"2,257.40",
DFID,DFID,18/07/2013,Training Providers/Facilitation Services ,East and Central Africa ,CAPITA LEARNING &DEVELOPMENT ,101630-101 ,"2,261.10",
DFID,DFID,18/07/2013,Storage & Distribution costs ,West and Southern Africa ,PICKFORDS LTD ,101610-101 ,"2,301.62",
DFID,DFID,18/07/2013,Project delivery costs - supplier services ,East and Central Africa ,Carree Njeri Ndoka ,103548-101 ,"2,306.24",
DFID,DFID,18/07/2013,Air fares ,East and Central Africa ,Corporate Travel Provider ,202586-101 ,"2,403.12",
DFID,DFID,18/07/2013,Vehicle Petrol & Oil ,East and Central Africa ,British Embassy ,100082-101 ,"2,636.15",
DFID,DFID,18/07/2013,Air fares ,East and Central Africa ,Corporate Travel Provider ,101625-104 ,"2,731.94",
DFID,DFID,18/07/2013,Secure Staff Accommodation ,East and Central Africa ,Supplier Name withheld ,202586-101 ,"2,963.25",
DFID,DFID,18/07/2013,Project delivery costs - supplier services ,Asia  Caribbean and Overseas Territories ,Philip White ,202972-102 ,"3,382.64",
DFID,DFID,18/07/2013,Project delivery costs - supplier services ,East and Central Africa ,Byenkya Julius Atwooki ,200787-108 ,"3,430.51",
DFID,DFID,18/07/2013,Vehicle Petrol & Oil ,East and Central Africa ,British Embassy ,100082-101 ,"3,570.01",
DFID,DFID,18/07/2013,Recruitment costs ,Human Resources Security & Facilities Division ,HM REVENUE AND CUSTOMS ,100269-163 ,"3,600.00",
DFID,DFID,18/07/2013,DFID Purchased Relief Supplies ,West and Southern Africa ,CHARLES KENDALL & PARTNERS LIMITED (PROCUREMENT) ,202214-106 ,"3,639.99",
DFID,DFID,18/07/2013,Project delivery costs - supplier services ,East and Central Africa ,Mission Aviation Fellowship Kenya ,101616-101 ,"3,803.04",
DFID,DFID,18/07/2013,Air fares ,Communications Division ,Corporate Travel Provider ,100197-101 ,"3,869.75",
DFID,DFID,18/07/2013,Air fares ,Top Management Group ,Corporate Travel Provider ,100232-102 ,"3,869.75",
DFID,DFID,18/07/2013,Air fares ,Top Management Group ,Corporate Travel Provider ,100232-102 ,"3,869.75",
DFID,DFID,18/07/2013,Air fares ,Top Management Group ,Corporate Travel Provider ,100232-103 ,"3,869.75",
DFID,DFID,18/07/2013,Training Providers/Facilitation Services ,East and Central Africa ,CAPITA LEARNING &DEVELOPMENT ,101616-101 ,"4,868.90",
DFID,DFID,18/07/2013,Air fares ,Western Asia and Stabilisation Division ,Corporate Travel Provider ,203938-101 ,"5,521.55",
DFID,DFID,18/07/2013,Project delivery costs - supplier services ,West and Southern Africa ,HTSPE LTD ,202345-103 ,"5,696.85",
DFID,DFID,18/07/2013,Facilities Management payments ,East and Central Africa ,CSI Eletrical & Maintanance Ltd(TZ) ,101634-101 ,"6,009.34",
DFID,DFID,18/07/2013,Project delivery costs - supplier services ,Western Asia and Stabilisation Division ,Supplier Name withheld ,202109-103 ,"6,009.87",
DFID,DFID,18/07/2013,Contract & Agency Staff ,Finance and Corporate Performance Division ,HUDSON GLOBAL RESOURCES LTD ,100201-101 ,"6,388.62",
DFID,DFID,18/07/2013,Project delivery costs - supplier services ,East and Central Africa ,CHARLES KENDALL & PARTNERS LIMITED (PROCUREMENT) ,202547-103 ,"8,401.30",
DFID,DFID,18/07/2013,Recruitment costs ,Human Resources Security & Facilities Division ,SHL Group LTD ,100269-158 ,"9,000.00",
DFID,DFID,18/07/2013,Research & Development costs ,Research and Evidence Division ,Utrecht University - Physical Geography ,202125-106 ,"10,246.10",
DFID,DFID,18/07/2013,Project delivery costs - supplier services ,Asia  Caribbean and Overseas Territories ,ERNST &  YOUNG PRIVATE LTD ,200599-101 ,"10,314.55",
DFID,DFID,18/07/2013,Aid Programme - Accountable Grant Payments ,West and Southern Africa ,Institute for Global Dialogue ,203622-104 ,"10,779.03",
DFID,DFID,18/07/2013,Project delivery costs - supplier services ,Western Asia and Stabilisation Division ,DAI EUROPE LIMITED ,202261-101 ,"13,468.16",
DFID,DFID,18/07/2013,Secure Staff Accommodation ,East and Central Africa ,Supplier Name withheld ,101634-101 ,"14,093.96",
DFID,DFID,18/07/2013,DFID Purchased Relief Supplies ,West and Southern Africa ,CHARLES KENDALL & PARTNERS LIMITED (PROCUREMENT) ,202214-106 ,"14,130.72",
DFID,DFID,18/07/2013,Project delivery costs - supplier services ,Policy Division , Overseas Development Institute ,202653-101 ,"14,206.10",
DFID,DFID,18/07/2013,Project delivery costs - supplier services ,Research and Evidence Division ,OXFORD POLICY MANAGEMENT ,202242-107 ,"20,476.25",
DFID,DFID,18/07/2013,Hardware - desktop PCs ,Western Asia and Stabilisation Division ,FCO SERVICES ,100195-101 ,"21,480.00",
DFID,DFID,18/07/2013,Project delivery costs - supplier services ,Asia  Caribbean and Overseas Territories ,INFRASTRUCTURE PROFESSIONALS ENTERPRISE ,114040-101 ,"23,398.97",
DFID,DFID,18/07/2013,Project delivery costs - supplier services ,West and Southern Africa ,HTSPE LTD ,200681-101 ,"24,413.24",
DFID,DFID,18/07/2013,Project delivery costs - supplier services ,East and Central Africa ,JHughesDevelopment  Inc ,203597-106 ,"25,237.21",
DFID,DFID,18/07/2013,Aid Programme - Accountable Grant Payments ,East and Central Africa ,Save the Children International. ,201587-118 ,"28,808.53",
DFID,DFID,18/07/2013,Project delivery costs - supplier services ,Western Asia and Stabilisation Division ,DAI EUROPE LIMITED ,202233-102 ,"29,567.76",
DFID,DFID,18/07/2013,Project delivery costs - supplier services ,West and Southern Africa ,Crown Agents Bank ,200469-110 ,"36,446.89",
DFID,DFID,18/07/2013,Project delivery costs - supplier services ,Western Asia and Stabilisation Division ,DAI EUROPE LIMITED ,202261-102 ,"37,050.00",
DFID,DFID,18/07/2013,Project delivery costs - supplier services ,Asia  Caribbean and Overseas Territories ,OPTIONS CONSULTANCY SERVICES LIMITED ,202871-101 ,"37,976.13",
DFID,DFID,18/07/2013,Project delivery costs - supplier services ,Asia  Caribbean and Overseas Territories ,OPTIONS CONSULTANCY SERVICES LIMITED ,113963-101 ,"39,558.46",
DFID,DFID,18/07/2013,Aid Programme - Accountable Grant Payments ,Asia  Caribbean and Overseas Territories ,British Council Division. ,108003-103 ,"40,295.24",
DFID,DFID,18/07/2013,Secure Staff Accommodation ,East and Central Africa ,Supplier Name withheld ,101633-101 ,"42,088.65",Secure Staff Accommodation Costs � DFID Sudan
DFID,DFID,18/07/2013,Project delivery costs - supplier services ,Asia  Caribbean and Overseas Territories ,INFRASTRUCTURE PROFESSIONALS ENTERPRISE ,114040-101 ,"42,121.52",
DFID,DFID,18/07/2013,Project delivery costs - supplier services ,West and Southern Africa ,DAI Europe ,203000-102 ,"42,969.00",
DFID,DFID,18/07/2013,Project delivery costs - supplier services ,Asia  Caribbean and Overseas Territories ,OPTIONS CONSULTANCY SERVICES LIMITED ,113963-101 ,"46,415.26",
DFID,DFID,18/07/2013,Project delivery costs - supplier services ,Asia  Caribbean and Overseas Territories ,INFRASTRUCTURE PROFESSIONALS ENTERPRISE ,114040-101 ,"46,801.31",
DFID,DFID,18/07/2013,Secure Staff Accommodation ,East and Central Africa ,Supplier Name withheld ,202586-101 ,"47,498.40",Secure Staff Accommodation Costs � DFID South Sudan
DFID,DFID,18/07/2013,Secure Staff Accommodation ,Asia  Caribbean and Overseas Territories ,Supplier Name withheld ,101605-101 ,"48,600.00",Secure Staff Accommodation Costs � DFID Burma
DFID,DFID,18/07/2013,Aid Programme - Accountable Grant Payments ,Asia  Caribbean and Overseas Territories ,ACTION AID INTERNATIONAL ,203400-104 ,"49,924.00",
DFID,DFID,18/07/2013,Project delivery costs - supplier services ,Western Asia and Stabilisation Division ,DAI EUROPE LIMITED ,202233-103 ,"50,532.59",
DFID,DFID,18/07/2013,Project delivery costs - supplier services ,West and Southern Africa ,Crown Agents Bank ,200469-110 ,"51,579.42",
DFID,DFID,18/07/2013,Aid Programme - Challenge Fund payments ,Policy Division ,Triple Line Crown Agents JV. ,201242-101 ,"62,150.58",
DFID,DFID,18/07/2013,Computer software maintenance ,Business Solutions Division Level ,Unit 4 ,200002-107 ,"62,365.61",HR Databases Annual Maintenance Support 2013/14 
DFID,DFID,18/07/2013,Aid Programme - Accountable Grant Payments ,East and Central Africa , THE RESEARCH FOUNDATION ,200120-114 ,"88,122.34",
DFID,DFID,18/07/2013,Aid Programme - Core contributions ,Policy Division ,CMI MICHELSEN INSTITUTE ,203214-101 ,"110,000.00",
DFID,DFID,18/07/2013,Project delivery costs - supplier services ,Asia  Caribbean and Overseas Territories ,OPTIONS CONSULTANCY SERVICES LIMITED ,201375-103 ,"110,658.69",
DFID,DFID,18/07/2013,Aid Programme - Partnership Programme Arrangements ,Policy Division ,COLLABORATIVE LEARNING PROJECTS ,202829-101 ,"114,038.25",
DFID,DFID,18/07/2013,Project delivery costs - supplier services ,West and Southern Africa ,PRICEWATERHOUSECOOPERS ,113961-103 ,"116,278.71",
DFID,DFID,18/07/2013,Aid Programme - Accountable Grant Payments ,East and Central Africa ,JUBBALANDESE CHARITY CENTRE (JCC) ,203382-113 ,"117,099.94",
DFID,DFID,18/07/2013,Aid Programme - Accountable Grant Payments ,Asia  Caribbean and Overseas Territories ,Digital Green Foundation ,200754-105 ,"182,404.00",
DFID,DFID,18/07/2013,Project delivery costs - supplier services ,Asia  Caribbean and Overseas Territories ,OPTIONS CONSULTANCY SERVICES LIMITED ,202871-101 ,"213,235.62",
DFID,DFID,18/07/2013,DFID Purchased Relief Supplies ,East and Central Africa ,CHARLES KENDALL & PARTNERS LIMITED (PROCUREMENT) ,202547-103 ,"240,037.00",
DFID,DFID,18/07/2013,Research & Development costs ,Research and Evidence Division ,UNIVERSITY OF  OXFORD ,200425-101 ,"270,917.97",
DFID,DFID,18/07/2013,Aid Programme - Accountable Grant Payments ,Research and Evidence Division ,GLOBAL DEVELOPMENT NETWORK (3ie) ,200135-104 ,"272,830.05",
DFID,DFID,18/07/2013,Project delivery costs - supplier services ,East and Central Africa ,BMB  MOTT  MACDONALD ,202511-102 ,"274,250.13",
DFID,DFID,18/07/2013,Project delivery costs - supplier services ,West and Southern Africa ,HTSPE LTD ,200681-101 ,"387,803.18",
DFID,DFID,18/07/2013,Project delivery costs - supplier services ,West and Southern Africa ,ATOS CONSULTING LIMITED ,200452-101 ,"454,206.87",
DFID,DFID,18/07/2013,Aid Programme - Other Financial Aid to Government ,Asia  Caribbean and Overseas Territories ,Government of Nepal RRRSDP GBP ,114453-101 ,"549,790.76",
DFID,DFID,18/07/2013,Aid Programme - Partnership Programme Arrangements ,Policy Division ,The Asia Foundation (GBP) ,202703-101 ,"611,257.50",
DFID,DFID,18/07/2013,Aid Programme - Partnership Programme Arrangements ,Policy Division ,  Norwegian Refugee Council ,202688-101 ,"635,786.25",
DFID,DFID,18/07/2013,Aid Programme - Partnership Programme Arrangements ,Policy Division ,RESTLESS DEVELOPMENT ,202545-101 ,"688,859.75",
DFID,DFID,18/07/2013,Project delivery costs - supplier services ,West and Southern Africa ,PRICEWATERHOUSECOOPERS ,113961-102 ,"859,356.00",
DFID,DFID,18/07/2013,Aid Programme - Trust Funds contributions ,Policy Division ,IBRD HSBC T ,203034-102 ,"1,000,000.00",
DFID,DFID,18/07/2013,Aid Programme - Accountable Grant Payments ,Research and Evidence Division ,GLOBAL DEVELOPMENT NETWORK (3ie) ,200135-102 ,"1,136,825.92",
DFID,DFID,18/07/2013,Project delivery costs - supplier services ,West and Southern Africa ,Cambridge  Education Limited ,104200-101 ,"1,418,035.52",
DFID,DFID,18/07/2013,Project delivery costs - supplier services ,Communications Division ,VOLUNTARY SERVICE OVERSEAS ,202883-101 ,"1,761,928.80",
DFID,DFID,18/07/2013,Encashment of Promissory Notes ,Policy Division ,World Bank ,202216-102 ,"7,613,000.00",
DFID,DFID,18/07/2013,Aid Programme - Poverty Reduction Budget Support ,East and Central Africa ,Ministry of Finance Tanzania  Poverty Reduction Budget Support ,203213-101 ,"11,500,000.00",
DFID,DFID,18/07/2013,Aid Programme - Poverty Reduction Budget Support ,East and Central Africa ,Ministry of Finance Tanzania  Poverty Reduction Budget Support ,203213-102 ,"24,000,000.00",
DFID,DFID,19/07/2013,Hostile Environment Training ,Research and Evidence Division ,Pilgrims Group ,202392-107 ,500.00,
DFID,DFID,19/07/2013,Property Security & Patrols ,East and Central Africa ,Sebhatu & Sons  Security Service PLC ,201587-101 ,518.43,
DFID,DFID,19/07/2013,Conferences  Seminars & Meeting/Event Resource ,East and Central Africa ,UKFIET ,202377-103 ,530.00,
DFID,DFID,19/07/2013,Project delivery costs - supplier services ,Policy Division ,FCO SERVICES ,100276-101 ,550.80,
DFID,DFID,19/07/2013,Hostile Environment Training ,West and Southern Africa ,Pilgrims Group ,101622-106 ,580.97,
DFID,DFID,19/07/2013,Contract & Agency Staff ,Human Resources Security & Facilities Division ,Anderson Knight Ltd ,100272-101 ,589.41,
DFID,DFID,19/07/2013,Staff Travel - Air Fares ,Western Asia and Stabilisation Division ,Nadeem Irshad Kayani ,200694-102 ,613.02,
DFID,DFID,19/07/2013,Hostile Environment Training ,Asia  Caribbean and Overseas Territories ,Pilgrims Group ,101615-101 ,634.14,
DFID,DFID,19/07/2013,Contract & Agency Staff ,Finance and Corporate Performance Division ,Hays Specialist Recruitment Ltd ,100201-101 ,640.37,
DFID,DFID,19/07/2013,Office Supplies ,East and Central Africa ,Wurgessa Trading ,202913-104 ,670.04,
DFID,DFID,19/07/2013,Hostile Environment Training ,Western Asia and Stabilisation Division ,Pilgrims Group ,203940-102 ,673.12,
DFID,DFID,19/07/2013,Contract & Agency Staff ,Human Resources Security & Facilities Division ,Anderson Knight Ltd ,100272-101 ,677.47,
DFID,DFID,19/07/2013,Air fares ,East and Central Africa ,BCD Travel (KSH) ,101616-101 ,712.88,
DFID,DFID,19/07/2013,Hostile Environment Training ,East and Central Africa ,Pilgrims Group ,101616-101 ,802.14,
DFID,DFID,19/07/2013,Contract & Agency Staff ,Finance and Corporate Performance Division ,Hays Specialist Recruitment Ltd ,100201-101 ,806.88,
DFID,DFID,19/07/2013,Air fares ,Human Resources Security & Facilities Division ,AGNIESZKA KORUS ,100269-128 ,909.06,
DFID,DFID,19/07/2013,Training - Travel & Subsistence ,Western Asia and Stabilisation Division ,OMAR TRAVELS ,200694-102 ,951.36,
DFID,DFID,19/07/2013,Contract & Agency Staff ,Internal Audit ,Hays Specialist Recruitment Ltd ,100121-101 ,"1,035.00",
DFID,DFID,19/07/2013,Contract & Agency Staff ,Internal Audit ,Hays Specialist Recruitment Ltd ,100121-101 ,"1,035.00",
DFID,DFID,19/07/2013,Project delivery costs - supplier services ,West and Southern Africa ,CHARLES KENDALL & PARTNERS LIMITED (PROCUREMENT) ,113961-106 ,"1,126.48",
DFID,DFID,19/07/2013,Telephone Usage & services ,West and Southern Africa ,Vodacom ,100068-101 ,"1,147.23",
DFID,DFID,19/07/2013,Contract & Agency Staff ,Finance and Corporate Performance Division ,Hays Specialist Recruitment Ltd ,100201-101 ,"1,152.00",
DFID,DFID,19/07/2013,Project delivery costs - supplier services ,Communications Division ,TRIPLE LINE CONSULTING LTD ,114423-102 ,"1,185.27",
DFID,DFID,19/07/2013,Property Security & Patrols ,East and Central Africa ,Sebhatu & Sons  Security Service PLC ,100082-101 ,"1,209.67",
DFID,DFID,19/07/2013,Entertainment & Hospitality ,Group Operations ,MITIE Catering Services Ltd ,203717-101 ,"1,252.26",
DFID,DFID,19/07/2013,Telephone Usage & services ,West and Southern Africa ,Vodacom ,101610-101 ,"1,359.30",
DFID,DFID,19/07/2013,Project delivery costs - supplier services ,East and Central Africa ,HM TREASURY VOTES CASH ACCOUNT ,203348-102 ,"1,500.00",
DFID,DFID,19/07/2013,Contract & Agency Staff ,International Finance Division ,Hays Specialist Recruitment Ltd ,100120-101 ,"1,518.91",
DFID,DFID,19/07/2013,Property Security & Patrols ,East and Central Africa ,Sebhatu & Sons  Security Service PLC ,202913-104 ,"1,814.51",
DFID,DFID,19/07/2013,Vehicle Petrol & Oil ,West and Southern Africa ,FCO ,100068-101 ,"1,918.79",
DFID,DFID,19/07/2013,Project delivery costs - supplier services ,Research and Evidence Division ,critical faculty ,202242-103 ,"2,100.00",
DFID,DFID,19/07/2013,Vehicle Petrol & Oil ,West and Southern Africa ,FCO ,100068-101 ,"2,587.25",
DFID,DFID,19/07/2013,Facilities Management payments ,Asia  Caribbean and Overseas Territories ,SSD ELECTRO-MECH PRIVATE LIMITED ,201689-105 ,"2,649.97",
DFID,DFID,19/07/2013,Vehicle Petrol & Oil ,Western Asia and Stabilisation Division ,Pakistan State Oil Company Ltd ,101624-101 ,"3,363.09",
DFID,DFID,19/07/2013,Training - Course Fees ,Human Resources Security & Facilities Division ,CAPITA LEARNING &DEVELOPMENT ,100269-153 ,"5,817.07",
DFID,DFID,19/07/2013,Project delivery costs - supplier services ,West and Southern Africa ,Recipient name withheld ,101610-101 ,"5,850.00",
DFID,DFID,19/07/2013,Project delivery costs - supplier services ,East and Central Africa ,LTS International Ltd. ,201866-106 ,"6,103.19",
DFID,DFID,19/07/2013,Project delivery costs - supplier services ,Asia  Caribbean and Overseas Territories ,Mannion Daniels Limited ,202708-102 ,"6,152.63",
DFID,DFID,19/07/2013,Project delivery costs - supplier services ,International Finance Division ,THE SPRINGFIELD CENTRE ,114178-101 ,"6,603.20",
DFID,DFID,19/07/2013,Project delivery costs - supplier services ,Policy Division ,PATH ,202674-101 ,"8,107.38",
DFID,DFID,19/07/2013,Property Security & Patrols ,East and Central Africa ,Sebhatu & Sons  Security Service PLC ,101612-101 ,"11,859.11",
DFID,DFID,19/07/2013,Project delivery costs - supplier services ,International Finance Division ,MAXWELL STAMP PLC ,200634-102 ,"11,995.11",
DFID,DFID,19/07/2013,Project delivery costs - supplier services ,International Finance Division ,MAXWELL STAMP PLC ,200634-102 ,"16,996.03",
DFID,DFID,19/07/2013,Project delivery costs - supplier services ,Business Solutions Division Level ,Info-Assure LTD ,200001-101 ,"17,416.31",
DFID,DFID,19/07/2013,Secure Staff Accommodation ,Asia  Caribbean and Overseas Territories ,Supplier Name withheld ,101605-101 ,"19,704.00",
DFID,DFID,19/07/2013,Project delivery costs - supplier services ,West and Southern Africa ,OXFORD POLICY MANAGEMENT ,202461-101 ,"24,308.00",
DFID,DFID,19/07/2013,Project delivery costs - supplier services ,East and Central Africa , Overseas Development Institute ,200349-104 ,"28,252.56",
DFID,DFID,19/07/2013,Project delivery costs - supplier services ,Asia  Caribbean and Overseas Territories ,Crown Agents Bank ,201645-105 ,"29,166.94",
DFID,DFID,19/07/2013,Aid Programme - Aid and Trade Provision ,Asia  Caribbean and Overseas Territories ,ECGD ACCOUNT ,108238-101 ,"33,346.73",
DFID,DFID,19/07/2013,Aid Programme - Other Financial Aid to Government ,West and Southern Africa ,Malawi Vulnerability Assessment Committee ,201196-106 ,"49,508.00",
DFID,DFID,19/07/2013,Project delivery costs - supplier services ,Policy Division ,TRIPLE LINE CONSULTING LTD ,202035-101 ,"98,064.83",
DFID,DFID,19/07/2013,Aid Programme - Accountable Grant Payments ,East and Central Africa ,HivosGBP ,200120-102 ,"128,452.00",
DFID,DFID,19/07/2013,Aid Programme - Accountable Grant Payments ,Communications Division ,CHRISTIAN AID ,202197-101 ,"143,361.00",
DFID,DFID,19/07/2013,Aid Programme - Accountable Grant Payments ,Research and Evidence Division ,SCIDEV.NET ,114034-103 ,"150,000.00",
DFID,DFID,19/07/2013,Aid Programme - Accountable Grant Payments ,East and Central Africa ,OXFAM INSTITUTIONAL INCOME ACCOUNT ,113401-102 ,"181,525.00",
DFID,DFID,19/07/2013,Project delivery costs - supplier services ,Asia  Caribbean and Overseas Territories ,ADAM SMITH INTERNATIONAL  LTD ,201367-103 ,"187,352.53",
DFID,DFID,19/07/2013,Aid Programme - Accountable Grant Payments ,Policy Division ,ICAR (UK) ,200458-102 ,"187,500.00",
DFID,DFID,19/07/2013,Project delivery costs - supplier services ,Western Asia and Stabilisation Division ,HTSPE LTD ,202491-102 ,"392,672.02",
DFID,DFID,19/07/2013,Project delivery costs - supplier services ,Research and Evidence Division ,London School of Hygiene and Tropical Medicine ,114396-102 ,"492,706.93",
DFID,DFID,19/07/2013,Aid Programme - Trust Funds contributions ,West and Southern Africa ,IBRD (HSBC)  C/O THE WORLD BANK ,203270-101 ,"500,000.00",
DFID,DFID,19/07/2013,Aid Programme - Pooled/Basket funding ,West and Southern Africa ,UNDP CONTRIBUTIONS ACCOUNT ,203464-102 ,"700,000.00",
DFID,DFID,19/07/2013,Aid Programme - Partnership Programme Arrangements ,Policy Division ,TRANSPARENCY INTERNAT ,202505-101 ,"843,586.00",
DFID,DFID,19/07/2013,Aid Programme - Other Financial Aid to Government ,East and Central Africa ,Government of Rwanda NSDS1 in Rwanda ,201690-101 ,"1,000,000.00",
DFID,DFID,19/07/2013,Aid Programme - Partnership Programme Arrangements ,Policy Division ,MARIE STOPES INTERNATIONAL ,202625-101 ,"1,088,263.00",
DFID,DFID,19/07/2013,Aid Programme - Pooled/Basket funding ,West and Southern Africa ,UNDP CONTRIBUTIONS ACCOUNT ,200856-102 ,"1,200,000.00",
DFID,DFID,19/07/2013,Aid Programme - Accountable Grant Payments ,West and Southern Africa ,CAMFED ,203292-101 ,"1,430,561.00",
DFID,DFID,19/07/2013,Aid Programme - Accountable Grant Payments ,Communications Division ,COMIC RELIEF ,202197-101 ,"2,802,547.00",
DFID,DFID,19/07/2013,Aid Programme - Accountable Grant Payments ,West and Southern Africa ,CONCERN WORLDWIDE ,203445-104 ,"3,295,416.00",
DFID,DFID,20/07/2013,Vehicle Repairs & Maintenance ,West and Southern Africa ,Recipient name withheld ,101631-101 ,"1,481.70",
DFID,DFID,21/07/2013,Oil - Other Utilities ,Western Asia and Stabilisation Division ,Supplier Name withheld ,100011-110 ,"1,349.11",
DFID,DFID,21/07/2013,Oil - Other Utilities ,Western Asia and Stabilisation Division ,Supplier Name withheld ,101601-110 ,"13,491.18",
DFID,DFID,22/07/2013,Travel - Subsistence ,Research and Evidence Division ,Recipient name withheld ,202348-104 ,515.49,
DFID,DFID,22/07/2013,Hotels - Accommodation only ,Policy Division ,Recipient name withheld ,202419-102 ,535.60,
DFID,DFID,22/07/2013,Vehicle Petrol & Oil ,Asia  Caribbean and Overseas Territories ,Sikder Filling and Serivce Station ,100025-101 ,539.21,
DFID,DFID,22/07/2013,Travel documentation costs ,Human Resources Security & Facilities Division ,Recipient name withheld ,100269-160 ,540.00,
DFID,DFID,22/07/2013,Subscriptions ,Communications Division ,THE PRESS ASSOCIATION ,100197-101 ,574.70,
DFID,DFID,22/07/2013,Hostile Environment Training ,West and Southern Africa ,Pilgrims Group ,101622-106 ,580.97,
DFID,DFID,22/07/2013,Training - Course Fees ,Research and Evidence Division ,Pilgrims Group ,100039-102 ,634.14,
DFID,DFID,22/07/2013,Travel - Subsistence ,East and Central Africa ,Recipient name withheld ,202593-103 ,646.36,
DFID,DFID,22/07/2013,Hostile Environment Training ,Western Asia and Stabilisation Division ,Pilgrims Group ,203940-102 ,673.12,
DFID,DFID,22/07/2013,Mobile telephones & accessories ,Asia  Caribbean and Overseas Territories ,Grameen Phone ,101603-101 ,679.16,
DFID,DFID,22/07/2013,Training - Course Fees ,West and Southern Africa ,ABSInternational ,101618-101 ,690.27,
DFID,DFID,22/07/2013,Recruitment costs ,Asia  Caribbean and Overseas Territories ,Lakeshore Service Apartment (Pvt) Ltd ,101603-101 ,704.43,
DFID,DFID,22/07/2013,Electricity ,East and Central Africa ,EWSA ,101628-101 ,781.89,
DFID,DFID,22/07/2013,Hotels - Accommodation only ,East and Central Africa ,Elgon Terrace Hotel Limited ,203956-101 ,"1,296.46",
DFID,DFID,22/07/2013,Project delivery costs - supplier services ,East and Central Africa ,ADAM SMITH INTERNATIONAL  LTD ,202698-101 ,"1,350.53",
DFID,DFID,22/07/2013,Generators & spares ,West and Southern Africa ,NP (SL) Ltd ,101629-101 ,"1,499.13",
DFID,DFID,22/07/2013,Generators & spares ,West and Southern Africa ,NP (SL) Ltd ,101629-101 ,"1,499.13",
DFID,DFID,22/07/2013,Training - Course Fees ,East and Central Africa ,BIRKBECK UNIVERSITY ,101625-103 ,"1,987.00",
DFID,DFID,22/07/2013,Data Network - land lines ,Business Solutions Division Level ,KUBE NETWORKS LTD ,200002-130 ,"2,250.83",
DFID,DFID,22/07/2013,Aid Programme - Accountable Grant Payments ,Asia  Caribbean and Overseas Territories ,SAINT HELENA NATIONAL TRUST ,201049-101 ,"2,379.40",
DFID,DFID,22/07/2013,Contract & Agency Staff ,International Finance Division ,Hays Specialist Recruitment Ltd ,100120-101 ,"2,589.60",
DFID,DFID,22/07/2013,Gas ,Group Operations ,CORONA ENERGY ,100187-101 ,"2,732.44",
DFID,DFID,22/07/2013,Project delivery costs - supplier services ,Asia  Caribbean and Overseas Territories ,Sustainable Development Associates ,107448-101 ,"2,980.43",
DFID,DFID,22/07/2013,Hotels - Accommodation only ,Asia  Caribbean and Overseas Territories ,Lakeshore Service Apartment (Pvt) Ltd ,201652-105 ,"3,712.66",
DFID,DFID,22/07/2013,Project delivery costs - supplier services ,East and Central Africa ,ADAM SMITH INTERNATIONAL  LTD ,202698-101 ,"4,466.49",
DFID,DFID,22/07/2013,Project delivery costs - supplier services ,East and Central Africa ,ADAM SMITH INTERNATIONAL  LTD ,200294-101 ,"5,100.00",
DFID,DFID,22/07/2013,Project delivery costs - supplier services ,Research and Evidence Division ,Amsterdam Institute for International Development ,202242-103 ,"6,000.00",
DFID,DFID,22/07/2013,Project delivery costs - supplier services ,West and Southern Africa ,Leigland ,201433-104 ,"6,882.46",
DFID,DFID,22/07/2013,Project delivery costs - supplier services ,East and Central Africa ,EMMANUEL SSEWANKAMBO ,200250-111 ,"7,298.96",
DFID,DFID,22/07/2013,Project delivery costs - supplier services ,Non-Departmental Public Body ,COMMUNITIES AND LOCAL GOVERNMENT ,203064-101 ,"8,300.40",
DFID,DFID,22/07/2013,Project delivery costs - supplier services ,Middle East & North Africa Division (MENAD) ,Sussex Police ,202486-113 ,"8,760.32",
DFID,DFID,22/07/2013,Project delivery costs - supplier services ,Western Asia and Stabilisation Division ,Apex Consulting International Inc. ,200694-102 ,"9,301.73",
DFID,DFID,22/07/2013,Legal costs ,Finance and Corporate Performance Division ,MICHELMORES SOLICITORS ,100008-101 ,"10,468.21",
DFID,DFID,22/07/2013,Aid Programme - Accountable Grant Payments ,West and Southern Africa , Overseas Development Institute ,103269-104 ,"14,282.52",
DFID,DFID,22/07/2013,Project delivery costs - supplier services ,East and Central Africa ,ADAM SMITH INTERNATIONAL  LTD ,200294-105 ,"18,054.90",
DFID,DFID,22/07/2013,Electricity ,Group Operations ,EDF ENERGY ,203717-101 ,"20,132.87",
DFID,DFID,22/07/2013,AV Conferencing systems -hardware ,Business Solutions Division Level ,FCO SERVICES ,200003-158 ,"20,532.19",
DFID,DFID,22/07/2013,Secure Staff Accommodation ,West and Southern Africa ,Supplier Name withheld ,101629-101 ,"21,639.34",
DFID,DFID,22/07/2013,Project delivery costs - supplier services ,East and Central Africa ,ADAM SMITH INTERNATIONAL  LTD ,200294-105 ,"39,369.99",
DFID,DFID,22/07/2013,Project delivery costs - supplier services ,Asia  Caribbean and Overseas Territories ,OPTIONS CONSULTANCY SERVICES LIMITED ,201375-103 ,"41,182.15",
DFID,DFID,22/07/2013,Aid Programme - Accountable Grant Payments ,Middle East & North Africa Division (MENAD) ,Supplier Name withheld ,203216-118 ,"44,795.00",
DFID,DFID,22/07/2013,Subscriptions ,Communications Division ,Cabinet Office RM Shared Services ,100197-101 ,"45,720.00",Annual subscription to MMU Services for Financial Year 2013/14 
DFID,DFID,22/07/2013,Aid Programme - Accountable Grant Payments ,East and Central Africa ,OXFAM INSTITUTIONAL INCOME ACCOUNT ,200548-107 ,"65,100.00",
DFID,DFID,22/07/2013,Aid Programme - Core contributions ,Policy Division ,FAO ,203159-101 ,"75,156.50",
DFID,DFID,22/07/2013,Project delivery costs - supplier services ,East and Central Africa ,HEALTH PARTNERS INTERNATIONAL ,200250-115 ,"110,833.59",
DFID,DFID,22/07/2013,Aid Programme - Trust Funds contributions ,East and Central Africa ,FAO ,202597-110 ,"117,000.00",
DFID,DFID,22/07/2013,Project delivery costs - supplier services ,East and Central Africa ,Crown Agents Bank ,200120-110 ,"137,660.96",
DFID,DFID,22/07/2013,Secure Staff Accommodation ,East and Central Africa ,Supplier Name withheld ,202594-101 ,"141,976.80",Secure Staff Accommodation Costs � DFID South Sudan
DFID,DFID,22/07/2013,Aid Programme - Other Financial Aid to Government ,West and Southern Africa ,Ministry of Transport and Commucations Mozambique SDP Unit ,201791-104 ,"160,000.00",
DFID,DFID,22/07/2013,Project delivery costs - supplier services ,East and Central Africa ,Deloitte Consulting Pvt Ltd Co. ,202913-101 ,"196,440.94",
DFID,DFID,22/07/2013,Secure Staff Accommodation ,East and Central Africa ,Supplier Name withheld ,202586-101 ,"212,965.20",Secure Staff Accommodation Costs � DFID South Sudan
DFID,DFID,22/07/2013,Aid Programme - Accountable Grant Payments ,Research and Evidence Division ,ASSOCIATION OF COMMONWEALTH UNIVER ,202004-101 ,"230,640.00",
DFID,DFID,22/07/2013,Project delivery costs - supplier services ,West and Southern Africa ,DAI EUROPE LIMITED ,113961-104 ,"241,406.09",
DFID,DFID,22/07/2013,Aid Programme - Other Financial Aid to Government ,West and Southern Africa ,Anti-Corruption Commission Republic of Zambia ,201107-102 ,"270,000.00",
DFID,DFID,22/07/2013,Aid Programme - Trust Funds contributions ,East and Central Africa ,FAO ,202597-109 ,"293,186.00",
DFID,DFID,22/07/2013,Project delivery costs - supplier services ,West and Southern Africa ,DAI Europe ,201018-102 ,"362,483.76",
DFID,DFID,22/07/2013,Project delivery costs - supplier services ,West and Southern Africa ,Futures Group Europe ,202295-102 ,"461,864.69",
DFID,DFID,22/07/2013,Aid Programme - Voluntary contributions ,Conflict Humanitarian and Security Division ,UN WOMEN ,201067-101 ,"615,000.00",
